{"text_format":"1","workbook":"xlsx","n_sheets":29,"sheets":["الاجمالى","الاسكندرية","كفرالشيخ","البحيرة","طنطا","المنصورة","دكرنس","دمياط","المنوفية","الشرقية","الاسماعيلية","بور سعيد","السويس","المقطم","مؤسسة الزكاة","الجيزة","القليوبية","الفيوم","بنى سويف","المنيا","اسيوط","سوهاج","جرجا","قنا","نجع حمادى","الغردقة","الاقصر","اسوان","ادفو"],"not_rendered":{"charts":0,"images":0,"macros":1,"external_links":0,"defined_names":0,"comments":1,"pivot_tables":0},"unopened":[],"bounds":{"document_bytes":16777216,"sheet_cells":100000,"rows_first":2000,"rows_last":500,"rows_between":2000,"halvings":0,"cell_chars":16384,"cell_head_chars":4096},"cells_cut":0,"cells_raw":0,"read":"whole","date_system":"1900"}

{"sheet":"الاجمالى","index":0,"n_rows":80,"n_cols":20,"rows_kept":80,"cut":false,"hidden":false,"merged":[[71,0,71,3],[0,0,0,19],[1,0,2,0],[1,1,2,1],[1,2,2,2],[1,3,2,3],[1,4,2,4],[1,19,2,19],[1,5,1,18]]}
["إجمالى أرصدة التوكيلات 8-2-2025"]
["م","الكود","الصنف","الوحدة","الرصيد\n الدفترى\nبالكرتونة\n ","تاريخ الانتاج",null,null,null,null,null,null,null,null,null,null,null,null,null,"الرصيد\n الفعلى\nبالكرتونة\n"]
[null,null,null,null,null,"2024-01-01","2024-02-01","2024-03-01","2024-04-01","2024-05-01","2024-06-01","2024-07-01","2024-08-01","2024-09-01","2024-10-01","2024-11-01","2024-12-01","2025-01-01","2025-02-01"]
[1,6222000901529,"منتج 1","كرتونة",{"$f":"SUM(الاسكندرية:ادفو!E4)","v":3876},{"$f":"SUM(الاسكندرية:ادفو!F4)","v":0},{"$f":"SUM(الاسكندرية:ادفو!G4)","v":0},{"$f":"SUM(الاسكندرية:ادفو!H4)","v":0},{"$f":"SUM(الاسكندرية:ادفو!I4)","v":0},{"$f":"SUM(الاسكندرية:ادفو!J4)","v":0},{"$f":"SUM(الاسكندرية:ادفو!K4)","v":0},{"$f":"SUM(الاسكندرية:ادفو!L4)","v":0},{"$f":"SUM(الاسكندرية:ادفو!M4)","v":0},{"$f":"SUM(الاسكندرية:ادفو!N4)","v":0},{"$f":"SUM(الاسكندرية:ادفو!O4)","v":0},{"$f":"SUM(الاسكندرية:ادفو!P4)","v":0},{"$f":"SUM(الاسكندرية:ادفو!Q4)","v":0},{"$f":"SUM(الاسكندرية:ادفو!R4)","v":0},{"$f":"SUM(الاسكندرية:ادفو!S4)","v":0},{"$f":"SUM(F4:S4)","v":0}]
[2,6222000901536,"منتج 2","كرتونة",{"$f":"SUM(الاسكندرية:ادفو!E5)","v":3165},{"$f":"SUM(الاسكندرية:ادفو!F5)","v":0},{"$f":"SUM(الاسكندرية:ادفو!G5)","v":0},{"$f":"SUM(الاسكندرية:ادفو!H5)","v":0},{"$f":"SUM(الاسكندرية:ادفو!I5)","v":0},{"$f":"SUM(الاسكندرية:ادفو!J5)","v":0},{"$f":"SUM(الاسكندرية:ادفو!K5)","v":0},{"$f":"SUM(الاسكندرية:ادفو!L5)","v":0},{"$f":"SUM(الاسكندرية:ادفو!M5)","v":0},{"$f":"SUM(الاسكندرية:ادفو!N5)","v":0},{"$f":"SUM(الاسكندرية:ادفو!O5)","v":0},{"$f":"SUM(الاسكندرية:ادفو!P5)","v":0},{"$f":"SUM(الاسكندرية:ادفو!Q5)","v":0},{"$f":"SUM(الاسكندرية:ادفو!R5)","v":0},{"$f":"SUM(الاسكندرية:ادفو!S5)","v":0},{"$f":"SUM(F5:S5)","v":0}]
[3,6222000911733,"منتج 3","كرتونة",{"$f":"SUM(الاسكندرية:ادفو!E6)","v":3406},{"$f":"SUM(الاسكندرية:ادفو!F6)","v":0},{"$f":"SUM(الاسكندرية:ادفو!G6)","v":0},{"$f":"SUM(الاسكندرية:ادفو!H6)","v":0},{"$f":"SUM(الاسكندرية:ادفو!I6)","v":0},{"$f":"SUM(الاسكندرية:ادفو!J6)","v":0},{"$f":"SUM(الاسكندرية:ادفو!K6)","v":0},{"$f":"SUM(الاسكندرية:ادفو!L6)","v":0},{"$f":"SUM(الاسكندرية:ادفو!M6)","v":0},{"$f":"SUM(الاسكندرية:ادفو!N6)","v":0},{"$f":"SUM(الاسكندرية:ادفو!O6)","v":0},{"$f":"SUM(الاسكندرية:ادفو!P6)","v":0},{"$f":"SUM(الاسكندرية:ادفو!Q6)","v":0},{"$f":"SUM(الاسكندرية:ادفو!R6)","v":0},{"$f":"SUM(الاسكندرية:ادفو!S6)","v":0},0]
[4,6222000911764,"منتج 4","كرتونة",{"$f":"SUM(الاسكندرية:ادفو!E7)","v":2062},{"$f":"SUM(الاسكندرية:ادفو!F7)","v":0},{"$f":"SUM(الاسكندرية:ادفو!G7)","v":0},{"$f":"SUM(الاسكندرية:ادفو!H7)","v":0},{"$f":"SUM(الاسكندرية:ادفو!I7)","v":0},{"$f":"SUM(الاسكندرية:ادفو!J7)","v":0},{"$f":"SUM(الاسكندرية:ادفو!K7)","v":0},{"$f":"SUM(الاسكندرية:ادفو!L7)","v":0},{"$f":"SUM(الاسكندرية:ادفو!M7)","v":0},{"$f":"SUM(الاسكندرية:ادفو!N7)","v":0},{"$f":"SUM(الاسكندرية:ادفو!O7)","v":0},{"$f":"SUM(الاسكندرية:ادفو!P7)","v":0},{"$f":"SUM(الاسكندرية:ادفو!Q7)","v":0},{"$f":"SUM(الاسكندرية:ادفو!R7)","v":0},{"$f":"SUM(الاسكندرية:ادفو!S7)","v":0},0]
[5,"00743","منتج 5","كرتونة",{"$f":"SUM(الاسكندرية:ادفو!E8)","v":622},{"$f":"SUM(الاسكندرية:ادفو!F8)","v":0},{"$f":"SUM(الاسكندرية:ادفو!G8)","v":0},{"$f":"SUM(الاسكندرية:ادفو!H8)","v":0},{"$f":"SUM(الاسكندرية:ادفو!I8)","v":0},{"$f":"SUM(الاسكندرية:ادفو!J8)","v":0},{"$f":"SUM(الاسكندرية:ادفو!K8)","v":0},{"$f":"SUM(الاسكندرية:ادفو!L8)","v":0},{"$f":"SUM(الاسكندرية:ادفو!M8)","v":0},{"$f":"SUM(الاسكندرية:ادفو!N8)","v":0},{"$f":"SUM(الاسكندرية:ادفو!O8)","v":0},{"$f":"SUM(الاسكندرية:ادفو!P8)","v":0},{"$f":"SUM(الاسكندرية:ادفو!Q8)","v":0},{"$f":"SUM(الاسكندرية:ادفو!R8)","v":0},{"$f":"SUM(الاسكندرية:ادفو!S8)","v":0},0]
[6,6222000901758,"منتج 6","كرتونة",{"$f":"SUM(الاسكندرية:ادفو!E9)","v":6537},{"$f":"SUM(الاسكندرية:ادفو!F9)","v":0},{"$f":"SUM(الاسكندرية:ادفو!G9)","v":0},{"$f":"SUM(الاسكندرية:ادفو!H9)","v":0},{"$f":"SUM(الاسكندرية:ادفو!I9)","v":0},{"$f":"SUM(الاسكندرية:ادفو!J9)","v":0},{"$f":"SUM(الاسكندرية:ادفو!K9)","v":0},{"$f":"SUM(الاسكندرية:ادفو!L9)","v":0},{"$f":"SUM(الاسكندرية:ادفو!M9)","v":0},{"$f":"SUM(الاسكندرية:ادفو!N9)","v":0},{"$f":"SUM(الاسكندرية:ادفو!O9)","v":0},{"$f":"SUM(الاسكندرية:ادفو!P9)","v":0},{"$f":"SUM(الاسكندرية:ادفو!Q9)","v":0},{"$f":"SUM(الاسكندرية:ادفو!R9)","v":0},{"$f":"SUM(الاسكندرية:ادفو!S9)","v":0},0]
[7,6222000912020,"منتج 7","كرتونة",{"$f":"SUM(الاسكندرية:ادفو!E10)","v":1110},{"$f":"SUM(الاسكندرية:ادفو!F10)","v":0},{"$f":"SUM(الاسكندرية:ادفو!G10)","v":0},{"$f":"SUM(الاسكندرية:ادفو!H10)","v":0},{"$f":"SUM(الاسكندرية:ادفو!I10)","v":0},{"$f":"SUM(الاسكندرية:ادفو!J10)","v":0},{"$f":"SUM(الاسكندرية:ادفو!K10)","v":0},{"$f":"SUM(الاسكندرية:ادفو!L10)","v":0},{"$f":"SUM(الاسكندرية:ادفو!M10)","v":0},{"$f":"SUM(الاسكندرية:ادفو!N10)","v":0},{"$f":"SUM(الاسكندرية:ادفو!O10)","v":0},{"$f":"SUM(الاسكندرية:ادفو!P10)","v":0},{"$f":"SUM(الاسكندرية:ادفو!Q10)","v":0},{"$f":"SUM(الاسكندرية:ادفو!R10)","v":0},{"$f":"SUM(الاسكندرية:ادفو!S10)","v":0},0]
[8,6222000909815,"منتج 8","كرتونة",{"$f":"SUM(الاسكندرية:ادفو!E11)","v":4323},{"$f":"SUM(الاسكندرية:ادفو!F11)","v":0},{"$f":"SUM(الاسكندرية:ادفو!G11)","v":0},{"$f":"SUM(الاسكندرية:ادفو!H11)","v":0},{"$f":"SUM(الاسكندرية:ادفو!I11)","v":0},{"$f":"SUM(الاسكندرية:ادفو!J11)","v":0},{"$f":"SUM(الاسكندرية:ادفو!K11)","v":0},{"$f":"SUM(الاسكندرية:ادفو!L11)","v":0},{"$f":"SUM(الاسكندرية:ادفو!M11)","v":0},{"$f":"SUM(الاسكندرية:ادفو!N11)","v":0},{"$f":"SUM(الاسكندرية:ادفو!O11)","v":0},{"$f":"SUM(الاسكندرية:ادفو!P11)","v":0},{"$f":"SUM(الاسكندرية:ادفو!Q11)","v":0},{"$f":"SUM(الاسكندرية:ادفو!R11)","v":0},{"$f":"SUM(الاسكندرية:ادفو!S11)","v":0},0]
[9,6222000908610,"منتج 9","كرتونة",{"$f":"SUM(الاسكندرية:ادفو!E12)","v":892},{"$f":"SUM(الاسكندرية:ادفو!F12)","v":0},{"$f":"SUM(الاسكندرية:ادفو!G12)","v":0},{"$f":"SUM(الاسكندرية:ادفو!H12)","v":0},{"$f":"SUM(الاسكندرية:ادفو!I12)","v":0},{"$f":"SUM(الاسكندرية:ادفو!J12)","v":0},{"$f":"SUM(الاسكندرية:ادفو!K12)","v":0},{"$f":"SUM(الاسكندرية:ادفو!L12)","v":0},{"$f":"SUM(الاسكندرية:ادفو!M12)","v":0},{"$f":"SUM(الاسكندرية:ادفو!N12)","v":0},{"$f":"SUM(الاسكندرية:ادفو!O12)","v":0},{"$f":"SUM(الاسكندرية:ادفو!P12)","v":0},{"$f":"SUM(الاسكندرية:ادفو!Q12)","v":0},{"$f":"SUM(الاسكندرية:ادفو!R12)","v":0},{"$f":"SUM(الاسكندرية:ادفو!S12)","v":0},0]
[10,6222000909891,"منتج 10","كرتونة",{"$f":"SUM(الاسكندرية:ادفو!E13)","v":1785},{"$f":"SUM(الاسكندرية:ادفو!F13)","v":0},{"$f":"SUM(الاسكندرية:ادفو!G13)","v":0},{"$f":"SUM(الاسكندرية:ادفو!H13)","v":0},{"$f":"SUM(الاسكندرية:ادفو!I13)","v":0},{"$f":"SUM(الاسكندرية:ادفو!J13)","v":0},{"$f":"SUM(الاسكندرية:ادفو!K13)","v":0},{"$f":"SUM(الاسكندرية:ادفو!L13)","v":0},{"$f":"SUM(الاسكندرية:ادفو!M13)","v":0},{"$f":"SUM(الاسكندرية:ادفو!N13)","v":0},{"$f":"SUM(الاسكندرية:ادفو!O13)","v":0},{"$f":"SUM(الاسكندرية:ادفو!P13)","v":0},{"$f":"SUM(الاسكندرية:ادفو!Q13)","v":0},{"$f":"SUM(الاسكندرية:ادفو!R13)","v":0},{"$f":"SUM(الاسكندرية:ادفو!S13)","v":0},0]
[11,6222000911757,"منتج 11","كرتونة",{"$f":"SUM(الاسكندرية:ادفو!E14)","v":0},{"$f":"SUM(الاسكندرية:ادفو!F14)","v":0},{"$f":"SUM(الاسكندرية:ادفو!G14)","v":0},{"$f":"SUM(الاسكندرية:ادفو!H14)","v":0},{"$f":"SUM(الاسكندرية:ادفو!I14)","v":0},{"$f":"SUM(الاسكندرية:ادفو!J14)","v":0},{"$f":"SUM(الاسكندرية:ادفو!K14)","v":0},{"$f":"SUM(الاسكندرية:ادفو!L14)","v":0},{"$f":"SUM(الاسكندرية:ادفو!M14)","v":0},{"$f":"SUM(الاسكندرية:ادفو!N14)","v":0},{"$f":"SUM(الاسكندرية:ادفو!O14)","v":0},{"$f":"SUM(الاسكندرية:ادفو!P14)","v":0},{"$f":"SUM(الاسكندرية:ادفو!Q14)","v":0},{"$f":"SUM(الاسكندرية:ادفو!R14)","v":0},{"$f":"SUM(الاسكندرية:ادفو!S14)","v":0},0]
[12,"00744","منتج 12","كرتونة",{"$f":"SUM(الاسكندرية:ادفو!E15)","v":1839},{"$f":"SUM(الاسكندرية:ادفو!F15)","v":0},{"$f":"SUM(الاسكندرية:ادفو!G15)","v":0},{"$f":"SUM(الاسكندرية:ادفو!H15)","v":0},{"$f":"SUM(الاسكندرية:ادفو!I15)","v":0},{"$f":"SUM(الاسكندرية:ادفو!J15)","v":0},{"$f":"SUM(الاسكندرية:ادفو!K15)","v":0},{"$f":"SUM(الاسكندرية:ادفو!L15)","v":0},{"$f":"SUM(الاسكندرية:ادفو!M15)","v":0},{"$f":"SUM(الاسكندرية:ادفو!N15)","v":0},{"$f":"SUM(الاسكندرية:ادفو!O15)","v":0},{"$f":"SUM(الاسكندرية:ادفو!P15)","v":0},{"$f":"SUM(الاسكندرية:ادفو!Q15)","v":0},{"$f":"SUM(الاسكندرية:ادفو!R15)","v":0},{"$f":"SUM(الاسكندرية:ادفو!S15)","v":0},0]
[13,6222000901642,"منتج 13","كرتونة",{"$f":"SUM(الاسكندرية:ادفو!E16)","v":6969.5},{"$f":"SUM(الاسكندرية:ادفو!F16)","v":0},{"$f":"SUM(الاسكندرية:ادفو!G16)","v":0},{"$f":"SUM(الاسكندرية:ادفو!H16)","v":0},{"$f":"SUM(الاسكندرية:ادفو!I16)","v":0},{"$f":"SUM(الاسكندرية:ادفو!J16)","v":0},{"$f":"SUM(الاسكندرية:ادفو!K16)","v":0},{"$f":"SUM(الاسكندرية:ادفو!L16)","v":0},{"$f":"SUM(الاسكندرية:ادفو!M16)","v":0},{"$f":"SUM(الاسكندرية:ادفو!N16)","v":0},{"$f":"SUM(الاسكندرية:ادفو!O16)","v":0},{"$f":"SUM(الاسكندرية:ادفو!P16)","v":0},{"$f":"SUM(الاسكندرية:ادفو!Q16)","v":0},{"$f":"SUM(الاسكندرية:ادفو!R16)","v":0},{"$f":"SUM(الاسكندرية:ادفو!S16)","v":0},0]
[14,6222000912037,"منتج 14","كرتونة",{"$f":"SUM(الاسكندرية:ادفو!E17)","v":1560},{"$f":"SUM(الاسكندرية:ادفو!F17)","v":0},{"$f":"SUM(الاسكندرية:ادفو!G17)","v":0},{"$f":"SUM(الاسكندرية:ادفو!H17)","v":0},{"$f":"SUM(الاسكندرية:ادفو!I17)","v":0},{"$f":"SUM(الاسكندرية:ادفو!J17)","v":0},{"$f":"SUM(الاسكندرية:ادفو!K17)","v":0},{"$f":"SUM(الاسكندرية:ادفو!L17)","v":0},{"$f":"SUM(الاسكندرية:ادفو!M17)","v":0},{"$f":"SUM(الاسكندرية:ادفو!N17)","v":0},{"$f":"SUM(الاسكندرية:ادفو!O17)","v":0},{"$f":"SUM(الاسكندرية:ادفو!P17)","v":0},{"$f":"SUM(الاسكندرية:ادفو!Q17)","v":0},{"$f":"SUM(الاسكندرية:ادفو!R17)","v":0},{"$f":"SUM(الاسكندرية:ادفو!S17)","v":0},0]
[15,6222000909808,"منتج 15","كرتونة",{"$f":"SUM(الاسكندرية:ادفو!E18)","v":1789},{"$f":"SUM(الاسكندرية:ادفو!F18)","v":0},{"$f":"SUM(الاسكندرية:ادفو!G18)","v":0},{"$f":"SUM(الاسكندرية:ادفو!H18)","v":0},{"$f":"SUM(الاسكندرية:ادفو!I18)","v":0},{"$f":"SUM(الاسكندرية:ادفو!J18)","v":0},{"$f":"SUM(الاسكندرية:ادفو!K18)","v":0},{"$f":"SUM(الاسكندرية:ادفو!L18)","v":0},{"$f":"SUM(الاسكندرية:ادفو!M18)","v":0},{"$f":"SUM(الاسكندرية:ادفو!N18)","v":0},{"$f":"SUM(الاسكندرية:ادفو!O18)","v":0},{"$f":"SUM(الاسكندرية:ادفو!P18)","v":0},{"$f":"SUM(الاسكندرية:ادفو!Q18)","v":0},{"$f":"SUM(الاسكندرية:ادفو!R18)","v":0},{"$f":"SUM(الاسكندرية:ادفو!S18)","v":0},0]
[16,6222000905268,"منتج 16","كرتونة",{"$f":"SUM(الاسكندرية:ادفو!E19)","v":52},{"$f":"SUM(الاسكندرية:ادفو!F19)","v":0},{"$f":"SUM(الاسكندرية:ادفو!G19)","v":0},{"$f":"SUM(الاسكندرية:ادفو!H19)","v":0},{"$f":"SUM(الاسكندرية:ادفو!I19)","v":0},{"$f":"SUM(الاسكندرية:ادفو!J19)","v":0},{"$f":"SUM(الاسكندرية:ادفو!K19)","v":0},{"$f":"SUM(الاسكندرية:ادفو!L19)","v":0},{"$f":"SUM(الاسكندرية:ادفو!M19)","v":0},{"$f":"SUM(الاسكندرية:ادفو!N19)","v":0},{"$f":"SUM(الاسكندرية:ادفو!O19)","v":0},{"$f":"SUM(الاسكندرية:ادفو!P19)","v":0},{"$f":"SUM(الاسكندرية:ادفو!Q19)","v":0},{"$f":"SUM(الاسكندرية:ادفو!R19)","v":0},{"$f":"SUM(الاسكندرية:ادفو!S19)","v":0},0]
[17,6222000907583,"منتج 17","كرتونة",{"$f":"SUM(الاسكندرية:ادفو!E20)","v":704},{"$f":"SUM(الاسكندرية:ادفو!F20)","v":0},{"$f":"SUM(الاسكندرية:ادفو!G20)","v":0},{"$f":"SUM(الاسكندرية:ادفو!H20)","v":0},{"$f":"SUM(الاسكندرية:ادفو!I20)","v":0},{"$f":"SUM(الاسكندرية:ادفو!J20)","v":0},{"$f":"SUM(الاسكندرية:ادفو!K20)","v":0},{"$f":"SUM(الاسكندرية:ادفو!L20)","v":0},{"$f":"SUM(الاسكندرية:ادفو!M20)","v":0},{"$f":"SUM(الاسكندرية:ادفو!N20)","v":0},{"$f":"SUM(الاسكندرية:ادفو!O20)","v":0},{"$f":"SUM(الاسكندرية:ادفو!P20)","v":0},{"$f":"SUM(الاسكندرية:ادفو!Q20)","v":0},{"$f":"SUM(الاسكندرية:ادفو!R20)","v":0},{"$f":"SUM(الاسكندرية:ادفو!S20)","v":0},0]
[18,6222000909884,"منتج 18","كرتونة",{"$f":"SUM(الاسكندرية:ادفو!E21)","v":2191},{"$f":"SUM(الاسكندرية:ادفو!F21)","v":0},{"$f":"SUM(الاسكندرية:ادفو!G21)","v":0},{"$f":"SUM(الاسكندرية:ادفو!H21)","v":0},{"$f":"SUM(الاسكندرية:ادفو!I21)","v":0},{"$f":"SUM(الاسكندرية:ادفو!J21)","v":0},{"$f":"SUM(الاسكندرية:ادفو!K21)","v":0},{"$f":"SUM(الاسكندرية:ادفو!L21)","v":0},{"$f":"SUM(الاسكندرية:ادفو!M21)","v":0},{"$f":"SUM(الاسكندرية:ادفو!N21)","v":0},{"$f":"SUM(الاسكندرية:ادفو!O21)","v":0},{"$f":"SUM(الاسكندرية:ادفو!P21)","v":0},{"$f":"SUM(الاسكندرية:ادفو!Q21)","v":0},{"$f":"SUM(الاسكندرية:ادفو!R21)","v":0},{"$f":"SUM(الاسكندرية:ادفو!S21)","v":0},0]
[19,"002770","منتج 19","كرتونة",{"$f":"SUM(الاسكندرية:ادفو!E22)","v":352},{"$f":"SUM(الاسكندرية:ادفو!F22)","v":0},{"$f":"SUM(الاسكندرية:ادفو!G22)","v":0},{"$f":"SUM(الاسكندرية:ادفو!H22)","v":0},{"$f":"SUM(الاسكندرية:ادفو!I22)","v":0},{"$f":"SUM(الاسكندرية:ادفو!J22)","v":0},{"$f":"SUM(الاسكندرية:ادفو!K22)","v":0},{"$f":"SUM(الاسكندرية:ادفو!L22)","v":0},{"$f":"SUM(الاسكندرية:ادفو!M22)","v":0},{"$f":"SUM(الاسكندرية:ادفو!N22)","v":0},{"$f":"SUM(الاسكندرية:ادفو!O22)","v":0},{"$f":"SUM(الاسكندرية:ادفو!P22)","v":0},{"$f":"SUM(الاسكندرية:ادفو!Q22)","v":0},{"$f":"SUM(الاسكندرية:ادفو!R22)","v":0},{"$f":"SUM(الاسكندرية:ادفو!S22)","v":0},0]
[20,6222000912525,"منتج 20","كرتونة",{"$f":"SUM(الاسكندرية:ادفو!E23)","v":1132},{"$f":"SUM(الاسكندرية:ادفو!F23)","v":0},{"$f":"SUM(الاسكندرية:ادفو!G23)","v":0},{"$f":"SUM(الاسكندرية:ادفو!H23)","v":0},{"$f":"SUM(الاسكندرية:ادفو!I23)","v":0},{"$f":"SUM(الاسكندرية:ادفو!J23)","v":0},{"$f":"SUM(الاسكندرية:ادفو!K23)","v":0},{"$f":"SUM(الاسكندرية:ادفو!L23)","v":0},{"$f":"SUM(الاسكندرية:ادفو!M23)","v":0},{"$f":"SUM(الاسكندرية:ادفو!N23)","v":0},{"$f":"SUM(الاسكندرية:ادفو!O23)","v":0},{"$f":"SUM(الاسكندرية:ادفو!P23)","v":0},{"$f":"SUM(الاسكندرية:ادفو!Q23)","v":0},{"$f":"SUM(الاسكندرية:ادفو!R23)","v":0},{"$f":"SUM(الاسكندرية:ادفو!S23)","v":0},0]
[21,"6222000912518","منتج 21","كرتونة",{"$f":"SUM(الاسكندرية:ادفو!E24)","v":1767},{"$f":"SUM(الاسكندرية:ادفو!F24)","v":0},{"$f":"SUM(الاسكندرية:ادفو!G24)","v":0},{"$f":"SUM(الاسكندرية:ادفو!H24)","v":0},{"$f":"SUM(الاسكندرية:ادفو!I24)","v":0},{"$f":"SUM(الاسكندرية:ادفو!J24)","v":0},{"$f":"SUM(الاسكندرية:ادفو!K24)","v":0},{"$f":"SUM(الاسكندرية:ادفو!L24)","v":0},{"$f":"SUM(الاسكندرية:ادفو!M24)","v":0},{"$f":"SUM(الاسكندرية:ادفو!N24)","v":0},{"$f":"SUM(الاسكندرية:ادفو!O24)","v":0},{"$f":"SUM(الاسكندرية:ادفو!P24)","v":0},{"$f":"SUM(الاسكندرية:ادفو!Q24)","v":0},{"$f":"SUM(الاسكندرية:ادفو!R24)","v":0},{"$f":"SUM(الاسكندرية:ادفو!S24)","v":0},0]
[22,"6222000908566","منتج 22","كرتونة",{"$f":"SUM(الاسكندرية:ادفو!E25)","v":853.5},{"$f":"SUM(الاسكندرية:ادفو!F25)","v":0},{"$f":"SUM(الاسكندرية:ادفو!G25)","v":0},{"$f":"SUM(الاسكندرية:ادفو!H25)","v":0},{"$f":"SUM(الاسكندرية:ادفو!I25)","v":0},{"$f":"SUM(الاسكندرية:ادفو!J25)","v":0},{"$f":"SUM(الاسكندرية:ادفو!K25)","v":0},{"$f":"SUM(الاسكندرية:ادفو!L25)","v":0},{"$f":"SUM(الاسكندرية:ادفو!M25)","v":0},{"$f":"SUM(الاسكندرية:ادفو!N25)","v":0},{"$f":"SUM(الاسكندرية:ادفو!O25)","v":0},{"$f":"SUM(الاسكندرية:ادفو!P25)","v":0},{"$f":"SUM(الاسكندرية:ادفو!Q25)","v":0},{"$f":"SUM(الاسكندرية:ادفو!R25)","v":0},{"$f":"SUM(الاسكندرية:ادفو!S25)","v":0},0]
[23,"6222000908573","منتج 23","كرتونة",{"$f":"SUM(الاسكندرية:ادفو!E26)","v":1375},{"$f":"SUM(الاسكندرية:ادفو!F26)","v":0},{"$f":"SUM(الاسكندرية:ادفو!G26)","v":0},{"$f":"SUM(الاسكندرية:ادفو!H26)","v":0},{"$f":"SUM(الاسكندرية:ادفو!I26)","v":0},{"$f":"SUM(الاسكندرية:ادفو!J26)","v":0},{"$f":"SUM(الاسكندرية:ادفو!K26)","v":0},{"$f":"SUM(الاسكندرية:ادفو!L26)","v":0},{"$f":"SUM(الاسكندرية:ادفو!M26)","v":0},{"$f":"SUM(الاسكندرية:ادفو!N26)","v":0},{"$f":"SUM(الاسكندرية:ادفو!O26)","v":0},{"$f":"SUM(الاسكندرية:ادفو!P26)","v":0},{"$f":"SUM(الاسكندرية:ادفو!Q26)","v":0},{"$f":"SUM(الاسكندرية:ادفو!R26)","v":0},{"$f":"SUM(الاسكندرية:ادفو!S26)","v":0},0]
[24,6222000912501,"منتج 24","كرتونة",{"$f":"SUM(الاسكندرية:ادفو!E27)","v":318},{"$f":"SUM(الاسكندرية:ادفو!F27)","v":0},{"$f":"SUM(الاسكندرية:ادفو!G27)","v":0},{"$f":"SUM(الاسكندرية:ادفو!H27)","v":0},{"$f":"SUM(الاسكندرية:ادفو!I27)","v":0},{"$f":"SUM(الاسكندرية:ادفو!J27)","v":0},{"$f":"SUM(الاسكندرية:ادفو!K27)","v":0},{"$f":"SUM(الاسكندرية:ادفو!L27)","v":0},{"$f":"SUM(الاسكندرية:ادفو!M27)","v":0},{"$f":"SUM(الاسكندرية:ادفو!N27)","v":0},{"$f":"SUM(الاسكندرية:ادفو!O27)","v":0},{"$f":"SUM(الاسكندرية:ادفو!P27)","v":0},{"$f":"SUM(الاسكندرية:ادفو!Q27)","v":0},{"$f":"SUM(الاسكندرية:ادفو!R27)","v":0},{"$f":"SUM(الاسكندرية:ادفو!S27)","v":0},0]
[25,6222000912457,"منتج 25","كرتونة",{"$f":"SUM(الاسكندرية:ادفو!E28)","v":556},{"$f":"SUM(الاسكندرية:ادفو!F28)","v":0},{"$f":"SUM(الاسكندرية:ادفو!G28)","v":0},{"$f":"SUM(الاسكندرية:ادفو!H28)","v":0},{"$f":"SUM(الاسكندرية:ادفو!I28)","v":0},{"$f":"SUM(الاسكندرية:ادفو!J28)","v":0},{"$f":"SUM(الاسكندرية:ادفو!K28)","v":0},{"$f":"SUM(الاسكندرية:ادفو!L28)","v":0},{"$f":"SUM(الاسكندرية:ادفو!M28)","v":0},{"$f":"SUM(الاسكندرية:ادفو!N28)","v":0},{"$f":"SUM(الاسكندرية:ادفو!O28)","v":0},{"$f":"SUM(الاسكندرية:ادفو!P28)","v":0},{"$f":"SUM(الاسكندرية:ادفو!Q28)","v":0},{"$f":"SUM(الاسكندرية:ادفو!R28)","v":0},{"$f":"SUM(الاسكندرية:ادفو!S28)","v":0},0]
[26,6222000901611,"منتج 26","كرتونة",{"$f":"SUM(الاسكندرية:ادفو!E29)","v":7761},{"$f":"SUM(الاسكندرية:ادفو!F29)","v":0},{"$f":"SUM(الاسكندرية:ادفو!G29)","v":0},{"$f":"SUM(الاسكندرية:ادفو!H29)","v":0},{"$f":"SUM(الاسكندرية:ادفو!I29)","v":0},{"$f":"SUM(الاسكندرية:ادفو!J29)","v":0},{"$f":"SUM(الاسكندرية:ادفو!K29)","v":0},{"$f":"SUM(الاسكندرية:ادفو!L29)","v":0},{"$f":"SUM(الاسكندرية:ادفو!M29)","v":0},{"$f":"SUM(الاسكندرية:ادفو!N29)","v":0},{"$f":"SUM(الاسكندرية:ادفو!O29)","v":0},{"$f":"SUM(الاسكندرية:ادفو!P29)","v":0},{"$f":"SUM(الاسكندرية:ادفو!Q29)","v":0},{"$f":"SUM(الاسكندرية:ادفو!R29)","v":0},{"$f":"SUM(الاسكندرية:ادفو!S29)","v":0},0]
[27,6222000909907,"منتج 27","كرتونة",{"$f":"SUM(الاسكندرية:ادفو!E30)","v":1472},{"$f":"SUM(الاسكندرية:ادفو!F30)","v":0},{"$f":"SUM(الاسكندرية:ادفو!G30)","v":0},{"$f":"SUM(الاسكندرية:ادفو!H30)","v":0},{"$f":"SUM(الاسكندرية:ادفو!I30)","v":0},{"$f":"SUM(الاسكندرية:ادفو!J30)","v":0},{"$f":"SUM(الاسكندرية:ادفو!K30)","v":0},{"$f":"SUM(الاسكندرية:ادفو!L30)","v":0},{"$f":"SUM(الاسكندرية:ادفو!M30)","v":0},{"$f":"SUM(الاسكندرية:ادفو!N30)","v":0},{"$f":"SUM(الاسكندرية:ادفو!O30)","v":0},{"$f":"SUM(الاسكندرية:ادفو!P30)","v":0},{"$f":"SUM(الاسكندرية:ادفو!Q30)","v":0},{"$f":"SUM(الاسكندرية:ادفو!R30)","v":0},{"$f":"SUM(الاسكندرية:ادفو!S30)","v":0},0]
[28,6222000911498,"منتج 28","كرتونة",{"$f":"SUM(الاسكندرية:ادفو!E31)","v":2180},{"$f":"SUM(الاسكندرية:ادفو!F31)","v":0},{"$f":"SUM(الاسكندرية:ادفو!G31)","v":0},{"$f":"SUM(الاسكندرية:ادفو!H31)","v":0},{"$f":"SUM(الاسكندرية:ادفو!I31)","v":0},{"$f":"SUM(الاسكندرية:ادفو!J31)","v":0},{"$f":"SUM(الاسكندرية:ادفو!K31)","v":0},{"$f":"SUM(الاسكندرية:ادفو!L31)","v":0},{"$f":"SUM(الاسكندرية:ادفو!M31)","v":0},{"$f":"SUM(الاسكندرية:ادفو!N31)","v":0},{"$f":"SUM(الاسكندرية:ادفو!O31)","v":0},{"$f":"SUM(الاسكندرية:ادفو!P31)","v":0},{"$f":"SUM(الاسكندرية:ادفو!Q31)","v":0},{"$f":"SUM(الاسكندرية:ادفو!R31)","v":0},{"$f":"SUM(الاسكندرية:ادفو!S31)","v":0},0]
[29,"002771","منتج 29","كرتونة",{"$f":"SUM(الاسكندرية:ادفو!E32)","v":42},{"$f":"SUM(الاسكندرية:ادفو!F32)","v":0},{"$f":"SUM(الاسكندرية:ادفو!G32)","v":0},{"$f":"SUM(الاسكندرية:ادفو!H32)","v":0},{"$f":"SUM(الاسكندرية:ادفو!I32)","v":0},{"$f":"SUM(الاسكندرية:ادفو!J32)","v":0},{"$f":"SUM(الاسكندرية:ادفو!K32)","v":0},{"$f":"SUM(الاسكندرية:ادفو!L32)","v":0},{"$f":"SUM(الاسكندرية:ادفو!M32)","v":0},{"$f":"SUM(الاسكندرية:ادفو!N32)","v":0},{"$f":"SUM(الاسكندرية:ادفو!O32)","v":0},{"$f":"SUM(الاسكندرية:ادفو!P32)","v":0},{"$f":"SUM(الاسكندرية:ادفو!Q32)","v":0},{"$f":"SUM(الاسكندرية:ادفو!R32)","v":0},{"$f":"SUM(الاسكندرية:ادفو!S32)","v":0},0]
[30,6222000912778,"منتج 30","كرتونة",{"$f":"SUM(الاسكندرية:ادفو!E33)","v":8117},{"$f":"SUM(الاسكندرية:ادفو!F33)","v":0},{"$f":"SUM(الاسكندرية:ادفو!G33)","v":0},{"$f":"SUM(الاسكندرية:ادفو!H33)","v":0},{"$f":"SUM(الاسكندرية:ادفو!I33)","v":0},{"$f":"SUM(الاسكندرية:ادفو!J33)","v":0},{"$f":"SUM(الاسكندرية:ادفو!K33)","v":0},{"$f":"SUM(الاسكندرية:ادفو!L33)","v":0},{"$f":"SUM(الاسكندرية:ادفو!M33)","v":0},{"$f":"SUM(الاسكندرية:ادفو!N33)","v":0},{"$f":"SUM(الاسكندرية:ادفو!O33)","v":0},{"$f":"SUM(الاسكندرية:ادفو!P33)","v":0},{"$f":"SUM(الاسكندرية:ادفو!Q33)","v":0},{"$f":"SUM(الاسكندرية:ادفو!R33)","v":0},{"$f":"SUM(الاسكندرية:ادفو!S33)","v":0},0]
[31,6222000912822,"منتج 31","كرتونة",{"$f":"SUM(الاسكندرية:ادفو!E34)","v":509},{"$f":"SUM(الاسكندرية:ادفو!F34)","v":0},{"$f":"SUM(الاسكندرية:ادفو!G34)","v":0},{"$f":"SUM(الاسكندرية:ادفو!H34)","v":0},{"$f":"SUM(الاسكندرية:ادفو!I34)","v":0},{"$f":"SUM(الاسكندرية:ادفو!J34)","v":0},{"$f":"SUM(الاسكندرية:ادفو!K34)","v":0},{"$f":"SUM(الاسكندرية:ادفو!L34)","v":0},{"$f":"SUM(الاسكندرية:ادفو!M34)","v":0},{"$f":"SUM(الاسكندرية:ادفو!N34)","v":0},{"$f":"SUM(الاسكندرية:ادفو!O34)","v":0},{"$f":"SUM(الاسكندرية:ادفو!P34)","v":0},{"$f":"SUM(الاسكندرية:ادفو!Q34)","v":0},{"$f":"SUM(الاسكندرية:ادفو!R34)","v":0},{"$f":"SUM(الاسكندرية:ادفو!S34)","v":0},0]
[32,6222000912532,"منتج 32","كرتونة",{"$f":"SUM(الاسكندرية:ادفو!E35)","v":1318},{"$f":"SUM(الاسكندرية:ادفو!F35)","v":0},{"$f":"SUM(الاسكندرية:ادفو!G35)","v":0},{"$f":"SUM(الاسكندرية:ادفو!H35)","v":0},{"$f":"SUM(الاسكندرية:ادفو!I35)","v":0},{"$f":"SUM(الاسكندرية:ادفو!J35)","v":0},{"$f":"SUM(الاسكندرية:ادفو!K35)","v":0},{"$f":"SUM(الاسكندرية:ادفو!L35)","v":0},{"$f":"SUM(الاسكندرية:ادفو!M35)","v":0},{"$f":"SUM(الاسكندرية:ادفو!N35)","v":0},{"$f":"SUM(الاسكندرية:ادفو!O35)","v":0},{"$f":"SUM(الاسكندرية:ادفو!P35)","v":0},{"$f":"SUM(الاسكندرية:ادفو!Q35)","v":0},{"$f":"SUM(الاسكندرية:ادفو!R35)","v":0},{"$f":"SUM(الاسكندرية:ادفو!S35)","v":0},0]
[33,6222000901697,"منتج 33","كرتونة",{"$f":"SUM(الاسكندرية:ادفو!E36)","v":8493},{"$f":"SUM(الاسكندرية:ادفو!F36)","v":0},{"$f":"SUM(الاسكندرية:ادفو!G36)","v":0},{"$f":"SUM(الاسكندرية:ادفو!H36)","v":0},{"$f":"SUM(الاسكندرية:ادفو!I36)","v":0},{"$f":"SUM(الاسكندرية:ادفو!J36)","v":0},{"$f":"SUM(الاسكندرية:ادفو!K36)","v":0},{"$f":"SUM(الاسكندرية:ادفو!L36)","v":0},{"$f":"SUM(الاسكندرية:ادفو!M36)","v":0},{"$f":"SUM(الاسكندرية:ادفو!N36)","v":0},{"$f":"SUM(الاسكندرية:ادفو!O36)","v":0},{"$f":"SUM(الاسكندرية:ادفو!P36)","v":0},{"$f":"SUM(الاسكندرية:ادفو!Q36)","v":0},{"$f":"SUM(الاسكندرية:ادفو!R36)","v":0},{"$f":"SUM(الاسكندرية:ادفو!S36)","v":0},0]
[34,6222000911481,"منتج 34","كرتونة",{"$f":"SUM(الاسكندرية:ادفو!E37)","v":0},{"$f":"SUM(الاسكندرية:ادفو!F37)","v":0},{"$f":"SUM(الاسكندرية:ادفو!G37)","v":0},{"$f":"SUM(الاسكندرية:ادفو!H37)","v":0},{"$f":"SUM(الاسكندرية:ادفو!I37)","v":0},{"$f":"SUM(الاسكندرية:ادفو!J37)","v":0},{"$f":"SUM(الاسكندرية:ادفو!K37)","v":0},{"$f":"SUM(الاسكندرية:ادفو!L37)","v":0},{"$f":"SUM(الاسكندرية:ادفو!M37)","v":0},{"$f":"SUM(الاسكندرية:ادفو!N37)","v":0},{"$f":"SUM(الاسكندرية:ادفو!O37)","v":0},{"$f":"SUM(الاسكندرية:ادفو!P37)","v":0},{"$f":"SUM(الاسكندرية:ادفو!Q37)","v":0},{"$f":"SUM(الاسكندرية:ادفو!R37)","v":0},{"$f":"SUM(الاسكندرية:ادفو!S37)","v":0},0]
[35,6222000908276,"منتج 35","كرتونة",{"$f":"SUM(الاسكندرية:ادفو!E38)","v":2767},{"$f":"SUM(الاسكندرية:ادفو!F38)","v":0},{"$f":"SUM(الاسكندرية:ادفو!G38)","v":0},{"$f":"SUM(الاسكندرية:ادفو!H38)","v":0},{"$f":"SUM(الاسكندرية:ادفو!I38)","v":0},{"$f":"SUM(الاسكندرية:ادفو!J38)","v":0},{"$f":"SUM(الاسكندرية:ادفو!K38)","v":0},{"$f":"SUM(الاسكندرية:ادفو!L38)","v":0},{"$f":"SUM(الاسكندرية:ادفو!M38)","v":0},{"$f":"SUM(الاسكندرية:ادفو!N38)","v":0},{"$f":"SUM(الاسكندرية:ادفو!O38)","v":0},{"$f":"SUM(الاسكندرية:ادفو!P38)","v":0},{"$f":"SUM(الاسكندرية:ادفو!Q38)","v":0},{"$f":"SUM(الاسكندرية:ادفو!R38)","v":0},{"$f":"SUM(الاسكندرية:ادفو!S38)","v":0},0]
[36,6222000909921,"منتج 36","كرتونة",{"$f":"SUM(الاسكندرية:ادفو!E39)","v":94},{"$f":"SUM(الاسكندرية:ادفو!F39)","v":0},{"$f":"SUM(الاسكندرية:ادفو!G39)","v":0},{"$f":"SUM(الاسكندرية:ادفو!H39)","v":0},{"$f":"SUM(الاسكندرية:ادفو!I39)","v":0},{"$f":"SUM(الاسكندرية:ادفو!J39)","v":0},{"$f":"SUM(الاسكندرية:ادفو!K39)","v":0},{"$f":"SUM(الاسكندرية:ادفو!L39)","v":0},{"$f":"SUM(الاسكندرية:ادفو!M39)","v":0},{"$f":"SUM(الاسكندرية:ادفو!N39)","v":0},{"$f":"SUM(الاسكندرية:ادفو!O39)","v":0},{"$f":"SUM(الاسكندرية:ادفو!P39)","v":0},{"$f":"SUM(الاسكندرية:ادفو!Q39)","v":0},{"$f":"SUM(الاسكندرية:ادفو!R39)","v":0},{"$f":"SUM(الاسكندرية:ادفو!S39)","v":0},0]
[37,6222000909839,"منتج 37","كرتونة",{"$f":"SUM(الاسكندرية:ادفو!E40)","v":3842},{"$f":"SUM(الاسكندرية:ادفو!F40)","v":0},{"$f":"SUM(الاسكندرية:ادفو!G40)","v":0},{"$f":"SUM(الاسكندرية:ادفو!H40)","v":0},{"$f":"SUM(الاسكندرية:ادفو!I40)","v":0},{"$f":"SUM(الاسكندرية:ادفو!J40)","v":0},{"$f":"SUM(الاسكندرية:ادفو!K40)","v":0},{"$f":"SUM(الاسكندرية:ادفو!L40)","v":0},{"$f":"SUM(الاسكندرية:ادفو!M40)","v":0},{"$f":"SUM(الاسكندرية:ادفو!N40)","v":0},{"$f":"SUM(الاسكندرية:ادفو!O40)","v":0},{"$f":"SUM(الاسكندرية:ادفو!P40)","v":0},{"$f":"SUM(الاسكندرية:ادفو!Q40)","v":0},{"$f":"SUM(الاسكندرية:ادفو!R40)","v":0},{"$f":"SUM(الاسكندرية:ادفو!S40)","v":0},0]
[38,6222000908825,"منتج 38","كرتونة",{"$f":"SUM(الاسكندرية:ادفو!E41)","v":1072},{"$f":"SUM(الاسكندرية:ادفو!F41)","v":0},{"$f":"SUM(الاسكندرية:ادفو!G41)","v":0},{"$f":"SUM(الاسكندرية:ادفو!H41)","v":0},{"$f":"SUM(الاسكندرية:ادفو!I41)","v":0},{"$f":"SUM(الاسكندرية:ادفو!J41)","v":0},{"$f":"SUM(الاسكندرية:ادفو!K41)","v":0},{"$f":"SUM(الاسكندرية:ادفو!L41)","v":0},{"$f":"SUM(الاسكندرية:ادفو!M41)","v":0},{"$f":"SUM(الاسكندرية:ادفو!N41)","v":0},{"$f":"SUM(الاسكندرية:ادفو!O41)","v":0},{"$f":"SUM(الاسكندرية:ادفو!P41)","v":0},{"$f":"SUM(الاسكندرية:ادفو!Q41)","v":0},{"$f":"SUM(الاسكندرية:ادفو!R41)","v":0},{"$f":"SUM(الاسكندرية:ادفو!S41)","v":0},0]
[39,6222000907637,"منتج 39","كرتونة",{"$f":"SUM(الاسكندرية:ادفو!E42)","v":780},{"$f":"SUM(الاسكندرية:ادفو!F42)","v":0},{"$f":"SUM(الاسكندرية:ادفو!G42)","v":0},{"$f":"SUM(الاسكندرية:ادفو!H42)","v":0},{"$f":"SUM(الاسكندرية:ادفو!I42)","v":0},{"$f":"SUM(الاسكندرية:ادفو!J42)","v":0},{"$f":"SUM(الاسكندرية:ادفو!K42)","v":0},{"$f":"SUM(الاسكندرية:ادفو!L42)","v":0},{"$f":"SUM(الاسكندرية:ادفو!M42)","v":0},{"$f":"SUM(الاسكندرية:ادفو!N42)","v":0},{"$f":"SUM(الاسكندرية:ادفو!O42)","v":0},{"$f":"SUM(الاسكندرية:ادفو!P42)","v":0},{"$f":"SUM(الاسكندرية:ادفو!Q42)","v":0},{"$f":"SUM(الاسكندرية:ادفو!R42)","v":0},{"$f":"SUM(الاسكندرية:ادفو!S42)","v":0},0]
[40,6222000903295,"منتج 40","كرتونة",{"$f":"SUM(الاسكندرية:ادفو!E43)","v":438},{"$f":"SUM(الاسكندرية:ادفو!F43)","v":0},{"$f":"SUM(الاسكندرية:ادفو!G43)","v":0},{"$f":"SUM(الاسكندرية:ادفو!H43)","v":0},{"$f":"SUM(الاسكندرية:ادفو!I43)","v":0},{"$f":"SUM(الاسكندرية:ادفو!J43)","v":0},{"$f":"SUM(الاسكندرية:ادفو!K43)","v":0},{"$f":"SUM(الاسكندرية:ادفو!L43)","v":0},{"$f":"SUM(الاسكندرية:ادفو!M43)","v":0},{"$f":"SUM(الاسكندرية:ادفو!N43)","v":0},{"$f":"SUM(الاسكندرية:ادفو!O43)","v":0},{"$f":"SUM(الاسكندرية:ادفو!P43)","v":0},{"$f":"SUM(الاسكندرية:ادفو!Q43)","v":0},{"$f":"SUM(الاسكندرية:ادفو!R43)","v":0},{"$f":"SUM(الاسكندرية:ادفو!S43)","v":0},0]
[41,6222000912006,"منتج 41","كرتونة",{"$f":"SUM(الاسكندرية:ادفو!E44)","v":1711},{"$f":"SUM(الاسكندرية:ادفو!F44)","v":0},{"$f":"SUM(الاسكندرية:ادفو!G44)","v":0},{"$f":"SUM(الاسكندرية:ادفو!H44)","v":0},{"$f":"SUM(الاسكندرية:ادفو!I44)","v":0},{"$f":"SUM(الاسكندرية:ادفو!J44)","v":0},{"$f":"SUM(الاسكندرية:ادفو!K44)","v":0},{"$f":"SUM(الاسكندرية:ادفو!L44)","v":0},{"$f":"SUM(الاسكندرية:ادفو!M44)","v":0},{"$f":"SUM(الاسكندرية:ادفو!N44)","v":0},{"$f":"SUM(الاسكندرية:ادفو!O44)","v":0},{"$f":"SUM(الاسكندرية:ادفو!P44)","v":0},{"$f":"SUM(الاسكندرية:ادفو!Q44)","v":0},{"$f":"SUM(الاسكندرية:ادفو!R44)","v":0},{"$f":"SUM(الاسكندرية:ادفو!S44)","v":0},0]
[42,6222000911993,"منتج 42","كرتونة",{"$f":"SUM(الاسكندرية:ادفو!E45)","v":1539},{"$f":"SUM(الاسكندرية:ادفو!F45)","v":0},{"$f":"SUM(الاسكندرية:ادفو!G45)","v":0},{"$f":"SUM(الاسكندرية:ادفو!H45)","v":0},{"$f":"SUM(الاسكندرية:ادفو!I45)","v":0},{"$f":"SUM(الاسكندرية:ادفو!J45)","v":0},{"$f":"SUM(الاسكندرية:ادفو!K45)","v":0},{"$f":"SUM(الاسكندرية:ادفو!L45)","v":0},{"$f":"SUM(الاسكندرية:ادفو!M45)","v":0},{"$f":"SUM(الاسكندرية:ادفو!N45)","v":0},{"$f":"SUM(الاسكندرية:ادفو!O45)","v":0},{"$f":"SUM(الاسكندرية:ادفو!P45)","v":0},{"$f":"SUM(الاسكندرية:ادفو!Q45)","v":0},{"$f":"SUM(الاسكندرية:ادفو!R45)","v":0},{"$f":"SUM(الاسكندرية:ادفو!S45)","v":0},0]
[43,6222000912013,"منتج 43","كرتونة",{"$f":"SUM(الاسكندرية:ادفو!E46)","v":1669},{"$f":"SUM(الاسكندرية:ادفو!F46)","v":0},{"$f":"SUM(الاسكندرية:ادفو!G46)","v":0},{"$f":"SUM(الاسكندرية:ادفو!H46)","v":0},{"$f":"SUM(الاسكندرية:ادفو!I46)","v":0},{"$f":"SUM(الاسكندرية:ادفو!J46)","v":0},{"$f":"SUM(الاسكندرية:ادفو!K46)","v":0},{"$f":"SUM(الاسكندرية:ادفو!L46)","v":0},{"$f":"SUM(الاسكندرية:ادفو!M46)","v":0},{"$f":"SUM(الاسكندرية:ادفو!N46)","v":0},{"$f":"SUM(الاسكندرية:ادفو!O46)","v":0},{"$f":"SUM(الاسكندرية:ادفو!P46)","v":0},{"$f":"SUM(الاسكندرية:ادفو!Q46)","v":0},{"$f":"SUM(الاسكندرية:ادفو!R46)","v":0},{"$f":"SUM(الاسكندرية:ادفو!S46)","v":0},0]
[44,6222000964197,"منتج 44","كرتونة",{"$f":"SUM(الاسكندرية:ادفو!E47)","v":410},{"$f":"SUM(الاسكندرية:ادفو!F47)","v":0},{"$f":"SUM(الاسكندرية:ادفو!G47)","v":0},{"$f":"SUM(الاسكندرية:ادفو!H47)","v":0},{"$f":"SUM(الاسكندرية:ادفو!I47)","v":0},{"$f":"SUM(الاسكندرية:ادفو!J47)","v":0},{"$f":"SUM(الاسكندرية:ادفو!K47)","v":0},{"$f":"SUM(الاسكندرية:ادفو!L47)","v":0},{"$f":"SUM(الاسكندرية:ادفو!M47)","v":0},{"$f":"SUM(الاسكندرية:ادفو!N47)","v":0},{"$f":"SUM(الاسكندرية:ادفو!O47)","v":0},{"$f":"SUM(الاسكندرية:ادفو!P47)","v":0},{"$f":"SUM(الاسكندرية:ادفو!Q47)","v":0},{"$f":"SUM(الاسكندرية:ادفو!R47)","v":0},{"$f":"SUM(الاسكندرية:ادفو!S47)","v":0},0]
[45,6222000906630,"منتج 45","كرتونة",{"$f":"SUM(الاسكندرية:ادفو!E48)","v":1267},{"$f":"SUM(الاسكندرية:ادفو!F48)","v":0},{"$f":"SUM(الاسكندرية:ادفو!G48)","v":0},{"$f":"SUM(الاسكندرية:ادفو!H48)","v":0},{"$f":"SUM(الاسكندرية:ادفو!I48)","v":0},{"$f":"SUM(الاسكندرية:ادفو!J48)","v":0},{"$f":"SUM(الاسكندرية:ادفو!K48)","v":0},{"$f":"SUM(الاسكندرية:ادفو!L48)","v":0},{"$f":"SUM(الاسكندرية:ادفو!M48)","v":0},{"$f":"SUM(الاسكندرية:ادفو!N48)","v":0},{"$f":"SUM(الاسكندرية:ادفو!O48)","v":0},{"$f":"SUM(الاسكندرية:ادفو!P48)","v":0},{"$f":"SUM(الاسكندرية:ادفو!Q48)","v":0},{"$f":"SUM(الاسكندرية:ادفو!R48)","v":0},{"$f":"SUM(الاسكندرية:ادفو!S48)","v":0},0]
[46,6222000902519,"منتج 46","كرتونة",{"$f":"SUM(الاسكندرية:ادفو!E49)","v":1091},{"$f":"SUM(الاسكندرية:ادفو!F49)","v":0},{"$f":"SUM(الاسكندرية:ادفو!G49)","v":0},{"$f":"SUM(الاسكندرية:ادفو!H49)","v":0},{"$f":"SUM(الاسكندرية:ادفو!I49)","v":0},{"$f":"SUM(الاسكندرية:ادفو!J49)","v":0},{"$f":"SUM(الاسكندرية:ادفو!K49)","v":0},{"$f":"SUM(الاسكندرية:ادفو!L49)","v":0},{"$f":"SUM(الاسكندرية:ادفو!M49)","v":0},{"$f":"SUM(الاسكندرية:ادفو!N49)","v":0},{"$f":"SUM(الاسكندرية:ادفو!O49)","v":0},{"$f":"SUM(الاسكندرية:ادفو!P49)","v":0},{"$f":"SUM(الاسكندرية:ادفو!Q49)","v":0},{"$f":"SUM(الاسكندرية:ادفو!R49)","v":0},{"$f":"SUM(الاسكندرية:ادفو!S49)","v":0},0]
[47,6222000902557,"منتج 47","كرتونة",{"$f":"SUM(الاسكندرية:ادفو!E50)","v":2611},{"$f":"SUM(الاسكندرية:ادفو!F50)","v":0},{"$f":"SUM(الاسكندرية:ادفو!G50)","v":0},{"$f":"SUM(الاسكندرية:ادفو!H50)","v":0},{"$f":"SUM(الاسكندرية:ادفو!I50)","v":0},{"$f":"SUM(الاسكندرية:ادفو!J50)","v":0},{"$f":"SUM(الاسكندرية:ادفو!K50)","v":0},{"$f":"SUM(الاسكندرية:ادفو!L50)","v":0},{"$f":"SUM(الاسكندرية:ادفو!M50)","v":0},{"$f":"SUM(الاسكندرية:ادفو!N50)","v":0},{"$f":"SUM(الاسكندرية:ادفو!O50)","v":0},{"$f":"SUM(الاسكندرية:ادفو!P50)","v":0},{"$f":"SUM(الاسكندرية:ادفو!Q50)","v":0},{"$f":"SUM(الاسكندرية:ادفو!R50)","v":0},{"$f":"SUM(الاسكندرية:ادفو!S50)","v":0},0]
[48,6222000902564,"منتج 48","كرتونة",{"$f":"SUM(الاسكندرية:ادفو!E51)","v":2578},{"$f":"SUM(الاسكندرية:ادفو!F51)","v":0},{"$f":"SUM(الاسكندرية:ادفو!G51)","v":0},{"$f":"SUM(الاسكندرية:ادفو!H51)","v":0},{"$f":"SUM(الاسكندرية:ادفو!I51)","v":0},{"$f":"SUM(الاسكندرية:ادفو!J51)","v":0},{"$f":"SUM(الاسكندرية:ادفو!K51)","v":0},{"$f":"SUM(الاسكندرية:ادفو!L51)","v":0},{"$f":"SUM(الاسكندرية:ادفو!M51)","v":0},{"$f":"SUM(الاسكندرية:ادفو!N51)","v":0},{"$f":"SUM(الاسكندرية:ادفو!O51)","v":0},{"$f":"SUM(الاسكندرية:ادفو!P51)","v":0},{"$f":"SUM(الاسكندرية:ادفو!Q51)","v":0},{"$f":"SUM(الاسكندرية:ادفو!R51)","v":0},{"$f":"SUM(الاسكندرية:ادفو!S51)","v":0},0]
[49,6222000910033,"منتج 49","كرتونة",{"$f":"SUM(الاسكندرية:ادفو!E52)","v":62},{"$f":"SUM(الاسكندرية:ادفو!F52)","v":0},{"$f":"SUM(الاسكندرية:ادفو!G52)","v":0},{"$f":"SUM(الاسكندرية:ادفو!H52)","v":0},{"$f":"SUM(الاسكندرية:ادفو!I52)","v":0},{"$f":"SUM(الاسكندرية:ادفو!J52)","v":0},{"$f":"SUM(الاسكندرية:ادفو!K52)","v":0},{"$f":"SUM(الاسكندرية:ادفو!L52)","v":0},{"$f":"SUM(الاسكندرية:ادفو!M52)","v":0},{"$f":"SUM(الاسكندرية:ادفو!N52)","v":0},{"$f":"SUM(الاسكندرية:ادفو!O52)","v":0},{"$f":"SUM(الاسكندرية:ادفو!P52)","v":0},{"$f":"SUM(الاسكندرية:ادفو!Q52)","v":0},{"$f":"SUM(الاسكندرية:ادفو!R52)","v":0},{"$f":"SUM(الاسكندرية:ادفو!S52)","v":0},0]
[50,6222000910026,"منتج 50","كرتونة",{"$f":"SUM(الاسكندرية:ادفو!E53)","v":0},{"$f":"SUM(الاسكندرية:ادفو!F53)","v":0},{"$f":"SUM(الاسكندرية:ادفو!G53)","v":0},{"$f":"SUM(الاسكندرية:ادفو!H53)","v":0},{"$f":"SUM(الاسكندرية:ادفو!I53)","v":0},{"$f":"SUM(الاسكندرية:ادفو!J53)","v":0},{"$f":"SUM(الاسكندرية:ادفو!K53)","v":0},{"$f":"SUM(الاسكندرية:ادفو!L53)","v":0},{"$f":"SUM(الاسكندرية:ادفو!M53)","v":0},{"$f":"SUM(الاسكندرية:ادفو!N53)","v":0},{"$f":"SUM(الاسكندرية:ادفو!O53)","v":0},{"$f":"SUM(الاسكندرية:ادفو!P53)","v":0},{"$f":"SUM(الاسكندرية:ادفو!Q53)","v":0},{"$f":"SUM(الاسكندرية:ادفو!R53)","v":0},{"$f":"SUM(الاسكندرية:ادفو!S53)","v":0},0]
[51,6222000909945,"منتج 51","كرتونة",{"$f":"SUM(الاسكندرية:ادفو!E54)","v":46},{"$f":"SUM(الاسكندرية:ادفو!F54)","v":0},{"$f":"SUM(الاسكندرية:ادفو!G54)","v":0},{"$f":"SUM(الاسكندرية:ادفو!H54)","v":0},{"$f":"SUM(الاسكندرية:ادفو!I54)","v":0},{"$f":"SUM(الاسكندرية:ادفو!J54)","v":0},{"$f":"SUM(الاسكندرية:ادفو!K54)","v":0},{"$f":"SUM(الاسكندرية:ادفو!L54)","v":0},{"$f":"SUM(الاسكندرية:ادفو!M54)","v":0},{"$f":"SUM(الاسكندرية:ادفو!N54)","v":0},{"$f":"SUM(الاسكندرية:ادفو!O54)","v":0},{"$f":"SUM(الاسكندرية:ادفو!P54)","v":0},{"$f":"SUM(الاسكندرية:ادفو!Q54)","v":0},{"$f":"SUM(الاسكندرية:ادفو!R54)","v":0},{"$f":"SUM(الاسكندرية:ادفو!S54)","v":0},0]
[52,6222000910200,"منتج 52","كرتونة",{"$f":"SUM(الاسكندرية:ادفو!E55)","v":20848},{"$f":"SUM(الاسكندرية:ادفو!F55)","v":0},{"$f":"SUM(الاسكندرية:ادفو!G55)","v":0},{"$f":"SUM(الاسكندرية:ادفو!H55)","v":0},{"$f":"SUM(الاسكندرية:ادفو!I55)","v":0},{"$f":"SUM(الاسكندرية:ادفو!J55)","v":0},{"$f":"SUM(الاسكندرية:ادفو!K55)","v":0},{"$f":"SUM(الاسكندرية:ادفو!L55)","v":0},{"$f":"SUM(الاسكندرية:ادفو!M55)","v":0},{"$f":"SUM(الاسكندرية:ادفو!N55)","v":0},{"$f":"SUM(الاسكندرية:ادفو!O55)","v":0},{"$f":"SUM(الاسكندرية:ادفو!P55)","v":0},{"$f":"SUM(الاسكندرية:ادفو!Q55)","v":0},{"$f":"SUM(الاسكندرية:ادفو!R55)","v":0},{"$f":"SUM(الاسكندرية:ادفو!S55)","v":0},0]
[53,6222000910514,"منتج 53","كرتونة",{"$f":"SUM(الاسكندرية:ادفو!E56)","v":13413},{"$f":"SUM(الاسكندرية:ادفو!F56)","v":0},{"$f":"SUM(الاسكندرية:ادفو!G56)","v":0},{"$f":"SUM(الاسكندرية:ادفو!H56)","v":0},{"$f":"SUM(الاسكندرية:ادفو!I56)","v":0},{"$f":"SUM(الاسكندرية:ادفو!J56)","v":0},{"$f":"SUM(الاسكندرية:ادفو!K56)","v":0},{"$f":"SUM(الاسكندرية:ادفو!L56)","v":0},{"$f":"SUM(الاسكندرية:ادفو!M56)","v":0},{"$f":"SUM(الاسكندرية:ادفو!N56)","v":0},{"$f":"SUM(الاسكندرية:ادفو!O56)","v":0},{"$f":"SUM(الاسكندرية:ادفو!P56)","v":0},{"$f":"SUM(الاسكندرية:ادفو!Q56)","v":0},{"$f":"SUM(الاسكندرية:ادفو!R56)","v":0},{"$f":"SUM(الاسكندرية:ادفو!S56)","v":0},0]
[54,6222000909976,"منتج 54","كرتونة",{"$f":"SUM(الاسكندرية:ادفو!E57)","v":15825},{"$f":"SUM(الاسكندرية:ادفو!F57)","v":0},{"$f":"SUM(الاسكندرية:ادفو!G57)","v":0},{"$f":"SUM(الاسكندرية:ادفو!H57)","v":0},{"$f":"SUM(الاسكندرية:ادفو!I57)","v":0},{"$f":"SUM(الاسكندرية:ادفو!J57)","v":0},{"$f":"SUM(الاسكندرية:ادفو!K57)","v":0},{"$f":"SUM(الاسكندرية:ادفو!L57)","v":0},{"$f":"SUM(الاسكندرية:ادفو!M57)","v":0},{"$f":"SUM(الاسكندرية:ادفو!N57)","v":0},{"$f":"SUM(الاسكندرية:ادفو!O57)","v":0},{"$f":"SUM(الاسكندرية:ادفو!P57)","v":0},{"$f":"SUM(الاسكندرية:ادفو!Q57)","v":0},{"$f":"SUM(الاسكندرية:ادفو!R57)","v":0},{"$f":"SUM(الاسكندرية:ادفو!S57)","v":0},0]
[55,6222000909983,"منتج 55","كرتونة",{"$f":"SUM(الاسكندرية:ادفو!E58)","v":10284},{"$f":"SUM(الاسكندرية:ادفو!F58)","v":0},{"$f":"SUM(الاسكندرية:ادفو!G58)","v":0},{"$f":"SUM(الاسكندرية:ادفو!H58)","v":0},{"$f":"SUM(الاسكندرية:ادفو!I58)","v":0},{"$f":"SUM(الاسكندرية:ادفو!J58)","v":0},{"$f":"SUM(الاسكندرية:ادفو!K58)","v":0},{"$f":"SUM(الاسكندرية:ادفو!L58)","v":0},{"$f":"SUM(الاسكندرية:ادفو!M58)","v":0},{"$f":"SUM(الاسكندرية:ادفو!N58)","v":0},{"$f":"SUM(الاسكندرية:ادفو!O58)","v":0},{"$f":"SUM(الاسكندرية:ادفو!P58)","v":0},{"$f":"SUM(الاسكندرية:ادفو!Q58)","v":0},{"$f":"SUM(الاسكندرية:ادفو!R58)","v":0},{"$f":"SUM(الاسكندرية:ادفو!S58)","v":0},0]
[56,6222000909969,"منتج 56","كرتونة",{"$f":"SUM(الاسكندرية:ادفو!E59)","v":5901},{"$f":"SUM(الاسكندرية:ادفو!F59)","v":0},{"$f":"SUM(الاسكندرية:ادفو!G59)","v":0},{"$f":"SUM(الاسكندرية:ادفو!H59)","v":0},{"$f":"SUM(الاسكندرية:ادفو!I59)","v":0},{"$f":"SUM(الاسكندرية:ادفو!J59)","v":0},{"$f":"SUM(الاسكندرية:ادفو!K59)","v":0},{"$f":"SUM(الاسكندرية:ادفو!L59)","v":0},{"$f":"SUM(الاسكندرية:ادفو!M59)","v":0},{"$f":"SUM(الاسكندرية:ادفو!N59)","v":0},{"$f":"SUM(الاسكندرية:ادفو!O59)","v":0},{"$f":"SUM(الاسكندرية:ادفو!P59)","v":0},{"$f":"SUM(الاسكندرية:ادفو!Q59)","v":0},{"$f":"SUM(الاسكندرية:ادفو!R59)","v":0},{"$f":"SUM(الاسكندرية:ادفو!S59)","v":0},0]
[57,622200097116,"منتج 57","كرتونة",{"$f":"SUM(الاسكندرية:ادفو!E60)","v":8961},{"$f":"SUM(الاسكندرية:ادفو!F60)","v":0},{"$f":"SUM(الاسكندرية:ادفو!G60)","v":0},{"$f":"SUM(الاسكندرية:ادفو!H60)","v":0},{"$f":"SUM(الاسكندرية:ادفو!I60)","v":0},{"$f":"SUM(الاسكندرية:ادفو!J60)","v":0},{"$f":"SUM(الاسكندرية:ادفو!K60)","v":0},{"$f":"SUM(الاسكندرية:ادفو!L60)","v":0},{"$f":"SUM(الاسكندرية:ادفو!M60)","v":0},{"$f":"SUM(الاسكندرية:ادفو!N60)","v":0},{"$f":"SUM(الاسكندرية:ادفو!O60)","v":0},{"$f":"SUM(الاسكندرية:ادفو!P60)","v":0},{"$f":"SUM(الاسكندرية:ادفو!Q60)","v":0},{"$f":"SUM(الاسكندرية:ادفو!R60)","v":0},{"$f":"SUM(الاسكندرية:ادفو!S60)","v":0},0]
[58,6222000912372,"منتج 58","كرتونة",{"$f":"SUM(الاسكندرية:ادفو!E61)","v":9242},{"$f":"SUM(الاسكندرية:ادفو!F61)","v":0},{"$f":"SUM(الاسكندرية:ادفو!G61)","v":0},{"$f":"SUM(الاسكندرية:ادفو!H61)","v":0},{"$f":"SUM(الاسكندرية:ادفو!I61)","v":0},{"$f":"SUM(الاسكندرية:ادفو!J61)","v":0},{"$f":"SUM(الاسكندرية:ادفو!K61)","v":0},{"$f":"SUM(الاسكندرية:ادفو!L61)","v":0},{"$f":"SUM(الاسكندرية:ادفو!M61)","v":0},{"$f":"SUM(الاسكندرية:ادفو!N61)","v":0},{"$f":"SUM(الاسكندرية:ادفو!O61)","v":0},{"$f":"SUM(الاسكندرية:ادفو!P61)","v":0},{"$f":"SUM(الاسكندرية:ادفو!Q61)","v":0},{"$f":"SUM(الاسكندرية:ادفو!R61)","v":0},{"$f":"SUM(الاسكندرية:ادفو!S61)","v":0},0]
[59,6222000912488,"منتج 59","كرتونة",{"$f":"SUM(الاسكندرية:ادفو!E62)","v":9779},{"$f":"SUM(الاسكندرية:ادفو!F62)","v":0},{"$f":"SUM(الاسكندرية:ادفو!G62)","v":0},{"$f":"SUM(الاسكندرية:ادفو!H62)","v":0},{"$f":"SUM(الاسكندرية:ادفو!I62)","v":0},{"$f":"SUM(الاسكندرية:ادفو!J62)","v":0},{"$f":"SUM(الاسكندرية:ادفو!K62)","v":0},{"$f":"SUM(الاسكندرية:ادفو!L62)","v":0},{"$f":"SUM(الاسكندرية:ادفو!M62)","v":0},{"$f":"SUM(الاسكندرية:ادفو!N62)","v":0},{"$f":"SUM(الاسكندرية:ادفو!O62)","v":0},{"$f":"SUM(الاسكندرية:ادفو!P62)","v":0},{"$f":"SUM(الاسكندرية:ادفو!Q62)","v":0},{"$f":"SUM(الاسكندرية:ادفو!R62)","v":0},{"$f":"SUM(الاسكندرية:ادفو!S62)","v":0},0]
[60,6222000914383,"منتج 60","كرتونة",{"$f":"SUM(الاسكندرية:ادفو!E63)","v":655},{"$f":"SUM(الاسكندرية:ادفو!F63)","v":0},{"$f":"SUM(الاسكندرية:ادفو!G63)","v":0},{"$f":"SUM(الاسكندرية:ادفو!H63)","v":0},{"$f":"SUM(الاسكندرية:ادفو!I63)","v":0},{"$f":"SUM(الاسكندرية:ادفو!J63)","v":0},{"$f":"SUM(الاسكندرية:ادفو!K63)","v":0},{"$f":"SUM(الاسكندرية:ادفو!L63)","v":0},{"$f":"SUM(الاسكندرية:ادفو!M63)","v":0},{"$f":"SUM(الاسكندرية:ادفو!N63)","v":0},{"$f":"SUM(الاسكندرية:ادفو!O63)","v":0},{"$f":"SUM(الاسكندرية:ادفو!P63)","v":0},{"$f":"SUM(الاسكندرية:ادفو!Q63)","v":0},{"$f":"SUM(الاسكندرية:ادفو!R63)","v":0},{"$f":"SUM(الاسكندرية:ادفو!S63)","v":0},0]
[61,6222000914369,"منتج 61","كرتونة",{"$f":"SUM(الاسكندرية:ادفو!E64)","v":60},{"$f":"SUM(الاسكندرية:ادفو!F64)","v":0},{"$f":"SUM(الاسكندرية:ادفو!G64)","v":0},{"$f":"SUM(الاسكندرية:ادفو!H64)","v":0},{"$f":"SUM(الاسكندرية:ادفو!I64)","v":0},{"$f":"SUM(الاسكندرية:ادفو!J64)","v":0},{"$f":"SUM(الاسكندرية:ادفو!K64)","v":0},{"$f":"SUM(الاسكندرية:ادفو!L64)","v":0},{"$f":"SUM(الاسكندرية:ادفو!M64)","v":0},{"$f":"SUM(الاسكندرية:ادفو!N64)","v":0},{"$f":"SUM(الاسكندرية:ادفو!O64)","v":0},{"$f":"SUM(الاسكندرية:ادفو!P64)","v":0},{"$f":"SUM(الاسكندرية:ادفو!Q64)","v":0},{"$f":"SUM(الاسكندرية:ادفو!R64)","v":0},{"$f":"SUM(الاسكندرية:ادفو!S64)","v":0},0]
[62,6222000914376,"منتج 62","كرتونة",{"$f":"SUM(الاسكندرية:ادفو!E65)","v":179},{"$f":"SUM(الاسكندرية:ادفو!F65)","v":0},{"$f":"SUM(الاسكندرية:ادفو!G65)","v":0},{"$f":"SUM(الاسكندرية:ادفو!H65)","v":0},{"$f":"SUM(الاسكندرية:ادفو!I65)","v":0},{"$f":"SUM(الاسكندرية:ادفو!J65)","v":0},{"$f":"SUM(الاسكندرية:ادفو!K65)","v":0},{"$f":"SUM(الاسكندرية:ادفو!L65)","v":0},{"$f":"SUM(الاسكندرية:ادفو!M65)","v":0},{"$f":"SUM(الاسكندرية:ادفو!N65)","v":0},{"$f":"SUM(الاسكندرية:ادفو!O65)","v":0},{"$f":"SUM(الاسكندرية:ادفو!P65)","v":0},{"$f":"SUM(الاسكندرية:ادفو!Q65)","v":0},{"$f":"SUM(الاسكندرية:ادفو!R65)","v":0},{"$f":"SUM(الاسكندرية:ادفو!S65)","v":0},0]
[63,6222000912365,"منتج 63","كرتونة",{"$f":"SUM(الاسكندرية:ادفو!E66)","v":1317},{"$f":"SUM(الاسكندرية:ادفو!F66)","v":0},{"$f":"SUM(الاسكندرية:ادفو!G66)","v":0},{"$f":"SUM(الاسكندرية:ادفو!H66)","v":0},{"$f":"SUM(الاسكندرية:ادفو!I66)","v":0},{"$f":"SUM(الاسكندرية:ادفو!J66)","v":0},{"$f":"SUM(الاسكندرية:ادفو!K66)","v":0},{"$f":"SUM(الاسكندرية:ادفو!L66)","v":0},{"$f":"SUM(الاسكندرية:ادفو!M66)","v":0},{"$f":"SUM(الاسكندرية:ادفو!N66)","v":0},{"$f":"SUM(الاسكندرية:ادفو!O66)","v":0},{"$f":"SUM(الاسكندرية:ادفو!P66)","v":0},{"$f":"SUM(الاسكندرية:ادفو!Q66)","v":0},{"$f":"SUM(الاسكندرية:ادفو!R66)","v":0},{"$f":"SUM(الاسكندرية:ادفو!S66)","v":0},0]
[64,6222000902083,"منتج 64","كرتونة",{"$f":"SUM(الاسكندرية:ادفو!E67)","v":578},{"$f":"SUM(الاسكندرية:ادفو!F67)","v":0},{"$f":"SUM(الاسكندرية:ادفو!G67)","v":0},{"$f":"SUM(الاسكندرية:ادفو!H67)","v":0},{"$f":"SUM(الاسكندرية:ادفو!I67)","v":0},{"$f":"SUM(الاسكندرية:ادفو!J67)","v":0},{"$f":"SUM(الاسكندرية:ادفو!K67)","v":0},{"$f":"SUM(الاسكندرية:ادفو!L67)","v":0},{"$f":"SUM(الاسكندرية:ادفو!M67)","v":0},{"$f":"SUM(الاسكندرية:ادفو!N67)","v":0},{"$f":"SUM(الاسكندرية:ادفو!O67)","v":0},{"$f":"SUM(الاسكندرية:ادفو!P67)","v":0},{"$f":"SUM(الاسكندرية:ادفو!Q67)","v":0},{"$f":"SUM(الاسكندرية:ادفو!R67)","v":0},{"$f":"SUM(الاسكندرية:ادفو!S67)","v":0},0]
[65,6222000913904,"منتج 65","كرتونة",{"$f":"SUM(الاسكندرية:ادفو!E68)","v":401},{"$f":"SUM(الاسكندرية:ادفو!F68)","v":0},{"$f":"SUM(الاسكندرية:ادفو!G68)","v":0},{"$f":"SUM(الاسكندرية:ادفو!H68)","v":0},{"$f":"SUM(الاسكندرية:ادفو!I68)","v":0},{"$f":"SUM(الاسكندرية:ادفو!J68)","v":0},{"$f":"SUM(الاسكندرية:ادفو!K68)","v":0},{"$f":"SUM(الاسكندرية:ادفو!L68)","v":0},{"$f":"SUM(الاسكندرية:ادفو!M68)","v":0},{"$f":"SUM(الاسكندرية:ادفو!N68)","v":0},{"$f":"SUM(الاسكندرية:ادفو!O68)","v":0},{"$f":"SUM(الاسكندرية:ادفو!P68)","v":0},{"$f":"SUM(الاسكندرية:ادفو!Q68)","v":0},{"$f":"SUM(الاسكندرية:ادفو!R68)","v":0},{"$f":"SUM(الاسكندرية:ادفو!S68)","v":0},0]
[66,"EG-670026743-2453","منتج 66","كرتونة",{"$f":"SUM(الاسكندرية:ادفو!E69)","v":28},{"$f":"SUM(الاسكندرية:ادفو!F69)","v":0},{"$f":"SUM(الاسكندرية:ادفو!G69)","v":0},{"$f":"SUM(الاسكندرية:ادفو!H69)","v":0},{"$f":"SUM(الاسكندرية:ادفو!I69)","v":0},{"$f":"SUM(الاسكندرية:ادفو!J69)","v":0},{"$f":"SUM(الاسكندرية:ادفو!K69)","v":0},{"$f":"SUM(الاسكندرية:ادفو!L69)","v":0},{"$f":"SUM(الاسكندرية:ادفو!M69)","v":0},{"$f":"SUM(الاسكندرية:ادفو!N69)","v":0},{"$f":"SUM(الاسكندرية:ادفو!O69)","v":0},{"$f":"SUM(الاسكندرية:ادفو!P69)","v":0},{"$f":"SUM(الاسكندرية:ادفو!Q69)","v":0},{"$f":"SUM(الاسكندرية:ادفو!R69)","v":0},{"$f":"SUM(الاسكندرية:ادفو!S69)","v":0},{"$f":"SUM(F69:S69)","v":0}]
[67,6222000915243,"منتج 67","كرتونة",{"$f":"SUM(الاسكندرية:ادفو!E70)","v":421},{"$f":"SUM(الاسكندرية:ادفو!F70)","v":0},{"$f":"SUM(الاسكندرية:ادفو!G70)","v":0},{"$f":"SUM(الاسكندرية:ادفو!H70)","v":0},{"$f":"SUM(الاسكندرية:ادفو!I70)","v":0},{"$f":"SUM(الاسكندرية:ادفو!J70)","v":0},{"$f":"SUM(الاسكندرية:ادفو!K70)","v":0},{"$f":"SUM(الاسكندرية:ادفو!L70)","v":0},{"$f":"SUM(الاسكندرية:ادفو!M70)","v":0},{"$f":"SUM(الاسكندرية:ادفو!N70)","v":0},{"$f":"SUM(الاسكندرية:ادفو!O70)","v":0},{"$f":"SUM(الاسكندرية:ادفو!P70)","v":0},{"$f":"SUM(الاسكندرية:ادفو!Q70)","v":0},{"$f":"SUM(الاسكندرية:ادفو!R70)","v":0},{"$f":"SUM(الاسكندرية:ادفو!S70)","v":0},0]
[68,6888000909953,"منتج 68","كرتونة",{"$f":"SUM(الاسكندرية:ادفو!E71)","v":4163},{"$f":"SUM(الاسكندرية:ادفو!F71)","v":0},{"$f":"SUM(الاسكندرية:ادفو!G71)","v":0},{"$f":"SUM(الاسكندرية:ادفو!H71)","v":0},{"$f":"SUM(الاسكندرية:ادفو!I71)","v":0},{"$f":"SUM(الاسكندرية:ادفو!J71)","v":0},{"$f":"SUM(الاسكندرية:ادفو!K71)","v":0},{"$f":"SUM(الاسكندرية:ادفو!L71)","v":0},{"$f":"SUM(الاسكندرية:ادفو!M71)","v":0},{"$f":"SUM(الاسكندرية:ادفو!N71)","v":0},{"$f":"SUM(الاسكندرية:ادفو!O71)","v":0},{"$f":"SUM(الاسكندرية:ادفو!P71)","v":0},{"$f":"SUM(الاسكندرية:ادفو!Q71)","v":0},{"$f":"SUM(الاسكندرية:ادفو!R71)","v":0},{"$f":"SUM(الاسكندرية:ادفو!S71)","v":0},{"$f":"SUM(F71:S71)","v":0}]
["الاجمالى",null,null,null,{"$f":"SUM(الاسكندرية:ادفو!E72)","v":203100},{"$f":"SUM(الاسكندرية:ادفو!F72)","v":0},{"$f":"SUM(الاسكندرية:ادفو!G72)","v":0},{"$f":"SUM(الاسكندرية:ادفو!H72)","v":0},{"$f":"SUM(الاسكندرية:ادفو!I72)","v":0},{"$f":"SUM(الاسكندرية:ادفو!J72)","v":0},{"$f":"SUM(الاسكندرية:ادفو!K72)","v":0},{"$f":"SUM(الاسكندرية:ادفو!L72)","v":0},{"$f":"SUM(الاسكندرية:ادفو!M72)","v":0},{"$f":"SUM(الاسكندرية:ادفو!N72)","v":0},{"$f":"SUM(الاسكندرية:ادفو!O72)","v":0},{"$f":"SUM(الاسكندرية:ادفو!P72)","v":0},{"$f":"SUM(الاسكندرية:ادفو!Q72)","v":0},{"$f":"SUM(الاسكندرية:ادفو!R72)","v":0},{"$f":"SUM(الاسكندرية:ادفو!S72)","v":0},{"$f":"SUM(F72:S72)","v":0}]
[]
[null,null,null,null,null,89,189,309,669,239,566,1078,998,2012,1791,1700.5,26921.5,142408,24130,203100]
[]
[]
[]
[]
[]
[null,null,null,null,null,null,null,null,null,"."]

{"sheet":"الاسكندرية","index":1,"n_rows":72,"n_cols":20,"rows_kept":72,"cut":false,"hidden":false,"merged":[[0,0,0,19],[1,5,1,18],[1,19,2,19],[71,0,71,3],[1,4,2,4],[1,0,2,0],[1,1,2,1],[1,2,2,2],[1,3,2,3]]}
["رصيد توكيل (         الاسكندية         ) عن يوم (                8-2-2025                  )"]
["م","الكود","الصنف","الوحدة","الرصيد\n الدفترى\nبالكرتونة\n ",null,null,null,null,null,null,null,null,null,null,null,null,null,null,"الرصيد\n الفعلى\nبالكرتونة\n"]
[null,null,null,null,null,"2024-01-01","2024-02-01","2024-03-01","2024-04-01","2024-05-01","2024-06-01","2024-07-01","2024-08-01","2024-09-01","2024-10-01","2024-11-01","2024-12-01","2025-01-01","2025-02-01"]
[1,6222000901529,"منتج 1","كرتونة",263,null,null,null,null,null,null,null,null,null,null,null,null,null,null,{"$f":"SUM(F4:S4)","v":0}]
[2,6222000901536,"منتج 2","كرتونة",264,null,null,null,null,null,null,null,null,null,null,null,null,null,null,{"$f":"SUM(F5:S5)","v":0}]
[3,6222000911733,"منتج 3","كرتونة",642,null,null,null,null,null,null,null,null,null,null,null,null,null,null,0]
[4,6222000911764,"منتج 4","كرتونة",170,null,null,null,null,null,null,null,null,null,null,null,null,null,null,0]
[5,"00743","منتج 5","كرتونة",1,null,null,null,null,null,null,null,null,null,null,null,null,null,null,0]
[6,6222000901758,"منتج 6","كرتونة",77,null,null,null,null,null,null,null,null,null,null,null,null,null,null,0]
[7,6222000912020,"منتج 7","كرتونة",123,null,null,null,null,null,null,null,null,null,null,null,null,null,null,0]
[8,6222000909815,"منتج 8","كرتونة",773,null,null,null,null,null,null,null,null,null,null,null,null,null,null,0]
[9,6222000908610,"منتج 9","كرتونة",94,null,null,null,null,null,null,null,null,null,null,null,null,null,null,0]
[10,6222000909891,"منتج 10","كرتونة",0,null,null,null,null,null,null,null,null,null,null,null,null,null,null,0]
[11,6222000911757,"منتج 11","كرتونة",0,null,null,null,null,null,null,null,null,null,null,null,null,null,null,0]
[12,"00744","منتج 12","كرتونة",214,null,null,null,null,null,null,null,null,null,null,null,null,null,null,0]
[13,6222000901642,"منتج 13","كرتونة",46,null,null,null,null,null,null,null,null,null,null,null,null,null,null,0]
[14,6222000912037,"منتج 14","كرتونة",139,null,null,null,null,null,null,null,null,null,null,null,null,null,null,0]
[15,6222000909808,"منتج 15","كرتونة",130,null,null,null,null,null,null,null,null,null,null,null,null,null,null,0]
[16,6222000905268,"منتج 16","كرتونة",0,null,null,null,null,null,null,null,null,null,null,null,null,null,null,0]
[17,6222000907583,"منتج 17","كرتونة",41,null,null,null,null,null,null,null,null,null,null,null,null,null,null,0]
[18,6222000909884,"منتج 18","كرتونة",101,null,null,null,null,null,null,null,null,null,null,null,null,null,null,0]
[19,"002770","منتج 19","كرتونة",18,null,null,null,null,null,null,null,null,null,null,null,null,null,null,0]
[20,6222000912525,"منتج 20","كرتونة",28,null,null,null,null,null,null,null,null,null,null,null,null,null,null,0]
[21,"6222000912518","منتج 21","كرتونة",14,null,null,null,null,null,null,null,null,null,null,null,null,null,null,0]
[22,"6222000908566","منتج 22","كرتونة",103,null,null,null,null,null,null,null,null,null,null,null,null,null,null,0]
[23,"6222000908573","منتج 23","كرتونة",136,null,null,null,null,null,null,null,null,null,null,null,null,null,null,0]
[24,6222000912501,"منتج 24","كرتونة",0,null,null,null,null,null,null,null,null,null,null,null,null,null,null,0]
[25,6222000912457,"منتج 25","كرتونة",40,null,null,null,null,null,null,null,null,null,null,null,null,null,null,0]
[26,6222000901611,"منتج 26","كرتونة",112,null,null,null,null,null,null,null,null,null,null,null,null,null,null,0]
[27,6222000909907,"منتج 27","كرتونة",70,null,null,null,null,null,null,null,null,null,null,null,null,null,null,0]
[28,6222000911498,"منتج 28","كرتونة",157,null,null,null,null,null,null,null,null,null,null,null,null,null,null,0]
[29,"002771","منتج 29","كرتونة",0,null,null,null,null,null,null,null,null,null,null,null,null,null,null,0]
[30,6222000912778,"منتج 30","كرتونة",310,null,null,null,null,null,null,null,null,null,null,null,null,null,null,0]
[31,6222000912822,"منتج 31","كرتونة",1,null,null,null,null,null,null,null,null,null,null,null,null,null,null,0]
[32,6222000912532,"منتج 32","كرتونة",121,null,null,null,null,null,null,null,null,null,null,null,null,null,null,0]
[33,6222000901697,"منتج 33","كرتونة",2,null,null,null,null,null,null,null,null,null,null,null,null,null,null,0]
[34,6222000911481,"منتج 34","كرتونة",0,null,null,null,null,null,null,null,null,null,null,null,null,null,null,0]
[35,6222000908276,"منتج 35","كرتونة",240,null,null,null,null,null,null,null,null,null,null,null,null,null,null,0]
[36,6222000909921,"منتج 36","كرتونة",0,null,null,null,null,null,null,null,null,null,null,null,null,null,null,0]
[37,6222000909839,"منتج 37","كرتونة",157,null,null,null,null,null,null,null,null,null,null,null,null,null,null,0]
[38,6222000908825,"منتج 38","كرتونة",69,null,null,null,null,null,null,null,null,null,null,null,null,null,null,0]
[39,6222000907637,"منتج 39","كرتونة",62,null,null,null,null,null,null,null,null,null,null,null,null,null,null,0]
[40,6222000903295,"منتج 40","كرتونة",19,null,null,null,null,null,null,null,null,null,null,null,null,null,null,0]
[41,6222000912006,"منتج 41","كرتونة",40,null,null,null,null,null,null,null,null,null,null,null,null,null,null,0]
[42,6222000911993,"منتج 42","كرتونة",50,null,null,null,null,null,null,null,null,null,null,null,null,null,null,0]
[43,6222000912013,"منتج 43","كرتونة",0,null,null,null,null,null,null,null,null,null,null,null,null,null,null,0]
[44,6222000964197,"منتج 44","كرتونة",40,null,null,null,null,null,null,null,null,null,null,null,null,null,null,0]
[45,6222000906630,"منتج 45","كرتونة",0,null,null,null,null,null,null,null,null,null,null,null,null,null,null,0]
[46,6222000902519,"منتج 46","كرتونة",2,null,null,null,null,null,null,null,null,null,null,null,null,null,null,0]
[47,6222000902557,"منتج 47","كرتونة",196,null,null,null,null,null,null,null,null,null,null,null,null,null,null,0]
[48,6222000902564,"منتج 48","كرتونة",113,null,null,null,null,null,null,null,null,null,null,null,null,null,null,0]
[49,6222000910033,"منتج 49","كرتونة",0,null,null,null,null,null,null,null,null,null,null,null,null,null,null,0]
[50,6222000910026,"منتج 50","كرتونة",0,null,null,null,null,null,null,null,null,null,null,null,null,null,null,0]
[51,6222000909945,"منتج 51","كرتونة",0,null,null,null,null,null,null,null,null,null,null,null,null,null,null,0]
[52,6222000910200,"منتج 52","كرتونة",1319,null,null,null,null,null,null,null,null,null,null,null,null,null,null,0]
[53,6222000910514,"منتج 53","كرتونة",911,null,null,null,null,null,null,null,null,null,null,null,null,null,null,0]
[54,6222000909976,"منتج 54","كرتونة",341,null,null,null,null,null,null,null,null,null,null,null,null,null,null,0]
[55,6222000909983,"منتج 55","كرتونة",416,null,null,null,null,null,null,null,null,null,null,null,null,null,null,0]
[56,6222000909969,"منتج 56","كرتونة",27,null,null,null,null,null,null,null,null,null,null,null,null,null,null,0]
[57,622200097116,"منتج 57","كرتونة",116,null,null,null,null,null,null,null,null,null,null,null,null,null,null,0]
[58,6222000912372,"منتج 58","كرتونة",144,null,null,null,null,null,null,null,null,null,null,null,null,null,null,0]
[59,6222000912488,"منتج 59","كرتونة",260,null,null,null,null,null,null,null,null,null,null,null,null,null,null,0]
[60,6222000914383,"منتج 60","كرتونة",0,null,null,null,null,null,null,null,null,null,null,null,null,null,null,0]
[61,6222000914369,"منتج 61","كرتونة",56,null,null,null,null,null,null,null,null,null,null,null,null,null,null,0]
[62,6222000914376,"منتج 62","كرتونة",108,null,null,null,null,null,null,null,null,null,null,null,null,null,null,0]
[63,6222000912365,"منتج 63","كرتونة",8,null,null,null,null,null,null,null,null,null,null,null,null,null,null,0]
[64,6222000902083,"منتج 64","كرتونة",93,null,null,null,null,null,null,null,null,null,null,null,null,null,null,0]
[65,6222000913904,"منتج 65","كرتونة",62,null,null,null,null,null,null,null,null,null,null,null,null,null,null,0]
[66,"EG-670026743-2453","منتج 66","كرتونة",0,null,null,null,null,null,null,null,null,null,null,null,null,null,null,{"$f":"SUM(F69:S69)","v":0}]
[67,6222000915243,"منتج 67","كرتونة",21,null,null,null,null,null,null,null,null,null,null,null,null,null,null,0]
[68,6888000909953,"منتج 68","كرتونة",442,null,null,null,null,null,null,null,null,null,null,null,null,null,null,0]
["الاجمالى",null,null,null,{"$f":"SUM(E4:E71)","v":9502},{"$f":"SUM(F4:F71)","v":0},0,0,0,0,0,0,0,0,0,0,0,0,0,0]

{"sheet":"كفرالشيخ","index":2,"n_rows":72,"n_cols":20,"rows_kept":72,"cut":false,"hidden":false,"merged":[[0,0,0,19],[1,5,1,18],[1,19,2,19],[71,0,71,3],[1,4,2,4],[1,0,2,0],[1,1,2,1],[1,2,2,2],[1,3,2,3]]}
["رصيد توكيل(كفر الشيخ) عن يوم ( 8/2/2025)"]
["م","الكود","الصنف","الوحدة","الرصيد\n الدفترى\nبالكرتونة\n ","تاريخ الانتاج",null,null,null,null,null,null,null,null,null,null,null,null,null,"الرصيد\n الفعلى\nبالكرتونة\n"]
[null,null,null,null,null,"2024-01-01","2024-02-01","2024-03-01","2024-04-01","2024-05-01","2024-06-01","2024-07-01","2024-08-01","2024-09-01","2024-10-01","2024-11-01","2024-12-01","2025-01-01","2025-02-01"]
[1,6222000901529,"منتج 1","كرتونة",212,null,null,null,null,null,null,null,null,null,null,null,null,null,null,{"$f":"SUM(F4:S4)","v":0}]
[2,6222000901536,"منتج 2","كرتونة",141,null,null,null,null,null,null,null,null,null,null,null,null,null,null,{"$f":"SUM(F5:S5)","v":0}]
[3,6222000911733,"منتج 3","كرتونة",122,null,null,null,null,null,null,null,null,null,null,null,null,null,null,0]
[4,6222000911764,"منتج 4","كرتونة",0,null,null,null,null,null,null,null,null,null,null,null,null,null,null,0]
[5,"00743","منتج 5","كرتونة",36,null,null,null,null,null,null,null,null,null,null,null,null,null,null,0]
[6,6222000901758,"منتج 6","كرتونة",275,null,null,null,null,null,null,null,null,null,null,null,null,null,null,0]
[7,6222000912020,"منتج 7","كرتونة",85,null,null,null,null,null,null,null,null,null,null,null,null,null,null,0]
[8,6222000909815,"منتج 8","كرتونة",86,null,null,null,null,null,null,null,null,null,null,null,null,null,null,0]
[9,6222000908610,"منتج 9","كرتونة",0,null,null,null,null,null,null,null,null,null,null,null,null,null,null,0]
[10,6222000909891,"منتج 10","كرتونة",0,null,null,null,null,null,null,null,null,null,null,null,null,null,null,0]
[11,6222000911757,"منتج 11","كرتونة",0,null,null,null,null,null,null,null,null,null,null,null,null,null,null,0]
[12,"00744","منتج 12","كرتونة",103,null,null,null,null,null,null,null,null,null,null,null,null,null,null,0]
[13,6222000901642,"منتج 13","كرتونة",1041,null,null,null,null,null,null,null,null,null,null,null,null,null,null,0]
[14,6222000912037,"منتج 14","كرتونة",195,null,null,null,null,null,null,null,null,null,null,null,null,null,null,0]
[15,6222000909808,"منتج 15","كرتونة",0,null,null,null,null,null,null,null,null,null,null,null,null,null,null,0]
[16,6222000905268,"منتج 16","كرتونة",0,null,null,null,null,null,null,null,null,null,null,null,null,null,null,0]
[17,6222000907583,"منتج 17","كرتونة",0,null,null,null,null,null,null,null,null,null,null,null,null,null,null,0]
[18,6222000909884,"منتج 18","كرتونة",0,null,null,null,null,null,null,null,null,null,null,null,null,null,null,0]
[19,"002770","منتج 19","كرتونة",0,null,null,null,null,null,null,null,null,null,null,null,null,null,null,0]
[20,6222000912525,"منتج 20","كرتونة",24,null,null,null,null,null,null,null,null,null,null,null,null,null,null,0]
[21,"6222000912518","منتج 21","كرتونة",36,null,null,null,null,null,null,null,null,null,null,null,null,null,null,0]
[22,"6222000908566","منتج 22","كرتونة",15,null,null,null,null,null,null,null,null,null,null,null,null,null,null,0]
[23,"6222000908573","منتج 23","كرتونة",65,null,null,null,null,null,null,null,null,null,null,null,null,null,null,0]
[24,6222000912501,"منتج 24","كرتونة",0,null,null,null,null,null,null,null,null,null,null,null,null,null,null,0]
[25,6222000912457,"منتج 25","كرتونة",40,null,null,null,null,null,null,null,null,null,null,null,null,null,null,0]
[26,6222000901611,"منتج 26","كرتونة",485,null,null,null,null,null,null,null,null,null,null,null,null,null,null,0]
[27,6222000909907,"منتج 27","كرتونة",0,null,null,null,null,null,null,null,null,null,null,null,null,null,null,0]
[28,6222000911498,"منتج 28","كرتونة",20,null,null,null,null,null,null,null,null,null,null,null,null,null,null,0]
[29,"002771","منتج 29","كرتونة",0,null,null,null,null,null,null,null,null,null,null,null,null,null,null,0]
[30,6222000912778,"منتج 30","كرتونة",146,null,null,null,null,null,null,null,null,null,null,null,null,null,null,0]
[31,6222000912822,"منتج 31","كرتونة",30,null,null,null,null,null,null,null,null,null,null,null,null,null,null,0]
[32,6222000912532,"منتج 32","كرتونة",68,null,null,null,null,null,null,null,null,null,null,null,null,null,null,0]
[33,6222000901697,"منتج 33","كرتونة",231,null,null,null,null,null,null,null,null,null,null,null,null,null,null,0]
[34,6222000911481,"منتج 34","كرتونة",0,null,null,null,null,null,null,null,null,null,null,null,null,null,null,0]
[35,6222000908276,"منتج 35","كرتونة",101,null,null,null,null,null,null,null,null,null,null,null,null,null,null,0]
[36,6222000909921,"منتج 36","كرتونة",0,null,null,null,null,null,null,null,null,null,null,null,null,null,null,0]
[37,6222000909839,"منتج 37","كرتونة",64,null,null,null,null,null,null,null,null,null,null,null,null,null,null,0]
[38,6222000908825,"منتج 38","كرتونة",42,null,null,null,null,null,null,null,null,null,null,null,null,null,null,0]
[39,6222000907637,"منتج 39","كرتونة",0,null,null,null,null,null,null,null,null,null,null,null,null,null,null,0]
[40,6222000903295,"منتج 40","كرتونة",25,null,null,null,null,null,null,null,null,null,null,null,null,null,null,0]
[41,6222000912006,"منتج 41","كرتونة",44,null,null,null,null,null,null,null,null,null,null,null,null,null,null,0]
[42,6222000911993,"منتج 42","كرتونة",31,null,null,null,null,null,null,null,null,null,null,null,null,null,null,0]
[43,6222000912013,"منتج 43","كرتونة",44,null,null,null,null,null,null,null,null,null,null,null,null,null,null,0]
[44,6222000964197,"منتج 44","كرتونة",234,null,null,null,null,null,null,null,null,null,null,null,null,null,null,0]
[45,6222000906630,"منتج 45","كرتونة",79,null,null,null,null,null,null,null,null,null,null,null,null,null,null,0]
[46,6222000902519,"منتج 46","كرتونة",79,null,null,null,null,null,null,null,null,null,null,null,null,null,null,0]
[47,6222000902557,"منتج 47","كرتونة",113,null,null,null,null,null,null,null,null,null,null,null,null,null,null,0]
[48,6222000902564,"منتج 48","كرتونة",58,null,null,null,null,null,null,null,null,null,null,null,null,null,null,0]
[49,6222000910033,"منتج 49","كرتونة",0,null,null,null,null,null,null,null,null,null,null,null,null,null,null,0]
[50,6222000910026,"منتج 50","كرتونة",0,null,null,null,null,null,null,null,null,null,null,null,null,null,null,0]
[51,6222000909945,"منتج 51","كرتونة",0,null,null,null,null,null,null,null,null,null,null,null,null,null,null,0]
[52,6222000910200,"منتج 52","كرتونة",1436,null,null,null,null,null,null,null,null,null,null,null,null,null,null,0]
[53,6222000910514,"منتج 53","كرتونة",645,null,null,null,null,null,null,null,null,null,null,null,null,null,null,0]
[54,6222000909976,"منتج 54","كرتونة",2133,null,null,null,null,null,null,null,null,null,null,null,null,null,null,0]
[55,6222000909983,"منتج 55","كرتونة",561,null,null,null,null,null,null,null,null,null,null,null,null,null,null,0]
[56,6222000909969,"منتج 56","كرتونة",273,null,null,null,null,null,null,null,null,null,null,null,null,null,null,0]
[57,622200097116,"منتج 57","كرتونة",421,null,null,null,null,null,null,null,null,null,null,null,null,null,null,0]
[58,6222000912372,"منتج 58","كرتونة",730,null,null,null,null,null,null,null,null,null,null,null,null,null,null,0]
[59,6222000912488,"منتج 59","كرتونة",227,null,null,null,null,null,null,null,null,null,null,null,null,null,null,0]
[60,6222000914383,"منتج 60","كرتونة",0,null,null,null,null,null,null,null,null,null,null,null,null,null,null,0]
[61,6222000914369,"منتج 61","كرتونة",1,null,null,null,null,null,null,null,null,null,null,null,null,null,null,0]
[62,6222000914376,"منتج 62","كرتونة",0,null,null,null,null,null,null,null,null,null,null,null,null,null,null,0]
[63,6222000912365,"منتج 63","كرتونة",0,null,null,null,null,null,null,null,null,null,null,null,null,null,null,0]
[64,6222000902083,"منتج 64","كرتونة",89,null,null,null,null,null,null,null,null,null,null,null,null,null,null,0]
[65,6222000913904,"منتج 65","كرتونة",55,null,null,null,null,null,null,null,null,null,null,null,null,null,null,0]
[66,"EG-670026743-2453","منتج 66","كرتونة",0,null,null,null,null,null,null,null,null,null,null,null,null,null,null,{"$f":"SUM(F69:S69)","v":0}]
[67,6222000915243,"منتج 67","كرتونة",0,null,null,null,null,null,null,null,null,null,null,null,null,null,null,0]
[68,6888000909953,"منتج 68","كرتونة",0,null,null,null,null,null,null,null,null,null,null,null,null,null,null,0]
["الاجمالى",null,null,null,{"$f":"SUM(E4:E71)","v":10941},0,0,0,0,0,0,0,0,0,0,0,0,0,0,0]

{"sheet":"البحيرة","index":3,"n_rows":72,"n_cols":20,"rows_kept":72,"cut":false,"hidden":false,"merged":[[0,0,0,19],[1,5,1,18],[1,19,2,19],[71,0,71,3],[1,4,2,4],[1,0,2,0],[1,1,2,1],[1,2,2,2],[1,3,2,3]]}
["رصيد توكيل (  البحيره  ) عن يوم (  8/2/2025   )"]
["م","الكود","الصنف","الوحدة","الرصيد\n الدفترى\nبالكرتونة\n ","تاريخ الانتاج",null,null,null,null,null,null,null,null,null,null,null,null,null,"الرصيد\n الفعلى\nبالكرتونة\n"]
[null,null,null,null,null,"2024-01-01","2024-02-01","2024-03-01","2024-04-01","2024-05-01","2024-06-01","2024-07-01","2024-08-01","2024-09-01","2024-10-01","2024-11-01","2024-12-01","2025-01-01","2025-02-01"]
[1,6222000901529,"منتج 1","كرتونة",128,null,null,null,null,null,null,null,null,null,null,null,null,null,null,{"$f":"SUM(F4:S4)","v":0}]
[2,6222000901536,"منتج 2","كرتونة",163,null,null,null,null,null,null,null,null,null,null,null,null,null,null,{"$f":"SUM(F5:S5)","v":0}]
[3,6222000911733,"منتج 3","كرتونة",0,null,null,null,null,null,null,null,null,null,null,null,null,null,null,0]
[4,6222000911764,"منتج 4","كرتونة",0,null,null,null,null,null,null,null,null,null,null,null,null,null,null,0]
[5,"00743","منتج 5","كرتونة",0,null,null,null,null,null,null,null,null,null,null,null,null,null,null,0]
[6,6222000901758,"منتج 6","كرتونة",346,null,null,null,null,null,null,null,null,null,null,null,null,null,null,0]
[7,6222000912020,"منتج 7","كرتونة",64,null,null,null,null,null,null,null,null,null,null,null,null,null,null,0]
[8,6222000909815,"منتج 8","كرتونة",301,null,null,null,null,null,null,null,null,null,null,null,null,null,null,0]
[9,6222000908610,"منتج 9","كرتونة",36,null,null,null,null,null,null,null,null,null,null,null,null,null,null,0]
[10,6222000909891,"منتج 10","كرتونة",0,null,null,null,null,null,null,null,null,null,null,null,null,null,null,0]
[11,6222000911757,"منتج 11","كرتونة",0,null,null,null,null,null,null,null,null,null,null,null,null,null,null,0]
[12,"00744","منتج 12","كرتونة",128,null,null,null,null,null,null,null,null,null,null,null,null,null,null,0]
[13,6222000901642,"منتج 13","كرتونة",167,null,null,null,null,null,null,null,null,null,null,null,null,null,null,0]
[14,6222000912037,"منتج 14","كرتونة",161,null,null,null,null,null,null,null,null,null,null,null,null,null,null,0]
[15,6222000909808,"منتج 15","كرتونة",65,null,null,null,null,null,null,null,null,null,null,null,null,null,null,0]
[16,6222000905268,"منتج 16","كرتونة",0,null,null,null,null,null,null,null,null,null,null,null,null,null,null,0]
[17,6222000907583,"منتج 17","كرتونة",0,null,null,null,null,null,null,null,null,null,null,null,null,null,null,0]
[18,6222000909884,"منتج 18","كرتونة",0,null,null,null,null,null,null,null,null,null,null,null,null,null,null,0]
[19,"002770","منتج 19","كرتونة",0,null,null,null,null,null,null,null,null,null,null,null,null,null,null,0]
[20,6222000912525,"منتج 20","كرتونة",176,null,null,null,null,null,null,null,null,null,null,null,null,null,null,0]
[21,"6222000912518","منتج 21","كرتونة",344,null,null,null,null,null,null,null,null,null,null,null,null,null,null,0]
[22,"6222000908566","منتج 22","كرتونة",0,null,null,null,null,null,null,null,null,null,null,null,null,null,null,0]
[23,"6222000908573","منتج 23","كرتونة",82,null,null,null,null,null,null,null,null,null,null,null,null,null,null,0]
[24,6222000912501,"منتج 24","كرتونة",0,null,null,null,null,null,null,null,null,null,null,null,null,null,null,0]
[25,6222000912457,"منتج 25","كرتونة",18,null,null,null,null,null,null,null,null,null,null,null,null,null,null,0]
[26,6222000901611,"منتج 26","كرتونة",380,null,null,null,null,null,null,null,null,null,null,null,null,null,null,0]
[27,6222000909907,"منتج 27","كرتونة",0,null,null,null,null,null,null,null,null,null,null,null,null,null,null,0]
[28,6222000911498,"منتج 28","كرتونة",2,null,null,null,null,null,null,null,null,null,null,null,null,null,null,0]
[29,"002771","منتج 29","كرتونة",0,null,null,null,null,null,null,null,null,null,null,null,null,null,null,0]
[30,6222000912778,"منتج 30","كرتونة",341,null,null,null,null,null,null,null,null,null,null,null,null,null,null,0]
[31,6222000912822,"منتج 31","كرتونة",0,null,null,null,null,null,null,null,null,null,null,null,null,null,null,0]
[32,6222000912532,"منتج 32","كرتونة",116,null,null,null,null,null,null,null,null,null,null,null,null,null,null,0]
[33,6222000901697,"منتج 33","كرتونة",87,null,null,null,null,null,null,null,null,null,null,null,null,null,null,0]
[34,6222000911481,"منتج 34","كرتونة",0,null,null,null,null,null,null,null,null,null,null,null,null,null,null,0]
[35,6222000908276,"منتج 35","كرتونة",208,null,null,null,null,null,null,null,null,null,null,null,null,null,null,0]
[36,6222000909921,"منتج 36","كرتونة",0,null,null,null,null,null,null,null,null,null,null,null,null,null,null,0]
[37,6222000909839,"منتج 37","كرتونة",182,null,null,null,null,null,null,null,null,null,null,null,null,null,null,{"$f":"SUM(F40:S40)","v":0}]
[38,6222000908825,"منتج 38","كرتونة",25,null,null,null,null,null,null,null,null,null,null,null,null,null,null,0]
[39,6222000907637,"منتج 39","كرتونة",0,null,null,null,null,null,null,null,null,null,null,null,null,null,null,0]
[40,6222000903295,"منتج 40","كرتونة",0,null,null,null,null,null,null,null,null,null,null,null,null,null,null,0]
[41,6222000912006,"منتج 41","كرتونة",448,null,null,null,null,null,null,null,null,null,null,null,null,null,null,0]
[42,6222000911993,"منتج 42","كرتونة",318,null,null,null,null,null,null,null,null,null,null,null,null,null,null,0]
[43,6222000912013,"منتج 43","كرتونة",462,null,null,null,null,null,null,null,null,null,null,null,null,null,null,0]
[44,6222000964197,"منتج 44","كرتونة",18,null,null,null,null,null,null,null,null,null,null,null,null,null,null,0]
[45,6222000906630,"منتج 45","كرتونة",1,null,null,null,null,null,null,null,null,null,null,null,null,null,null,0]
[46,6222000902519,"منتج 46","كرتونة",11,null,null,null,null,null,null,null,null,null,null,null,null,null,null,0]
[47,6222000902557,"منتج 47","كرتونة",203,null,null,null,null,null,null,null,null,null,null,null,null,null,null,0]
[48,6222000902564,"منتج 48","كرتونة",80,null,null,null,null,null,null,null,null,null,null,null,null,null,null,0]
[49,6222000910033,"منتج 49","كرتونة",0,null,null,null,null,null,null,null,null,null,null,null,null,null,null,0]
[50,6222000910026,"منتج 50","كرتونة",0,null,null,null,null,null,null,null,null,null,null,null,null,null,null,0]
[51,6222000909945,"منتج 51","كرتونة",0,null,null,null,null,null,null,null,null,null,null,null,null,null,null,0]
[52,6222000910200,"منتج 52","كرتونة",972,null,null,null,null,null,null,null,null,null,null,null,null,null,null,0]
[53,6222000910514,"منتج 53","كرتونة",890,null,null,null,null,null,null,null,null,null,null,null,null,null,null,0]
[54,6222000909976,"منتج 54","كرتونة",766,null,null,null,null,null,null,null,null,null,null,null,null,null,null,0]
[55,6222000909983,"منتج 55","كرتونة",550,null,null,null,null,null,null,null,null,null,null,null,null,null,null,0]
[56,6222000909969,"منتج 56","كرتونة",366,null,null,null,null,null,null,null,null,null,null,null,null,null,null,0]
[57,622200097116,"منتج 57","كرتونة",417,null,null,null,null,null,null,null,null,null,null,null,null,null,null,0]
[58,6222000912372,"منتج 58","كرتونة",2679,null,null,null,null,null,null,null,null,null,null,null,null,null,null,0]
[59,6222000912488,"منتج 59","كرتونة",850,null,null,null,null,null,null,null,null,null,null,null,null,null,null,0]
[60,6222000914383,"منتج 60","كرتونة",0,null,null,null,null,null,null,null,null,null,null,null,null,null,null,0]
[61,6222000914369,"منتج 61","كرتونة",0,null,null,null,null,null,null,null,null,null,null,null,null,null,null,0]
[62,6222000914376,"منتج 62","كرتونة",0,null,null,null,null,null,null,null,null,null,null,null,null,null,null,0]
[63,6222000912365,"منتج 63","كرتونة",0,null,null,null,null,null,null,null,null,null,null,null,null,null,null,0]
[64,6222000902083,"منتج 64","كرتونة",0,null,null,null,null,null,null,null,null,null,null,null,null,null,null,0]
[65,6222000913904,"منتج 65","كرتونة",0,null,null,null,null,null,null,null,null,null,null,null,null,null,null,0]
[66,"EG-670026743-2453","منتج 66","كرتونة",0,null,null,null,null,null,null,null,null,null,null,null,null,null,null,{"$f":"SUM(F69:S69)","v":0}]
[67,6222000915243,"منتج 67","كرتونة",0,null,null,null,null,null,null,null,null,null,null,null,null,null,null,0]
[68,6888000909953,"منتج 68","كرتونة",0,null,null,null,null,null,null,null,null,null,null,null,null,null,null,0]
["الاجمالى",null,null,null,{"$f":"SUM(E4:E71)","v":12551},{"$f":"SUM(F4:F71)","v":0},0,0,0,0,0,0,0,0,0,0,0,0,0,0]

{"sheet":"طنطا","index":4,"n_rows":72,"n_cols":20,"rows_kept":72,"cut":false,"hidden":false,"merged":[[0,0,0,19],[1,5,1,18],[1,19,2,19],[71,0,71,3],[1,4,2,4],[1,0,2,0],[1,1,2,1],[1,2,2,2],[1,3,2,3]]}
["رصيد توكيل (     طنطا             ) عن يوم (         2025/2/8                         )"]
["م","الكود","الصنف","الوحدة","الرصيد\n الدفترى\nبالكرتونة\n ","تاريخ الانتاج",null,null,null,null,null,null,null,null,null,null,null,null,null,"الرصيد\n الفعلى\nبالكرتونة\n"]
[null,null,null,null,null,"2024-01-01","2024-02-01","2024-03-01","2024-04-01","2024-05-01","2024-06-01","2024-07-01","2024-08-01","2024-09-01","2024-10-01","2024-11-01","2024-12-01","2025-01-01","2025-02-01"]
[1,6222000901529,"منتج 1","كرتونة",72,null,null,null,null,null,null,null,null,null,null,null,null,null,null,{"$f":"SUM(F4:S4)","v":0}]
[2,6222000901536,"منتج 2","كرتونة",282,null,null,null,null,null,null,null,null,null,null,null,null,null,null,{"$f":"SUM(F5:S5)","v":0}]
[3,6222000911733,"منتج 3","كرتونة",189,null,null,null,null,null,null,null,null,null,null,null,null,null,null,0]
[4,6222000911764,"منتج 4","كرتونة",55,null,null,null,null,null,null,null,null,null,null,null,null,null,null,0]
[5,"00743","منتج 5","كرتونة",25,null,null,null,null,null,null,null,null,null,null,null,null,null,null,0]
[6,6222000901758,"منتج 6","كرتونة",482,null,null,null,null,null,null,null,null,null,null,null,null,null,null,0]
[7,6222000912020,"منتج 7","كرتونة",98,null,null,null,null,null,null,null,null,null,null,null,null,null,null,0]
[8,6222000909815,"منتج 8","كرتونة",87,null,null,null,null,null,null,null,null,null,null,null,null,null,null,0]
[9,6222000908610,"منتج 9","كرتونة",85,null,null,null,null,null,null,null,null,null,null,null,null,null,null,0]
[10,6222000909891,"منتج 10","كرتونة",1,null,null,null,null,null,null,null,null,null,null,null,null,null,null,0]
[11,6222000911757,"منتج 11","كرتونة",0,null,null,null,null,null,null,null,null,null,null,null,null,null,null,0]
[12,"00744","منتج 12","كرتونة",48,null,null,null,null,null,null,null,null,null,null,null,null,null,null,0]
[13,6222000901642,"منتج 13","كرتونة",1490,null,null,null,null,null,null,null,null,null,null,null,null,null,null,0]
[14,6222000912037,"منتج 14","كرتونة",97,null,null,null,null,null,null,null,null,null,null,null,null,null,null,0]
[15,6222000909808,"منتج 15","كرتونة",0,null,null,null,null,null,null,null,null,null,null,null,null,null,null,0]
[16,6222000905268,"منتج 16","كرتونة",0,null,null,null,null,null,null,null,null,null,null,null,null,null,null,0]
[17,6222000907583,"منتج 17","كرتونة",0,null,null,null,null,null,null,null,null,null,null,null,null,null,null,0]
[18,6222000909884,"منتج 18","كرتونة",45,null,null,null,null,null,null,null,null,null,null,null,null,null,null,0]
[19,"002770","منتج 19","كرتونة",0,null,null,null,null,null,null,null,null,null,null,null,null,null,null,0]
[20,6222000912525,"منتج 20","كرتونة",63,null,null,null,null,null,null,null,null,null,null,null,null,null,null,0]
[21,"6222000912518","منتج 21","كرتونة",0,null,null,null,null,null,null,null,null,null,null,null,null,null,null,0]
[22,"6222000908566","منتج 22","كرتونة",67,null,null,null,null,null,null,null,null,null,null,null,null,null,null,0]
[23,"6222000908573","منتج 23","كرتونة",48,null,null,null,null,null,null,null,null,null,null,null,null,null,null,0]
[24,6222000912501,"منتج 24","كرتونة",11,null,null,null,null,null,null,null,null,null,null,null,null,null,null,0]
[25,6222000912457,"منتج 25","كرتونة",50,null,null,null,null,null,null,null,null,null,null,null,null,null,null,0]
[26,6222000901611,"منتج 26","كرتونة",932,null,null,null,null,null,null,null,null,null,null,null,null,null,null,0]
[27,6222000909907,"منتج 27","كرتونة",11,null,null,null,null,null,null,null,null,null,null,null,null,null,null,0]
[28,6222000911498,"منتج 28","كرتونة",5,null,null,null,null,null,null,null,null,null,null,null,null,null,null,0]
[29,"002771","منتج 29","كرتونة",0,null,null,null,null,null,null,null,null,null,null,null,null,null,null,0]
[30,6222000912778,"منتج 30","كرتونة",83,null,null,null,null,null,null,null,null,null,null,null,null,null,null,0]
[31,6222000912822,"منتج 31","كرتونة",0,null,null,null,null,null,null,null,null,null,null,null,null,null,null,0]
[32,6222000912532,"منتج 32","كرتونة",23,null,null,null,null,null,null,null,null,null,null,null,null,null,null,0]
[33,6222000901697,"منتج 33","كرتونة",101,null,null,null,null,null,null,null,null,null,null,null,null,null,null,0]
[34,6222000911481,"منتج 34","كرتونة",0,null,null,null,null,null,null,null,null,null,null,null,null,null,null,0]
[35,6222000908276,"منتج 35","كرتونة",58,null,null,null,null,null,null,null,null,null,null,null,null,null,null,0]
[36,6222000909921,"منتج 36","كرتونة",0,null,null,null,null,null,null,null,null,null,null,null,null,null,null,0]
[37,6222000909839,"منتج 37","كرتونة",10,null,null,null,null,null,null,null,null,null,null,null,null,null,null,0]
[38,6222000908825,"منتج 38","كرتونة",0,null,null,null,null,null,null,null,null,null,null,null,null,null,null,0]
[39,6222000907637,"منتج 39","كرتونة",12,null,null,null,null,null,null,null,null,null,null,null,null,null,null,0]
[40,6222000903295,"منتج 40","كرتونة",35,null,null,null,null,null,null,null,null,null,null,null,null,null,null,0]
[41,6222000912006,"منتج 41","كرتونة",163,null,null,null,null,null,null,null,null,null,null,null,null,null,null,0]
[42,6222000911993,"منتج 42","كرتونة",148,null,null,null,null,null,null,null,null,null,null,null,null,null,null,0]
[43,6222000912013,"منتج 43","كرتونة",122,null,null,null,null,null,null,null,null,null,null,null,null,null,null,0]
[44,6222000964197,"منتج 44","كرتونة",0,null,null,null,null,null,null,null,null,null,null,null,null,null,null,0]
[45,6222000906630,"منتج 45","كرتونة",53,null,null,null,null,null,null,null,null,null,null,null,null,null,null,0]
[46,6222000902519,"منتج 46","كرتونة",142,null,null,null,null,null,null,null,null,null,null,null,null,null,null,0]
[47,6222000902557,"منتج 47","كرتونة",197,null,null,null,null,null,null,null,null,null,null,null,null,null,null,0]
[48,6222000902564,"منتج 48","كرتونة",214,null,null,null,null,null,null,null,null,null,null,null,null,null,null,0]
[49,6222000910033,"منتج 49","كرتونة",0,null,null,null,null,null,null,null,null,null,null,null,null,null,null,0]
[50,6222000910026,"منتج 50","كرتونة",0,null,null,null,null,null,null,null,null,null,null,null,null,null,null,0]
[51,6222000909945,"منتج 51","كرتونة",0,null,null,null,null,null,null,null,null,null,null,null,null,null,null,0]
[52,6222000910200,"منتج 52","كرتونة",665,null,null,null,null,null,null,null,null,null,null,null,null,null,null,0]
[53,6222000910514,"منتج 53","كرتونة",162,null,null,null,null,null,null,null,null,null,null,null,null,null,null,0]
[54,6222000909976,"منتج 54","كرتونة",2469,null,null,null,null,null,null,null,null,null,null,null,null,null,null,0]
[55,6222000909983,"منتج 55","كرتونة",1442,null,null,null,null,null,null,null,null,null,null,null,null,null,null,0]
[56,6222000909969,"منتج 56","كرتونة",449,null,null,null,null,null,null,null,null,null,null,null,null,null,null,0]
[57,622200097116,"منتج 57","كرتونة",1057,null,null,null,null,null,null,null,null,null,null,null,null,null,null,0]
[58,6222000912372,"منتج 58","كرتونة",88,null,null,null,null,null,null,null,null,null,null,null,null,null,null,0]
[59,6222000912488,"منتج 59","كرتونة",317,null,null,null,null,null,null,null,null,null,null,null,null,null,null,0]
[60,6222000914383,"منتج 60","كرتونة",0,null,null,null,null,null,null,null,null,null,null,null,null,null,null,0]
[61,6222000914369,"منتج 61","كرتونة",0,null,null,null,null,null,null,null,null,null,null,null,null,null,null,0]
[62,6222000914376,"منتج 62","كرتونة",0,null,null,null,null,null,null,null,null,null,null,null,null,null,null,0]
[63,6222000912365,"منتج 63","كرتونة",0,null,null,null,null,null,null,null,null,null,null,null,null,null,null,0]
[64,6222000902083,"منتج 64","كرتونة",69,null,null,null,null,null,null,null,null,null,null,null,null,null,null,0]
[65,6222000913904,"منتج 65","كرتونة",57,null,null,null,null,null,null,null,null,null,null,null,null,null,null,0]
[66,"EG-670026743-2453","منتج 66","كرتونة",0,null,null,null,null,null,null,null,null,null,null,null,null,null,null,{"$f":"SUM(F69:S69)","v":0}]
[67,6222000915243,"منتج 67","كرتونة",94,null,null,null,null,null,null,null,null,null,null,null,null,null,null,0]
[68,6888000909953,"منتج 68","كرتونة",0,null,null,null,null,null,null,null,null,null,null,null,null,null,null,0]
["الاجمالى",null,null,null,{"$f":"SUM(E4:E71)","v":12473},{"$f":"SUM(F4:F71)","v":0},0,0,0,0,0,0,0,0,0,0,0,0,0,0]

{"sheet":"المنصورة","index":5,"n_rows":72,"n_cols":20,"rows_kept":72,"cut":false,"hidden":false,"merged":[[0,0,0,19],[1,5,1,18],[1,19,2,19],[71,0,71,3],[1,4,2,4],[1,0,2,0],[1,1,2,1],[1,2,2,2],[1,3,2,3]]}
["رصيد توكيل (    المنصوره              ) عن يوم (    8\\2\\2025                              )"]
["م","الكود","الصنف","الوحدة","الرصيد\n الدفترى\nبالكرتونة\n ","تاريخ الانتاج",null,null,null,null,null,null,null,null,null,null,null,null,null,"الرصيد\n الفعلى\nبالكرتونة\n"]
[null,null,null,null,null,"2024-01-01","2024-02-01","2024-03-01","2024-04-01","2024-05-01","2024-06-01","2024-07-01","2024-08-01","2024-09-01","2024-10-01","2024-11-01","2024-12-01","2025-01-01","2025-02-01"]
[1,6222000901529,"منتج 1","كرتونة",35,null,null,null,null,null,null,null,null,null,null,null,null,null,null,{"$f":"SUM(F4:S4)","v":0}]
[2,6222000901536,"منتج 2","كرتونة",105,null,null,null,null,null,null,null,null,null,null,null,null,null,null,{"$f":"SUM(F5:S5)","v":0}]
[3,6222000911733,"منتج 3","كرتونة",0,null,null,null,null,null,null,null,null,null,null,null,null,null,null,0]
[4,6222000911764,"منتج 4","كرتونة",0,null,null,null,null,null,null,null,null,null,null,null,null,null,null,0]
[5,"00743","منتج 5","كرتونة",0,null,null,null,null,null,null,null,null,null,null,null,null,null,null,0]
[6,6222000901758,"منتج 6","كرتونة",758,null,null,null,null,null,null,null,null,null,null,null,null,null,null,0]
[7,6222000912020,"منتج 7","كرتونة",67,null,null,null,null,null,null,null,null,null,null,null,null,null,null,0]
[8,6222000909815,"منتج 8","كرتونة",0,null,null,null,null,null,null,null,null,null,null,null,null,null,null,0]
[9,6222000908610,"منتج 9","كرتونة",0,null,null,null,null,null,null,null,null,null,null,null,null,null,null,0]
[10,6222000909891,"منتج 10","كرتونة",0,null,null,null,null,null,null,null,null,null,null,null,null,null,null,0]
[11,6222000911757,"منتج 11","كرتونة",0,null,null,null,null,null,null,null,null,null,null,null,null,null,null,0]
[12,"00744","منتج 12","كرتونة",66,null,null,null,null,null,null,null,null,null,null,null,null,null,null,0]
[13,6222000901642,"منتج 13","كرتونة",631,null,null,null,null,null,null,null,null,null,null,null,null,null,null,0]
[14,6222000912037,"منتج 14","كرتونة",89,null,null,null,null,null,null,null,null,null,null,null,null,null,null,0]
[15,6222000909808,"منتج 15","كرتونة",0,null,null,null,null,null,null,null,null,null,null,null,null,null,null,0]
[16,6222000905268,"منتج 16","كرتونة",0,null,null,null,null,null,null,null,null,null,null,null,null,null,null,0]
[17,6222000907583,"منتج 17","كرتونة",0,null,null,null,null,null,null,null,null,null,null,null,null,null,null,0]
[18,6222000909884,"منتج 18","كرتونة",0,null,null,null,null,null,null,null,null,null,null,null,null,null,null,0]
[19,"002770","منتج 19","كرتونة",0,null,null,null,null,null,null,null,null,null,null,null,null,null,null,0]
[20,6222000912525,"منتج 20","كرتونة",15,null,null,null,null,null,null,null,null,null,null,null,null,null,null,0]
[21,"6222000912518","منتج 21","كرتونة",15,null,null,null,null,null,null,null,null,null,null,null,null,null,null,0]
[22,"6222000908566","منتج 22","كرتونة",0,null,null,null,null,null,null,null,null,null,null,null,null,null,null,0]
[23,"6222000908573","منتج 23","كرتونة",247,null,null,null,null,null,null,null,null,null,null,null,null,null,null,0]
[24,6222000912501,"منتج 24","كرتونة",30,null,null,null,null,null,null,null,null,null,null,null,null,null,null,0]
[25,6222000912457,"منتج 25","كرتونة",33,null,null,null,null,null,null,null,null,null,null,null,null,null,null,0]
[26,6222000901611,"منتج 26","كرتونة",1250,null,null,null,null,null,null,null,null,null,null,null,null,null,null,0]
[27,6222000909907,"منتج 27","كرتونة",0,null,null,null,null,null,null,null,null,null,null,null,null,null,null,0]
[28,6222000911498,"منتج 28","كرتونة",50,null,null,null,null,null,null,null,null,null,null,null,null,null,null,0]
[29,"002771","منتج 29","كرتونة",0,null,null,null,null,null,null,null,null,null,null,null,null,null,null,0]
[30,6222000912778,"منتج 30","كرتونة",55,null,null,null,null,null,null,null,null,null,null,null,null,null,null,0]
[31,6222000912822,"منتج 31","كرتونة",0,null,null,null,null,null,null,null,null,null,null,null,null,null,null,0]
[32,6222000912532,"منتج 32","كرتونة",45,null,null,null,null,null,null,null,null,null,null,null,null,null,null,0]
[33,6222000901697,"منتج 33","كرتونة",195,null,null,null,null,null,null,null,null,null,null,null,null,null,null,0]
[34,6222000911481,"منتج 34","كرتونة",0,null,null,null,null,null,null,null,null,null,null,null,null,null,null,0]
[35,6222000908276,"منتج 35","كرتونة",0,null,null,null,null,null,null,null,null,null,null,null,null,null,null,0]
[36,6222000909921,"منتج 36","كرتونة",0,null,null,null,null,null,null,null,null,null,null,null,null,null,null,0]
[37,6222000909839,"منتج 37","كرتونة",29,null,null,null,null,null,null,null,null,null,null,null,null,null,null,0]
[38,6222000908825,"منتج 38","كرتونة",40,null,null,null,null,null,null,null,null,null,null,null,null,null,null,0]
[39,6222000907637,"منتج 39","كرتونة",10,null,null,null,null,null,null,null,null,null,null,null,null,null,null,0]
[40,6222000903295,"منتج 40","كرتونة",0,null,null,null,null,null,null,null,null,null,null,null,null,null,null,0]
[41,6222000912006,"منتج 41","كرتونة",305,null,null,null,null,null,null,null,null,null,null,null,null,null,null,0]
[42,6222000911993,"منتج 42","كرتونة",200,null,null,null,null,null,null,null,null,null,null,null,null,null,null,0]
[43,6222000912013,"منتج 43","كرتونة",100,null,null,null,null,null,null,null,null,null,null,null,null,null,null,0]
[44,6222000964197,"منتج 44","كرتونة",0,null,null,null,null,null,null,null,null,null,null,null,null,null,null,0]
[45,6222000906630,"منتج 45","كرتونة",107,null,null,null,null,null,null,null,null,null,null,null,null,null,null,0]
[46,6222000902519,"منتج 46","كرتونة",0,null,null,null,null,null,null,null,null,null,null,null,null,null,null,0]
[47,6222000902557,"منتج 47","كرتونة",60,null,null,null,null,null,null,null,null,null,null,null,null,null,null,0]
[48,6222000902564,"منتج 48","كرتونة",110,null,null,null,null,null,null,null,null,null,null,null,null,null,null,0]
[49,6222000910033,"منتج 49","كرتونة",0,null,null,null,null,null,null,null,null,null,null,null,null,null,null,0]
[50,6222000910026,"منتج 50","كرتونة",0,null,null,null,null,null,null,null,null,null,null,null,null,null,null,0]
[51,6222000909945,"منتج 51","كرتونة",0,null,null,null,null,null,null,null,null,null,null,null,null,null,null,0]
[52,6222000910200,"منتج 52","كرتونة",399,null,null,null,null,null,null,null,null,null,null,null,null,null,null,0]
[53,6222000910514,"منتج 53","كرتونة",750,null,null,null,null,null,null,null,null,null,null,null,null,null,null,0]
[54,6222000909976,"منتج 54","كرتونة",1965,null,null,null,null,null,null,null,null,null,null,null,null,null,null,0]
[55,6222000909983,"منتج 55","كرتونة",0,null,null,null,null,null,null,null,null,null,null,null,null,null,null,0]
[56,6222000909969,"منتج 56","كرتونة",1539,null,null,null,null,null,null,null,null,null,null,null,null,null,null,0]
[57,622200097116,"منتج 57","كرتونة",0,null,null,null,null,null,null,null,null,null,null,null,null,null,null,0]
[58,6222000912372,"منتج 58","كرتونة",900,null,null,null,null,null,null,null,null,null,null,null,null,null,null,0]
[59,6222000912488,"منتج 59","كرتونة",270,null,null,null,null,null,null,null,null,null,null,null,null,null,null,0]
[60,6222000914383,"منتج 60","كرتونة",0,null,null,null,null,null,null,null,null,null,null,null,null,null,null,0]
[61,6222000914369,"منتج 61","كرتونة",0,null,null,null,null,null,null,null,null,null,null,null,null,null,null,0]
[62,6222000914376,"منتج 62","كرتونة",0,null,null,null,null,null,null,null,null,null,null,null,null,null,null,0]
[63,6222000912365,"منتج 63","كرتونة",0,null,null,null,null,null,null,null,null,null,null,null,null,null,null,0]
[64,6222000902083,"منتج 64","كرتونة",0,null,null,null,null,null,null,null,null,null,null,null,null,null,null,0]
[65,6222000913904,"منتج 65","كرتونة",0,null,null,null,null,null,null,null,null,null,null,null,null,null,null,0]
[66,"EG-670026743-2453","منتج 66","كرتونة",0,null,null,null,null,null,null,null,null,null,null,null,null,null,null,{"$f":"SUM(F69:S69)","v":0}]
[67,6222000915243,"منتج 67","كرتونة",50,null,null,null,null,null,null,null,null,null,null,null,null,null,null,0]
[68,6888000909953,"منتج 68","كرتونة",590,null,null,null,null,null,null,null,null,null,null,null,null,null,null,0]
["الاجمالى",null,null,null,{"$f":"SUM(E4:E71)","v":11110},{"$f":"SUM(F4:F71)","v":0},0,0,0,0,0,0,0,0,0,0,0,0,0,0]

{"sheet":"دكرنس","index":6,"n_rows":72,"n_cols":20,"rows_kept":72,"cut":false,"hidden":false,"merged":[[0,0,0,19],[1,19,2,19],[71,0,71,3],[1,4,2,4],[1,0,2,0],[1,1,2,1],[1,2,2,2],[1,3,2,3],[1,5,1,18]]}
["رصيد توكيل (دكرنس ) عن يوم ( 8/02/2025 )"]
["م","الكود","الصنف","الوحدة","الرصيد\n الدفترى\nبالكرتونة\n ","تاريخ الانتاج",null,null,null,null,null,null,null,null,null,null,null,null,null,"الرصيد\n الفعلى\nبالكرتونة\n"]
[null,null,null,null,null,"2024-01-01","2024-02-01","2024-03-01","2024-04-01","2024-05-01","2024-06-01","2024-07-01","2024-08-01","2024-09-01","2024-10-01","2024-11-01","2024-12-01","2025-01-25","2025-02-25"]
[1,6222000901529,"منتج 1","كرتونة",0,null,null,null,null,null,null,null,null,null,null,null,null,null,null,{"$f":"SUM(F4:S4)","v":0}]
[2,6222000901536,"منتج 2","كرتونة",22.5,null,null,null,null,null,null,null,null,null,null,null,null,null,null,{"$f":"SUM(F5:S5)","v":0}]
[3,6222000911733,"منتج 3","كرتونة",121,null,null,null,null,null,null,null,null,null,null,null,null,null,null,0]
[4,6222000911764,"منتج 4","كرتونة",30,null,null,null,null,null,null,null,null,null,null,null,null,null,null,0]
[5,"00743","منتج 5","كرتونة",0,null,null,null,null,null,null,null,null,null,null,null,null,null,null,0]
[6,6222000901758,"منتج 6","كرتونة",613,null,null,null,null,null,null,null,null,null,null,null,null,null,null,0]
[7,6222000912020,"منتج 7","كرتونة",64,null,null,null,null,null,null,null,null,null,null,null,null,null,null,0]
[8,6222000909815,"منتج 8","كرتونة",8,null,null,null,null,null,null,null,null,null,null,null,null,null,null,0]
[9,6222000908610,"منتج 9","كرتونة",129,null,null,null,null,null,null,null,null,null,null,null,null,null,null,0]
[10,6222000909891,"منتج 10","كرتونة",0,null,null,null,null,null,null,null,null,null,null,null,null,null,null,0]
[11,6222000911757,"منتج 11","كرتونة",0,null,null,null,null,null,null,null,null,null,null,null,null,null,null,0]
[12,"00744","منتج 12","كرتونة",9,null,null,null,null,null,null,null,null,null,null,null,null,null,null,0]
[13,6222000901642,"منتج 13","كرتونة",506,null,null,null,null,null,null,null,null,null,null,null,null,null,null,0]
[14,6222000912037,"منتج 14","كرتونة",85,null,null,null,null,null,null,null,null,null,null,null,null,null,null,0]
[15,6222000909808,"منتج 15","كرتونة",0,null,null,null,null,null,null,null,null,null,null,null,null,null,null,0]
[16,6222000905268,"منتج 16","كرتونة",0,null,null,null,null,null,null,null,null,null,null,null,null,null,null,0]
[17,6222000907583,"منتج 17","كرتونة",15,null,null,null,null,null,null,null,null,null,null,null,null,null,null,0]
[18,6222000909884,"منتج 18","كرتونة",0,null,null,null,null,null,null,null,null,null,null,null,null,null,null,0]
[19,"002770","منتج 19","كرتونة",0,null,null,null,null,null,null,null,null,null,null,null,null,null,null,0]
[20,6222000912525,"منتج 20","كرتونة",0,null,null,null,null,null,null,null,null,null,null,null,null,null,null,0]
[21,"6222000912518","منتج 21","كرتونة",51,null,null,null,null,null,null,null,null,null,null,null,null,null,null,0]
[22,"6222000908566","منتج 22","كرتونة",0,null,null,null,null,null,null,null,null,null,null,null,null,null,null,0]
[23,"6222000908573","منتج 23","كرتونة",16,null,null,null,null,null,null,null,null,null,null,null,null,null,null,0]
[24,6222000912501,"منتج 24","كرتونة",3,null,null,null,null,null,null,null,null,null,null,null,null,null,null,0]
[25,6222000912457,"منتج 25","كرتونة",34,null,null,null,null,null,null,null,null,null,null,null,null,null,null,0]
[26,6222000901611,"منتج 26","كرتونة",518,null,null,null,null,null,null,null,null,null,null,null,null,null,null,0]
[27,6222000909907,"منتج 27","كرتونة",0,null,null,null,null,null,null,null,null,null,null,null,null,null,null,0]
[28,6222000911498,"منتج 28","كرتونة",63,null,null,null,null,null,null,null,null,null,null,null,null,null,null,0]
[29,"002771","منتج 29","كرتونة",0,null,null,null,null,null,null,null,null,null,null,null,null,null,null,0]
[30,6222000912778,"منتج 30","كرتونة",93,null,null,null,null,null,null,null,null,null,null,null,null,null,null,0]
[31,6222000912822,"منتج 31","كرتونة",10,null,null,null,null,null,null,null,null,null,null,null,null,null,null,0]
[32,6222000912532,"منتج 32","كرتونة",4,null,null,null,null,null,null,null,null,null,null,null,null,null,null,0]
[33,6222000901697,"منتج 33","كرتونة",24,null,null,null,null,null,null,null,null,null,null,null,null,null,null,0]
[34,6222000911481,"منتج 34","كرتونة",0,null,null,null,null,null,null,null,null,null,null,null,null,null,null,0]
[35,6222000908276,"منتج 35","كرتونة",108,null,null,null,null,null,null,null,null,null,null,null,null,null,null,0]
[36,6222000909921,"منتج 36","كرتونة",19,null,null,null,null,null,null,null,null,null,null,null,null,null,null,0]
[37,6222000909839,"منتج 37","كرتونة",76,null,null,null,null,null,null,null,null,null,null,null,null,null,null,0]
[38,6222000908825,"منتج 38","كرتونة",0,null,null,null,null,null,null,null,null,null,null,null,null,null,null,0]
[39,6222000907637,"منتج 39","كرتونة",16,null,null,null,null,null,null,null,null,null,null,null,null,null,null,0]
[40,6222000903295,"منتج 40","كرتونة",12,null,null,null,null,null,null,null,null,null,null,null,null,null,null,0]
[41,6222000912006,"منتج 41","كرتونة",66,null,null,null,null,null,null,null,null,null,null,null,null,null,null,0]
[42,6222000911993,"منتج 42","كرتونة",104,null,null,null,null,null,null,null,null,null,null,null,null,null,null,0]
[43,6222000912013,"منتج 43","كرتونة",171,null,null,null,null,null,null,null,null,null,null,null,null,null,null,0]
[44,6222000964197,"منتج 44","كرتونة",0,null,null,null,null,null,null,null,null,null,null,null,null,null,null,0]
[45,6222000906630,"منتج 45","كرتونة",0,null,null,null,null,null,null,null,null,null,null,null,null,null,null,0]
[46,6222000902519,"منتج 46","كرتونة",60,null,null,null,null,null,null,null,null,null,null,null,null,null,null,0]
[47,6222000902557,"منتج 47","كرتونة",44,null,null,null,null,null,null,null,null,null,null,null,null,null,null,0]
[48,6222000902564,"منتج 48","كرتونة",105,null,null,null,null,null,null,null,null,null,null,null,null,null,null,0]
[49,6222000910033,"منتج 49","كرتونة",0,null,null,null,null,null,null,null,null,null,null,null,null,null,null,0]
[50,6222000910026,"منتج 50","كرتونة",0,null,null,null,null,null,null,null,null,null,null,null,null,null,null,0]
[51,6222000909945,"منتج 51","كرتونة",0,null,null,null,null,null,null,null,null,null,null,null,null,null,null,0]
[52,6222000910200,"منتج 52","كرتونة",312,null,null,null,null,null,null,null,null,null,null,null,null,null,null,0]
[53,6222000910514,"منتج 53","كرتونة",604,null,null,null,null,null,null,null,null,null,null,null,null,null,null,0]
[54,6222000909976,"منتج 54","كرتونة",453,null,null,null,null,null,null,null,null,null,null,null,null,null,null,0]
[55,6222000909983,"منتج 55","كرتونة",794,null,null,null,null,null,null,null,null,null,null,null,null,null,null,0]
[56,6222000909969,"منتج 56","كرتونة",540,null,null,null,null,null,null,null,null,null,null,null,null,null,null,0]
[57,622200097116,"منتج 57","كرتونة",0,null,null,null,null,null,null,null,null,null,null,null,null,null,null,0]
[58,6222000912372,"منتج 58","كرتونة",96,null,null,null,null,null,null,null,null,null,null,null,null,null,null,0]
[59,6222000912488,"منتج 59","كرتونة",127,null,null,null,null,null,null,null,null,null,null,null,null,null,null,0]
[60,6222000914383,"منتج 60","كرتونة",0,null,null,null,null,null,null,null,null,null,null,null,null,null,null,0]
[61,6222000914369,"منتج 61","كرتونة",0,null,null,null,null,null,null,null,null,null,null,null,null,null,null,0]
[62,6222000914376,"منتج 62","كرتونة",0,null,null,null,null,null,null,null,null,null,null,null,null,null,null,0]
[63,6222000912365,"منتج 63","كرتونة",0,null,null,null,null,null,null,null,null,null,null,null,null,null,null,0]
[64,6222000902083,"منتج 64","كرتونة",0,null,null,null,null,null,null,null,null,null,null,null,null,null,null,0]
[65,6222000913904,"منتج 65","كرتونة",0,null,null,null,null,null,null,null,null,null,null,null,null,null,null,0]
[66,"EG-670026743-2453","منتج 66","كرتونة",0,null,null,null,null,null,null,null,null,null,null,null,null,null,null,{"$f":"SUM(F69:S69)","v":0}]
[67,6222000915243,"منتج 67","كرتونة",0,null,null,null,null,null,null,null,null,null,null,null,null,null,null,0]
[68,6888000909953,"منتج 68","كرتونة",21,null,null,null,null,null,null,null,null,null,null,null,null,null,null,0]
["الاجمالى",null,null,null,{"$f":"SUM(E4:E71)","v":6146.5},{"$f":"SUM(F4:F71)","v":0},0,0,0,0,0,0,0,0,0,0,0,0,0,0]

{"sheet":"دمياط","index":7,"n_rows":72,"n_cols":20,"rows_kept":72,"cut":false,"hidden":false,"merged":[[0,0,0,19],[1,5,1,18],[1,19,2,19],[71,0,71,3],[1,4,2,4],[1,0,2,0],[1,1,2,1],[1,2,2,2],[1,3,2,3]]}
["رصيد توكيل ( دمياط ) عن يوم (  8/2/2025  )"]
["م","الكود","الصنف","الوحدة","الرصيد\n الدفترى\nبالكرتونة\n ","تاريخ الانتاج",null,null,null,null,null,null,null,null,null,null,null,null,null,"الرصيد\n الفعلى\nبالكرتونة\n"]
[null,null,null,null,null,"2024-01-01","2024-02-01","2024-03-01","2024-04-01","2024-05-01","2024-06-01","2024-07-01","2024-08-01","2024-09-01","2024-10-01","2024-11-01","2024-12-01","2025-01-01","2025-02-01"]
[1,6222000901529,"منتج 1","كرتونة",375,null,null,null,null,null,null,null,null,null,null,null,null,null,null,{"$f":"SUM(F4:S4)","v":0}]
[2,6222000901536,"منتج 2","كرتونة",117,null,null,null,null,null,null,null,null,null,null,null,null,null,null,{"$f":"SUM(F5:S5)","v":0}]
[3,6222000911733,"منتج 3","كرتونة",44,null,null,null,null,null,null,null,null,null,null,null,null,null,null,0]
[4,6222000911764,"منتج 4","كرتونة",69,null,null,null,null,null,null,null,null,null,null,null,null,null,null,0]
[5,"00743","منتج 5","كرتونة",3,null,null,null,null,null,null,null,null,null,null,null,null,null,null,0]
[6,6222000901758,"منتج 6","كرتونة",906,null,null,null,null,null,null,null,null,null,null,null,null,null,null,0]
[7,6222000912020,"منتج 7","كرتونة",106,null,null,null,null,null,null,null,null,null,null,null,null,null,null,0]
[8,6222000909815,"منتج 8","كرتونة",127,null,null,null,null,null,null,null,null,null,null,null,null,null,null,0]
[9,6222000908610,"منتج 9","كرتونة",0,null,null,null,null,null,null,null,null,null,null,null,null,null,null,0]
[10,6222000909891,"منتج 10","كرتونة",0,null,null,null,null,null,null,null,null,null,null,null,null,null,null,0]
[11,6222000911757,"منتج 11","كرتونة",0,null,null,null,null,null,null,null,null,null,null,null,null,null,null,0]
[12,"00744","منتج 12","كرتونة",12,null,null,null,null,null,null,null,null,null,null,null,null,null,null,0]
[13,6222000901642,"منتج 13","كرتونة",722,null,null,null,null,null,null,null,null,null,null,null,null,null,null,0]
[14,6222000912037,"منتج 14","كرتونة",37,null,null,null,null,null,null,null,null,null,null,null,null,null,null,0]
[15,6222000909808,"منتج 15","كرتونة",90,null,null,null,null,null,null,null,null,null,null,null,null,null,null,0]
[16,6222000905268,"منتج 16","كرتونة",0,null,null,null,null,null,null,null,null,null,null,null,null,null,null,0]
[17,6222000907583,"منتج 17","كرتونة",0,null,null,null,null,null,null,null,null,null,null,null,null,null,null,0]
[18,6222000909884,"منتج 18","كرتونة",75,null,null,null,null,null,null,null,null,null,null,null,null,null,null,0]
[19,"002770","منتج 19","كرتونة",0,null,null,null,null,null,null,null,null,null,null,null,null,null,null,0]
[20,6222000912525,"منتج 20","كرتونة",0,null,null,null,null,null,null,null,null,null,null,null,null,null,null,0]
[21,"6222000912518","منتج 21","كرتونة",67,null,null,null,null,null,null,null,null,null,null,null,null,null,null,0]
[22,"6222000908566","منتج 22","كرتونة",29,null,null,null,null,null,null,null,null,null,null,null,null,null,null,0]
[23,"6222000908573","منتج 23","كرتونة",17,null,null,null,null,null,null,null,null,null,null,null,null,null,null,0]
[24,6222000912501,"منتج 24","كرتونة",0,null,null,null,null,null,null,null,null,null,null,null,null,null,null,0]
[25,6222000912457,"منتج 25","كرتونة",36,null,null,null,null,null,null,null,null,null,null,null,null,null,null,0]
[26,6222000901611,"منتج 26","كرتونة",55,null,null,null,null,null,null,null,null,null,null,null,null,null,null,0]
[27,6222000909907,"منتج 27","كرتونة",21,null,null,null,null,null,null,null,null,null,null,null,null,null,null,0]
[28,6222000911498,"منتج 28","كرتونة",84,null,null,null,null,null,null,null,null,null,null,null,null,null,null,0]
[29,"002771","منتج 29","كرتونة",0,null,null,null,null,null,null,null,null,null,null,null,null,null,null,0]
[30,6222000912778,"منتج 30","كرتونة",37,null,null,null,null,null,null,null,null,null,null,null,null,null,null,0]
[31,6222000912822,"منتج 31","كرتونة",15,null,null,null,null,null,null,null,null,null,null,null,null,null,null,0]
[32,6222000912532,"منتج 32","كرتونة",74,null,null,null,null,null,null,null,null,null,null,null,null,null,null,0]
[33,6222000901697,"منتج 33","كرتونة",330,null,null,null,null,null,null,null,null,null,null,null,null,null,null,0]
[34,6222000911481,"منتج 34","كرتونة",0,null,null,null,null,null,null,null,null,null,null,null,null,null,null,0]
[35,6222000908276,"منتج 35","كرتونة",40,null,null,null,null,null,null,null,null,null,null,null,null,null,null,0]
[36,6222000909921,"منتج 36","كرتونة",0,null,null,null,null,null,null,null,null,null,null,null,null,null,null,0]
[37,6222000909839,"منتج 37","كرتونة",157,null,null,null,null,null,null,null,null,null,null,null,null,null,null,0]
[38,6222000908825,"منتج 38","كرتونة",0,null,null,null,null,null,null,null,null,null,null,null,null,null,null,0]
[39,6222000907637,"منتج 39","كرتونة",0,null,null,null,null,null,null,null,null,null,null,null,null,null,null,0]
[40,6222000903295,"منتج 40","كرتونة",0,null,null,null,null,null,null,null,null,null,null,null,null,null,null,0]
[41,6222000912006,"منتج 41","كرتونة",62,null,null,null,null,null,null,null,null,null,null,null,null,null,null,0]
[42,6222000911993,"منتج 42","كرتونة",58,null,null,null,null,null,null,null,null,null,null,null,null,null,null,0]
[43,6222000912013,"منتج 43","كرتونة",188,null,null,null,null,null,null,null,null,null,null,null,null,null,null,0]
[44,6222000964197,"منتج 44","كرتونة",0,null,null,null,null,null,null,null,null,null,null,null,null,null,null,0]
[45,6222000906630,"منتج 45","كرتونة",48,null,null,null,null,null,null,null,null,null,null,null,null,null,null,0]
[46,6222000902519,"منتج 46","كرتونة",71,null,null,null,null,null,null,null,null,null,null,null,null,null,null,0]
[47,6222000902557,"منتج 47","كرتونة",87,null,null,null,null,null,null,null,null,null,null,null,null,null,null,0]
[48,6222000902564,"منتج 48","كرتونة",57,null,null,null,null,null,null,null,null,null,null,null,null,null,null,0]
[49,6222000910033,"منتج 49","كرتونة",0,null,null,null,null,null,null,null,null,null,null,null,null,null,null,0]
[50,6222000910026,"منتج 50","كرتونة",0,null,null,null,null,null,null,null,null,null,null,null,null,null,null,0]
[51,6222000909945,"منتج 51","كرتونة",0,null,null,null,null,null,null,null,null,null,null,null,null,null,null,0]
[52,6222000910200,"منتج 52","كرتونة",844,null,null,null,null,null,null,null,null,null,null,null,null,null,null,0]
[53,6222000910514,"منتج 53","كرتونة",273,null,null,null,null,null,null,null,null,null,null,null,null,null,null,0]
[54,6222000909976,"منتج 54","كرتونة",307,null,null,null,null,null,null,null,null,null,null,null,null,null,null,0]
[55,6222000909983,"منتج 55","كرتونة",228,null,null,null,null,null,null,null,null,null,null,null,null,null,null,0]
[56,6222000909969,"منتج 56","كرتونة",422,null,null,null,null,null,null,null,null,null,null,null,null,null,null,0]
[57,622200097116,"منتج 57","كرتونة",0,null,null,null,null,null,null,null,null,null,null,null,null,null,null,0]
[58,6222000912372,"منتج 58","كرتونة",63,null,null,null,null,null,null,null,null,null,null,null,null,null,null,0]
[59,6222000912488,"منتج 59","كرتونة",437,null,null,null,null,null,null,null,null,null,null,null,null,null,null,0]
[60,6222000914383,"منتج 60","كرتونة",0,null,null,null,null,null,null,null,null,null,null,null,null,null,null,0]
[61,6222000914369,"منتج 61","كرتونة",0,null,null,null,null,null,null,null,null,null,null,null,null,null,null,0]
[62,6222000914376,"منتج 62","كرتونة",0,null,null,null,null,null,null,null,null,null,null,null,null,null,null,0]
[63,6222000912365,"منتج 63","كرتونة",0,null,null,null,null,null,null,null,null,null,null,null,null,null,null,0]
[64,6222000902083,"منتج 64","كرتونة",73,null,null,null,null,null,null,null,null,null,null,null,null,null,null,0]
[65,6222000913904,"منتج 65","كرتونة",0,null,null,null,null,null,null,null,null,null,null,null,null,null,null,0]
[66,"EG-670026743-2453","منتج 66","كرتونة",0,null,null,null,null,null,null,null,null,null,null,null,null,null,null,{"$f":"SUM(F69:S69)","v":0}]
[67,6222000915243,"منتج 67","كرتونة",50,null,null,null,null,null,null,null,null,null,null,null,null,null,null,0]
[68,6888000909953,"منتج 68","كرتونة",204,null,null,null,null,null,null,null,null,null,null,null,null,null,null,0]
["الاجمالى",null,null,null,{"$f":"SUM(E4:E71)","v":7117},{"$f":"SUM(F4:F71)","v":0},0,0,0,0,0,0,0,0,0,0,0,0,0,0]

{"sheet":"المنوفية","index":8,"n_rows":72,"n_cols":20,"rows_kept":72,"cut":false,"hidden":false,"merged":[[1,4,2,4],[0,0,0,19],[1,5,1,18],[1,19,2,19],[71,0,71,3],[1,0,2,0],[1,1,2,1],[1,2,2,2],[1,3,2,3]]}
["رصيد توكيل (    المنوفية      ) عن يوم (                 8-2-2025        )"]
["م","الكود","الصنف","الوحدة","الرصيد\n الدفترى\nبالكرتونة\n ","تاريخ الانتاج",null,null,null,null,null,null,null,null,null,null,null,null,null,"الرصيد\n الفعلى\nبالكرتونة\n"]
[null,null,null,null,null,"2024-01-01","2024-02-01","2024-03-01","2024-04-01","2024-05-01","2024-06-01","2024-07-01","2024-08-01","2024-09-01","2024-10-01","2024-11-01","2024-12-01","2025-01-01","2025-02-01"]
[1,6222000901529,"منتج 1","كرتونة",431,null,null,null,null,null,null,null,null,null,null,null,null,null,null,{"$f":"SUM(F4:S4)","v":0}]
[2,6222000901536,"منتج 2","كرتونة",124,null,null,null,null,null,null,null,null,null,null,null,null,null,null,{"$f":"SUM(F5:S5)","v":0}]
[3,6222000911733,"منتج 3","كرتونة",230,null,null,null,null,null,null,null,null,null,null,null,null,null,null,0]
[4,6222000911764,"منتج 4","كرتونة",166,null,null,null,null,null,null,null,null,null,null,null,null,null,null,0]
[5,"00743","منتج 5","كرتونة",67,null,null,null,null,null,null,null,null,null,null,null,null,null,null,0]
[6,6222000901758,"منتج 6","كرتونة",496,null,null,null,null,null,null,null,null,null,null,null,null,null,null,0]
[7,6222000912020,"منتج 7","كرتونة",21,null,null,null,null,null,null,null,null,null,null,null,null,null,null,0]
[8,6222000909815,"منتج 8","كرتونة",944,null,null,null,null,null,null,null,null,null,null,null,null,null,null,0]
[9,6222000908610,"منتج 9","كرتونة",90,null,null,null,null,null,null,null,null,null,null,null,null,null,null,0]
[10,6222000909891,"منتج 10","كرتونة",320,null,null,null,null,null,null,null,null,null,null,null,null,null,null,0]
[11,6222000911757,"منتج 11","كرتونة",0,null,null,null,null,null,null,null,null,null,null,null,null,null,null,0]
[12,"00744","منتج 12","كرتونة",174,null,null,null,null,null,null,null,null,null,null,null,null,null,null,0]
[13,6222000901642,"منتج 13","كرتونة",379,null,null,null,null,null,null,null,null,null,null,null,null,null,null,0]
[14,6222000912037,"منتج 14","كرتونة",34,null,null,null,null,null,null,null,null,null,null,null,null,null,null,0]
[15,6222000909808,"منتج 15","كرتونة",0,null,null,null,null,null,null,null,null,null,null,null,null,null,null,0]
[16,6222000905268,"منتج 16","كرتونة",0,null,null,null,null,null,null,null,null,null,null,null,null,null,null,0]
[17,6222000907583,"منتج 17","كرتونة",0,null,null,null,null,null,null,null,null,null,null,null,null,null,null,0]
[18,6222000909884,"منتج 18","كرتونة",66,null,null,null,null,null,null,null,null,null,null,null,null,null,null,0]
[19,"002770","منتج 19","كرتونة",100,null,null,null,null,null,null,null,null,null,null,null,null,null,null,0]
[20,6222000912525,"منتج 20","كرتونة",5,null,null,null,null,null,null,null,null,null,null,null,null,null,null,0]
[21,"6222000912518","منتج 21","كرتونة",88,null,null,null,null,null,null,null,null,null,null,null,null,null,null,0]
[22,"6222000908566","منتج 22","كرتونة",30.5,null,null,null,null,null,null,null,null,null,null,null,null,null,null,0]
[23,"6222000908573","منتج 23","كرتونة",97,null,null,null,null,null,null,null,null,null,null,null,null,null,null,0]
[24,6222000912501,"منتج 24","كرتونة",15,null,null,null,null,null,null,null,null,null,null,null,null,null,null,0]
[25,6222000912457,"منتج 25","كرتونة",null,null,null,null,null,null,null,null,null,null,null,null,null,null,null,0]
[26,6222000901611,"منتج 26","كرتونة",929,null,null,null,null,null,null,null,null,null,null,null,null,null,null,0]
[27,6222000909907,"منتج 27","كرتونة",72,null,null,null,null,null,null,null,null,null,null,null,null,null,null,0]
[28,6222000911498,"منتج 28","كرتونة",0,null,null,null,null,null,null,null,null,null,null,null,null,null,null,0]
[29,"002771","منتج 29","كرتونة",0,null,null,null,null,null,null,null,null,null,null,null,null,null,null,0]
[30,6222000912778,"منتج 30","كرتونة",603,null,null,null,null,null,null,null,null,null,null,null,null,null,null,0]
[31,6222000912822,"منتج 31","كرتونة",0,null,null,null,null,null,null,null,null,null,null,null,null,null,null,0]
[32,6222000912532,"منتج 32","كرتونة",22,null,null,null,null,null,null,null,null,null,null,null,null,null,null,0]
[33,6222000901697,"منتج 33","كرتونة",236,null,null,null,null,null,null,null,null,null,null,null,null,null,null,0]
[34,6222000911481,"منتج 34","كرتونة",0,null,null,null,null,null,null,null,null,null,null,null,null,null,null,0]
[35,6222000908276,"منتج 35","كرتونة",306,null,null,null,null,null,null,null,null,null,null,null,null,null,null,0]
[36,6222000909921,"منتج 36","كرتونة",0,null,null,null,null,null,null,null,null,null,null,null,null,null,null,0]
[37,6222000909839,"منتج 37","كرتونة",238,null,null,null,null,null,null,null,null,null,null,null,null,null,null,0]
[38,6222000908825,"منتج 38","كرتونة",63,null,null,null,null,null,null,null,null,null,null,null,null,null,null,0]
[39,6222000907637,"منتج 39","كرتونة",4,null,null,null,null,null,null,null,null,null,null,null,null,null,null,0]
[40,6222000903295,"منتج 40","كرتونة",30,null,null,null,null,null,null,null,null,null,null,null,null,null,null,0]
[41,6222000912006,"منتج 41","كرتونة",77,null,null,null,null,null,null,null,null,null,null,null,null,null,null,0]
[42,6222000911993,"منتج 42","كرتونة",146,null,null,null,null,null,null,null,null,null,null,null,null,null,null,0]
[43,6222000912013,"منتج 43","كرتونة",17,null,null,null,null,null,null,null,null,null,null,null,null,null,null,0]
[44,6222000964197,"منتج 44","كرتونة",0,null,null,null,null,null,null,null,null,null,null,null,null,null,null,0]
[45,6222000906630,"منتج 45","كرتونة",47,null,null,null,null,null,null,null,null,null,null,null,null,null,null,0]
[46,6222000902519,"منتج 46","كرتونة",74,null,null,null,null,null,null,null,null,null,null,null,null,null,null,0]
[47,6222000902557,"منتج 47","كرتونة",87,null,null,null,null,null,null,null,null,null,null,null,null,null,null,0]
[48,6222000902564,"منتج 48","كرتونة",56,null,null,null,null,null,null,null,null,null,null,null,null,null,null,0]
[49,6222000910033,"منتج 49","كرتونة",0,null,null,null,null,null,null,null,null,null,null,null,null,null,null,0]
[50,6222000910026,"منتج 50","كرتونة",0,null,null,null,null,null,null,null,null,null,null,null,null,null,null,0]
[51,6222000909945,"منتج 51","كرتونة",0,null,null,null,null,null,null,null,null,null,null,null,null,null,null,0]
[52,6222000910200,"منتج 52","كرتونة",535,null,null,null,null,null,null,null,null,null,null,null,null,null,null,0]
[53,6222000910514,"منتج 53","كرتونة",337,null,null,null,null,null,null,null,null,null,null,null,null,null,null,0]
[54,6222000909976,"منتج 54","كرتونة",997,null,null,null,null,null,null,null,null,null,null,null,null,null,null,0]
[55,6222000909983,"منتج 55","كرتونة",1108,null,null,null,null,null,null,null,null,null,null,null,null,null,null,0]
[56,6222000909969,"منتج 56","كرتونة",428,null,null,null,null,null,null,null,null,null,null,null,null,null,null,0]
[57,622200097116,"منتج 57","كرتونة",387,null,null,null,null,null,null,null,null,null,null,null,null,null,null,0]
[58,6222000912372,"منتج 58","كرتونة",1515,null,null,null,null,null,null,null,null,null,null,null,null,null,null,0]
[59,6222000912488,"منتج 59","كرتونة",541,null,null,null,null,null,null,null,null,null,null,null,null,null,null,0]
[60,6222000914383,"منتج 60","كرتونة",0,null,null,null,null,null,null,null,null,null,null,null,null,null,null,0]
[61,6222000914369,"منتج 61","كرتونة",0,null,null,null,null,null,null,null,null,null,null,null,null,null,null,0]
[62,6222000914376,"منتج 62","كرتونة",0,null,null,null,null,null,null,null,null,null,null,null,null,null,null,0]
[63,6222000912365,"منتج 63","كرتونة",0,null,null,null,null,null,null,null,null,null,null,null,null,null,null,0]
[64,6222000902083,"منتج 64","كرتونة",0,null,null,null,null,null,null,null,null,null,null,null,null,null,null,0]
[65,6222000913904,"منتج 65","كرتونة",0,null,null,null,null,null,null,null,null,null,null,null,null,null,null,0]
[66,"EG-670026743-2453","منتج 66","كرتونة",0,null,null,null,null,null,null,null,null,null,null,null,null,null,null,{"$f":"SUM(F69:S69)","v":0}]
[67,6222000915243,"منتج 67","كرتونة",44,null,null,null,null,null,null,null,null,null,null,null,null,null,null,0]
[68,6888000909953,"منتج 68","كرتونة",778,null,null,null,null,null,null,null,null,null,null,null,null,null,null,0]
["الاجمالى",null,null,null,{"$f":"SUM(E4:E71)","v":13554.5},{"$f":"SUM(F4:F71)","v":0},0,0,0,0,0,0,0,0,0,0,0,0,0,0]

{"sheet":"الشرقية","index":9,"n_rows":72,"n_cols":20,"rows_kept":72,"cut":false,"hidden":false,"merged":[[0,0,0,19],[1,19,2,19],[71,0,71,3],[1,0,2,0],[1,1,2,1],[1,2,2,2],[1,3,2,3],[1,4,2,4],[1,5,1,18]]}
["رصيد توكيل (              الشرقية           ) عن يوم (                    8-2-2025                  )"]
["م","الكود","الصنف","الوحدة","الرصيد\n الدفترى\nبالكرتونة\n ","تاريخ الانتاج",null,null,null,null,null,null,null,null,null,null,null,null,null,"الرصيد\n الفعلى\nبالكرتونة\n"]
[null,null,null,null,null,"2024-01-01","2024-02-01","2024-03-01","2024-04-01","2024-05-01","2024-06-01","2024-07-01","2024-08-01","2024-09-01","2024-10-01","2024-11-01","2024-12-01","2025-01-01","2025-02-01"]
[1,6222000901529,"منتج 1","كرتونة",109,null,null,null,null,null,null,null,null,null,null,null,null,null,null,{"$f":"SUM(F4:S4)","v":0}]
[2,6222000901536,"منتج 2","كرتونة",140,null,null,null,null,null,null,null,null,null,null,null,null,null,null,{"$f":"SUM(F5:S5)","v":0}]
[3,6222000911733,"منتج 3","كرتونة",329,null,null,null,null,null,null,null,null,null,null,null,null,null,null,0]
[4,6222000911764,"منتج 4","كرتونة",391,null,null,null,null,null,null,null,null,null,null,null,null,null,null,0]
[5,"00743","منتج 5","كرتونة",30,null,null,null,null,null,null,null,null,null,null,null,null,null,null,0]
[6,6222000901758,"منتج 6","كرتونة",269,null,null,null,null,null,null,null,null,null,null,null,null,null,null,0]
[7,6222000912020,"منتج 7","كرتونة",1,null,null,null,null,null,null,null,null,null,null,null,null,null,null,0]
[8,6222000909815,"منتج 8","كرتونة",16,null,null,null,null,null,null,null,null,null,null,null,null,null,null,0]
[9,6222000908610,"منتج 9","كرتونة",48,null,null,null,null,null,null,null,null,null,null,null,null,null,null,0]
[10,6222000909891,"منتج 10","كرتونة",64,null,null,null,null,null,null,null,null,null,null,null,null,null,null,0]
[11,6222000911757,"منتج 11","كرتونة",0,null,null,null,null,null,null,null,null,null,null,null,null,null,null,0]
[12,"00744","منتج 12","كرتونة",30,null,null,null,null,null,null,null,null,null,null,null,null,null,null,0]
[13,6222000901642,"منتج 13","كرتونة",51,null,null,null,null,null,null,null,null,null,null,null,null,null,null,0]
[14,6222000912037,"منتج 14","كرتونة",21,null,null,null,null,null,null,null,null,null,null,null,null,null,null,0]
[15,6222000909808,"منتج 15","كرتونة",1,null,null,null,null,null,null,null,null,null,null,null,null,null,null,0]
[16,6222000905268,"منتج 16","كرتونة",0,null,null,null,null,null,null,null,null,null,null,null,null,null,null,0]
[17,6222000907583,"منتج 17","كرتونة",3,null,null,null,null,null,null,null,null,null,null,null,null,null,null,0]
[18,6222000909884,"منتج 18","كرتونة",29,null,null,null,null,null,null,null,null,null,null,null,null,null,null,0]
[19,"002770","منتج 19","كرتونة",0,null,null,null,null,null,null,null,null,null,null,null,null,null,null,0]
[20,6222000912525,"منتج 20","كرتونة",16,null,null,null,null,null,null,null,null,null,null,null,null,null,null,0]
[21,"6222000912518","منتج 21","كرتونة",95,null,null,null,null,null,null,null,null,null,null,null,null,null,null,0]
[22,"6222000908566","منتج 22","كرتونة",15,null,null,null,null,null,null,null,null,null,null,null,null,null,null,0]
[23,"6222000908573","منتج 23","كرتونة",113,null,null,null,null,null,null,null,null,null,null,null,null,null,null,0]
[24,6222000912501,"منتج 24","كرتونة",0,null,null,null,null,null,null,null,null,null,null,null,null,null,null,0]
[25,6222000912457,"منتج 25","كرتونة",55,null,null,null,null,null,null,null,null,null,null,null,null,null,null,0]
[26,6222000901611,"منتج 26","كرتونة",8,null,null,null,null,null,null,null,null,null,null,null,null,null,null,0]
[27,6222000909907,"منتج 27","كرتونة",87,null,null,null,null,null,null,null,null,null,null,null,null,null,null,0]
[28,6222000911498,"منتج 28","كرتونة",0,null,null,null,null,null,null,null,null,null,null,null,null,null,null,0]
[29,"002771","منتج 29","كرتونة",0,null,null,null,null,null,null,null,null,null,null,null,null,null,null,0]
[30,6222000912778,"منتج 30","كرتونة",84,null,null,null,null,null,null,null,null,null,null,null,null,null,null,0]
[31,6222000912822,"منتج 31","كرتونة",26,null,null,null,null,null,null,null,null,null,null,null,null,null,null,0]
[32,6222000912532,"منتج 32","كرتونة",0,null,null,null,null,null,null,null,null,null,null,null,null,null,null,0]
[33,6222000901697,"منتج 33","كرتونة",51,null,null,null,null,null,null,null,null,null,null,null,null,null,null,0]
[34,6222000911481,"منتج 34","كرتونة",0,null,null,null,null,null,null,null,null,null,null,null,null,null,null,0]
[35,6222000908276,"منتج 35","كرتونة",68,null,null,null,null,null,null,null,null,null,null,null,null,null,null,0]
[36,6222000909921,"منتج 36","كرتونة",0,null,null,null,null,null,null,null,null,null,null,null,null,null,null,0]
[37,6222000909839,"منتج 37","كرتونة",12,null,null,null,null,null,null,null,null,null,null,null,null,null,null,0]
[38,6222000908825,"منتج 38","كرتونة",67,null,null,null,null,null,null,null,null,null,null,null,null,null,null,0]
[39,6222000907637,"منتج 39","كرتونة",69,null,null,null,null,null,null,null,null,null,null,null,null,null,null,0]
[40,6222000903295,"منتج 40","كرتونة",0,null,null,null,null,null,null,null,null,null,null,null,null,null,null,0]
[41,6222000912006,"منتج 41","كرتونة",1,null,null,null,null,null,null,null,null,null,null,null,null,null,null,0]
[42,6222000911993,"منتج 42","كرتونة",4,null,null,null,null,null,null,null,null,null,null,null,null,null,null,0]
[43,6222000912013,"منتج 43","كرتونة",0,null,null,null,null,null,null,null,null,null,null,null,null,null,null,0]
[44,6222000964197,"منتج 44","كرتونة",90,null,null,null,null,null,null,null,null,null,null,null,null,null,null,0]
[45,6222000906630,"منتج 45","كرتونة",11,null,null,null,null,null,null,null,null,null,null,null,null,null,null,0]
[46,6222000902519,"منتج 46","كرتونة",74,null,null,null,null,null,null,null,null,null,null,null,null,null,null,0]
[47,6222000902557,"منتج 47","كرتونة",148,null,null,null,null,null,null,null,null,null,null,null,null,null,null,0]
[48,6222000902564,"منتج 48","كرتونة",142,null,null,null,null,null,null,null,null,null,null,null,null,null,null,0]
[49,6222000910033,"منتج 49","كرتونة",23,null,null,null,null,null,null,null,null,null,null,null,null,null,null,0]
[50,6222000910026,"منتج 50","كرتونة",0,null,null,null,null,null,null,null,null,null,null,null,null,null,null,0]
[51,6222000909945,"منتج 51","كرتونة",0,null,null,null,null,null,null,null,null,null,null,null,null,null,null,0]
[52,6222000910200,"منتج 52","كرتونة",205,null,null,null,null,null,null,null,null,null,null,null,null,null,null,0]
[53,6222000910514,"منتج 53","كرتونة",328,null,null,null,null,null,null,null,null,null,null,null,null,null,null,0]
[54,6222000909976,"منتج 54","كرتونة",636,null,null,null,null,null,null,null,null,null,null,null,null,null,null,0]
[55,6222000909983,"منتج 55","كرتونة",710,null,null,null,null,null,null,null,null,null,null,null,null,null,null,0]
[56,6222000909969,"منتج 56","كرتونة",0,null,null,null,null,null,null,null,null,null,null,null,null,null,null,0]
[57,622200097116,"منتج 57","كرتونة",18,null,null,null,null,null,null,null,null,null,null,null,null,null,null,0]
[58,6222000912372,"منتج 58","كرتونة",0,null,null,null,null,null,null,null,null,null,null,null,null,null,null,0]
[59,6222000912488,"منتج 59","كرتونة",381,null,null,null,null,null,null,null,null,null,null,null,null,null,null,0]
[60,6222000914383,"منتج 60","كرتونة",0,null,null,null,null,null,null,null,null,null,null,null,null,null,null,0]
[61,6222000914369,"منتج 61","كرتونة",0,null,null,null,null,null,null,null,null,null,null,null,null,null,null,0]
[62,6222000914376,"منتج 62","كرتونة",0,null,null,null,null,null,null,null,null,null,null,null,null,null,null,0]
[63,6222000912365,"منتج 63","كرتونة",0,null,null,null,null,null,null,null,null,null,null,null,null,null,null,0]
[64,6222000902083,"منتج 64","كرتونة",75,null,null,null,null,null,null,null,null,null,null,null,null,null,null,0]
[65,6222000913904,"منتج 65","كرتونة",58,null,null,null,null,null,null,null,null,null,null,null,null,null,null,0]
[66,"EG-670026743-2453","منتج 66","كرتونة",0,null,null,null,null,null,null,null,null,null,null,null,null,null,null,{"$f":"SUM(F69:S69)","v":0}]
[67,6222000915243,"منتج 67","كرتونة",0,null,null,null,null,null,null,null,null,null,null,null,null,null,null,0]
[68,6888000909953,"منتج 68","كرتونة",100,null,null,null,null,null,null,null,null,null,null,null,null,null,null,0]
["الاجمالى",null,null,null,{"$f":"SUM(E4:E71)","v":5302},{"$f":"SUM(F4:F71)","v":0},0,0,0,0,0,0,0,0,0,0,0,0,0,0]

{"sheet":"الاسماعيلية","index":10,"n_rows":72,"n_cols":20,"rows_kept":72,"cut":false,"hidden":false,"merged":[[71,0,71,3],[0,0,0,19],[1,0,2,0],[1,1,2,1],[1,2,2,2],[1,3,2,3],[1,4,2,4],[1,19,2,19],[1,5,1,18]]}
["رصيد توكيل (           الاسماعيلية            ) عن يوم (         8-2-2025          )"]
["م","الكود","الصنف","الوحدة","الرصيد\n الدفترى\nبالكرتونة\n ","تاريخ الانتاج",null,null,null,null,null,null,null,null,null,null,null,null,null,"الرصيد\n الفعلى\nبالكرتونة\n"]
[null,null,null,null,null,"2024-01-01","2024-02-01","2024-03-01","2024-04-01","2024-05-01","2024-06-01","2024-07-01","2024-08-01","2024-09-01","2024-10-01","2024-11-01","2024-12-01","2025-01-01","2025-02-01"]
[1,6222000901529,"منتج 1","كرتونة",92,null,null,null,null,null,null,null,null,null,null,null,null,null,null,{"$f":"SUM(F4:S4)","v":0}]
[2,6222000901536,"منتج 2","كرتونة",29,null,null,null,null,null,null,null,null,null,null,null,null,null,null,{"$f":"SUM(F5:S5)","v":0}]
[3,6222000911733,"منتج 3","كرتونة",36,null,null,null,null,null,null,null,null,null,null,null,null,null,null,0]
[4,6222000911764,"منتج 4","كرتونة",8,null,null,null,null,null,null,null,null,null,null,null,null,null,null,0]
[5,"00743","منتج 5","كرتونة",32,null,null,null,null,null,null,null,null,null,null,null,null,null,null,0]
[6,6222000901758,"منتج 6","كرتونة",11,null,null,null,null,null,null,null,null,null,null,null,null,null,null,0]
[7,6222000912020,"منتج 7","كرتونة",8,null,null,null,null,null,null,null,null,null,null,null,null,null,null,0]
[8,6222000909815,"منتج 8","كرتونة",7,null,null,null,null,null,null,null,null,null,null,null,null,null,null,0]
[9,6222000908610,"منتج 9","كرتونة",0,null,null,null,null,null,null,null,null,null,null,null,null,null,null,0]
[10,6222000909891,"منتج 10","كرتونة",59,null,null,null,null,null,null,null,null,null,null,null,null,null,null,0]
[11,6222000911757,"منتج 11","كرتونة",0,null,null,null,null,null,null,null,null,null,null,null,null,null,null,0]
[12,"00744","منتج 12","كرتونة",123,null,null,null,null,null,null,null,null,null,null,null,null,null,null,0]
[13,6222000901642,"منتج 13","كرتونة",1,null,null,null,null,null,null,null,null,null,null,null,null,null,null,0]
[14,6222000912037,"منتج 14","كرتونة",15,null,null,null,null,null,null,null,null,null,null,null,null,null,null,0]
[15,6222000909808,"منتج 15","كرتونة",0,null,null,null,null,null,null,null,null,null,null,null,null,null,null,0]
[16,6222000905268,"منتج 16","كرتونة",0,null,null,null,null,null,null,null,null,null,null,null,null,null,null,0]
[17,6222000907583,"منتج 17","كرتونة",85,null,null,null,null,null,null,null,null,null,null,null,null,null,null,0]
[18,6222000909884,"منتج 18","كرتونة",218,null,null,null,null,null,null,null,null,null,null,null,null,null,null,0]
[19,"002770","منتج 19","كرتونة",0,null,null,null,null,null,null,null,null,null,null,null,null,null,null,0]
[20,6222000912525,"منتج 20","كرتونة",18,null,null,null,null,null,null,null,null,null,null,null,null,null,null,0]
[21,"6222000912518","منتج 21","كرتونة",24,null,null,null,null,null,null,null,null,null,null,null,null,null,null,0]
[22,"6222000908566","منتج 22","كرتونة",50,null,null,null,null,null,null,null,null,null,null,null,null,null,null,0]
[23,"6222000908573","منتج 23","كرتونة",10,null,null,null,null,null,null,null,null,null,null,null,null,null,null,0]
[24,6222000912501,"منتج 24","كرتونة",29,null,null,null,null,null,null,null,null,null,null,null,null,null,null,0]
[25,6222000912457,"منتج 25","كرتونة",50,null,null,null,null,null,null,null,null,null,null,null,null,null,null,0]
[26,6222000901611,"منتج 26","كرتونة",137,null,null,null,null,null,null,null,null,null,null,null,null,null,null,0]
[27,6222000909907,"منتج 27","كرتونة",215,null,null,null,null,null,null,null,null,null,null,null,null,null,null,0]
[28,6222000911498,"منتج 28","كرتونة",27,null,null,null,null,null,null,null,null,null,null,null,null,null,null,0]
[29,"002771","منتج 29","كرتونة",0,null,null,null,null,null,null,null,null,null,null,null,null,null,null,0]
[30,6222000912778,"منتج 30","كرتونة",17,null,null,null,null,null,null,null,null,null,null,null,null,null,null,0]
[31,6222000912822,"منتج 31","كرتونة",0,null,null,null,null,null,null,null,null,null,null,null,null,null,null,0]
[32,6222000912532,"منتج 32","كرتونة",0,null,null,null,null,null,null,null,null,null,null,null,null,null,null,0]
[33,6222000901697,"منتج 33","كرتونة",71,null,null,null,null,null,null,null,null,null,null,null,null,null,null,0]
[34,6222000911481,"منتج 34","كرتونة",0,null,null,null,null,null,null,null,null,null,null,null,null,null,null,0]
[35,6222000908276,"منتج 35","كرتونة",80,null,null,null,null,null,null,null,null,null,null,null,null,null,null,0]
[36,6222000909921,"منتج 36","كرتونة",11,null,null,null,null,null,null,null,null,null,null,null,null,null,null,0]
[37,6222000909839,"منتج 37","كرتونة",151,null,null,null,null,null,null,null,null,null,null,null,null,null,null,0]
[38,6222000908825,"منتج 38","كرتونة",39,null,null,null,null,null,null,null,null,null,null,null,null,null,null,0]
[39,6222000907637,"منتج 39","كرتونة",12,null,null,null,null,null,null,null,null,null,null,null,null,null,null,0]
[40,6222000903295,"منتج 40","كرتونة",0,null,null,null,null,null,null,null,null,null,null,null,null,null,null,0]
[41,6222000912006,"منتج 41","كرتونة",42,null,null,null,null,null,null,null,null,null,null,null,null,null,null,0]
[42,6222000911993,"منتج 42","كرتونة",39,null,null,null,null,null,null,null,null,null,null,null,null,null,null,0]
[43,6222000912013,"منتج 43","كرتونة",44,null,null,null,null,null,null,null,null,null,null,null,null,null,null,0]
[44,6222000964197,"منتج 44","كرتونة",0,null,null,null,null,null,null,null,null,null,null,null,null,null,null,0]
[45,6222000906630,"منتج 45","كرتونة",0,null,null,null,null,null,null,null,null,null,null,null,null,null,null,0]
[46,6222000902519,"منتج 46","كرتونة",13,null,null,null,null,null,null,null,null,null,null,null,null,null,null,0]
[47,6222000902557,"منتج 47","كرتونة",52,null,null,null,null,null,null,null,null,null,null,null,null,null,null,0]
[48,6222000902564,"منتج 48","كرتونة",76,null,null,null,null,null,null,null,null,null,null,null,null,null,null,0]
[49,6222000910033,"منتج 49","كرتونة",18,null,null,null,null,null,null,null,null,null,null,null,null,null,null,0]
[50,6222000910026,"منتج 50","كرتونة",0,null,null,null,null,null,null,null,null,null,null,null,null,null,null,0]
[51,6222000909945,"منتج 51","كرتونة",0,null,null,null,null,null,null,null,null,null,null,null,null,null,null,0]
[52,6222000910200,"منتج 52","كرتونة",665,null,null,null,null,null,null,null,null,null,null,null,null,null,null,0]
[53,6222000910514,"منتج 53","كرتونة",128,null,null,null,null,null,null,null,null,null,null,null,null,null,null,0]
[54,6222000909976,"منتج 54","كرتونة",105,null,null,null,null,null,null,null,null,null,null,null,null,null,null,0]
[55,6222000909983,"منتج 55","كرتونة",124,null,null,null,null,null,null,null,null,null,null,null,null,null,null,0]
[56,6222000909969,"منتج 56","كرتونة",61,null,null,null,null,null,null,null,null,null,null,null,null,null,null,0]
[57,622200097116,"منتج 57","كرتونة",953,null,null,null,null,null,null,null,null,null,null,null,null,null,null,0]
[58,6222000912372,"منتج 58","كرتونة",158,null,null,null,null,null,null,null,null,null,null,null,null,null,null,0]
[59,6222000912488,"منتج 59","كرتونة",71,null,null,null,null,null,null,null,null,null,null,null,null,null,null,0]
[60,6222000914383,"منتج 60","كرتونة",0,null,null,null,null,null,null,null,null,null,null,null,null,null,null,0]
[61,6222000914369,"منتج 61","كرتونة",0,null,null,null,null,null,null,null,null,null,null,null,null,null,null,0]
[62,6222000914376,"منتج 62","كرتونة",0,null,null,null,null,null,null,null,null,null,null,null,null,null,null,0]
[63,6222000912365,"منتج 63","كرتونة",0,null,null,null,null,null,null,null,null,null,null,null,null,null,null,0]
[64,6222000902083,"منتج 64","كرتونة",71,null,null,null,null,null,null,null,null,null,null,null,null,null,null,0]
[65,6222000913904,"منتج 65","كرتونة",31,null,null,null,null,null,null,null,null,null,null,null,null,null,null,0]
[66,"EG-670026743-2453","منتج 66","كرتونة",4,null,null,null,null,null,null,null,null,null,null,null,null,null,null,{"$f":"SUM(F69:S69)","v":0}]
[67,6222000915243,"منتج 67","كرتونة",0,null,null,null,null,null,null,null,null,null,null,null,null,null,null,0]
[68,6888000909953,"منتج 68","كرتونة",98,null,null,null,null,null,null,null,null,null,null,null,null,null,null,0]
["الاجمالى",null,null,null,{"$f":"SUM(E4:E71)","v":4418},{"$f":"SUM(F4:F71)","v":0},0,0,0,0,0,0,0,0,0,0,0,0,0,0]

{"sheet":"بور سعيد","index":11,"n_rows":72,"n_cols":20,"rows_kept":72,"cut":false,"hidden":false,"merged":[[0,0,0,19],[1,7,1,18],[1,19,2,19],[71,0,71,3],[1,4,2,4],[1,0,2,0],[1,1,2,1],[1,2,2,2],[1,3,2,3]]}
["رصيد توكيل (             بورسعيد    ) عن يوم (      8-2-2025          )"]
["م","الكود","الصنف","الوحدة","الرصيد\n الدفترى\nبالكرتونة\n ",null,null,"تاريخ الانتاج",null,null,null,null,null,null,null,null,null,null,null,"الرصيد\n الفعلى\nبالكرتونة\n"]
[null,null,null,null,null,"2024-01-01","2024-02-01","2024-03-01","2024-04-01","2024-05-01","2024-06-01","2024-07-01","2024-08-01","2024-09-01","2024-10-01","2024-11-01","2024-12-01","2025-01-01","2025-02-01"]
[1,6222000901529,"منتج 1","كرتونة",12,null,null,null,null,null,null,null,null,null,null,null,null,null,null,{"$f":"SUM(F4:S4)","v":0}]
[2,6222000901536,"منتج 2","كرتونة",15.5,null,null,null,null,null,null,null,null,null,null,null,null,null,null,{"$f":"SUM(F5:S5)","v":0}]
[3,6222000911733,"منتج 3","كرتونة",128,null,null,null,null,null,null,null,null,null,null,null,null,null,null,0]
[4,6222000911764,"منتج 4","كرتونة",25,null,null,null,null,null,null,null,null,null,null,null,null,null,null,0]
[5,"00743","منتج 5","كرتونة",21,null,null,null,null,null,null,null,null,null,null,null,null,null,null,0]
[6,6222000901758,"منتج 6","كرتونة",126,null,null,null,null,null,null,null,null,null,null,null,null,null,null,0]
[7,6222000912020,"منتج 7","كرتونة",18,null,null,null,null,null,null,null,null,null,null,null,null,null,null,0]
[8,6222000909815,"منتج 8","كرتونة",37,null,null,null,null,null,null,null,null,null,null,null,null,null,null,0]
[9,6222000908610,"منتج 9","كرتونة",22,null,null,null,null,null,null,null,null,null,null,null,null,null,null,0]
[10,6222000909891,"منتج 10","كرتونة",0,null,null,null,null,null,null,null,null,null,null,null,null,null,null,0]
[11,6222000911757,"منتج 11","كرتونة",0,null,null,null,null,null,null,null,null,null,null,null,null,null,null,0]
[12,"00744","منتج 12","كرتونة",8,null,null,null,null,null,null,null,null,null,null,null,null,null,null,0]
[13,6222000901642,"منتج 13","كرتونة",83.5,null,null,null,null,null,null,null,null,null,null,null,null,null,null,0]
[14,6222000912037,"منتج 14","كرتونة",22,null,null,null,null,null,null,null,null,null,null,null,null,null,null,0]
[15,6222000909808,"منتج 15","كرتونة",33,null,null,null,null,null,null,null,null,null,null,null,null,null,null,0]
[16,6222000905268,"منتج 16","كرتونة",0,null,null,null,null,null,null,null,null,null,null,null,null,null,null,0]
[17,6222000907583,"منتج 17","كرتونة",127,null,null,null,null,null,null,null,null,null,null,null,null,null,null,0]
[18,6222000909884,"منتج 18","كرتونة",156,null,null,null,null,null,null,null,null,null,null,null,null,null,null,0]
[19,"002770","منتج 19","كرتونة",0,null,null,null,null,null,null,null,null,null,null,null,null,null,null,0]
[20,6222000912525,"منتج 20","كرتونة",7,null,null,null,null,null,null,null,null,null,null,null,null,null,null,0]
[21,"6222000912518","منتج 21","كرتونة",14,null,null,null,null,null,null,null,null,null,null,null,null,null,null,0]
[22,"6222000908566","منتج 22","كرتونة",34,null,null,null,null,null,null,null,null,null,null,null,null,null,null,0]
[23,"6222000908573","منتج 23","كرتونة",12,null,null,null,null,null,null,null,null,null,null,null,null,null,null,0]
[24,6222000912501,"منتج 24","كرتونة",0,null,null,null,null,null,null,null,null,null,null,null,null,null,null,0]
[25,6222000912457,"منتج 25","كرتونة",43,null,null,null,null,null,null,null,null,null,null,null,null,null,null,0]
[26,6222000901611,"منتج 26","كرتونة",73,null,null,null,null,null,null,null,null,null,null,null,null,null,null,0]
[27,6222000909907,"منتج 27","كرتونة",178,null,null,null,null,null,null,null,null,null,null,null,null,null,null,0]
[28,6222000911498,"منتج 28","كرتونة",93,null,null,null,null,null,null,null,null,null,null,null,null,null,null,0]
[29,"002771","منتج 29","كرتونة",0,null,null,null,null,null,null,null,null,null,null,null,null,null,null,0]
[30,6222000912778,"منتج 30","كرتونة",4,null,null,null,null,null,null,null,null,null,null,null,null,null,null,0]
[31,6222000912822,"منتج 31","كرتونة",85,null,null,null,null,null,null,null,null,null,null,null,null,null,null,0]
[32,6222000912532,"منتج 32","كرتونة",25,null,null,null,null,null,null,null,null,null,null,null,null,null,null,0]
[33,6222000901697,"منتج 33","كرتونة",25,null,null,null,null,null,null,null,null,null,null,null,null,null,null,0]
[34,6222000911481,"منتج 34","كرتونة",0,null,null,null,null,null,null,null,null,null,null,null,null,null,null,0]
[35,6222000908276,"منتج 35","كرتونة",89,null,null,null,null,null,null,null,null,null,null,null,null,null,null,0]
[36,6222000909921,"منتج 36","كرتونة",0,null,null,null,null,null,null,null,null,null,null,null,null,null,null,0]
[37,6222000909839,"منتج 37","كرتونة",52,null,null,null,null,null,null,null,null,null,null,null,null,null,null,0]
[38,6222000908825,"منتج 38","كرتونة",97,null,null,null,null,null,null,null,null,null,null,null,null,null,null,0]
[39,6222000907637,"منتج 39","كرتونة",13,null,null,null,null,null,null,null,null,null,null,null,null,null,null,0]
[40,6222000903295,"منتج 40","كرتونة",0,null,null,null,null,null,null,null,null,null,null,null,null,null,null,0]
[41,6222000912006,"منتج 41","كرتونة",0,null,null,null,null,null,null,null,null,null,null,null,null,null,null,0]
[42,6222000911993,"منتج 42","كرتونة",0,null,null,null,null,null,null,null,null,null,null,null,null,null,null,0]
[43,6222000912013,"منتج 43","كرتونة",0,null,null,null,null,null,null,null,null,null,null,null,null,null,null,0]
[44,6222000964197,"منتج 44","كرتونة",0,null,null,null,null,null,null,null,null,null,null,null,null,null,null,0]
[45,6222000906630,"منتج 45","كرتونة",49,null,null,null,null,null,null,null,null,null,null,null,null,null,null,0]
[46,6222000902519,"منتج 46","كرتونة",2,null,null,null,null,null,null,null,null,null,null,null,null,null,null,0]
[47,6222000902557,"منتج 47","كرتونة",88,null,null,null,null,null,null,null,null,null,null,null,null,null,null,0]
[48,6222000902564,"منتج 48","كرتونة",39,null,null,null,null,null,null,null,null,null,null,null,null,null,null,0]
[49,6222000910033,"منتج 49","كرتونة",0,null,null,null,null,null,null,null,null,null,null,null,null,null,null,0]
[50,6222000910026,"منتج 50","كرتونة",0,null,null,null,null,null,null,null,null,null,null,null,null,null,null,0]
[51,6222000909945,"منتج 51","كرتونة",0,null,null,null,null,null,null,null,null,null,null,null,null,null,null,0]
[52,6222000910200,"منتج 52","كرتونة",452,null,null,null,null,null,null,null,null,null,null,null,null,null,null,0]
[53,6222000910514,"منتج 53","كرتونة",365,null,null,null,null,null,null,null,null,null,null,null,null,null,null,0]
[54,6222000909976,"منتج 54","كرتونة",134,null,null,null,null,null,null,null,null,null,null,null,null,null,null,0]
[55,6222000909983,"منتج 55","كرتونة",260,null,null,null,null,null,null,null,null,null,null,null,null,null,null,0]
[56,6222000909969,"منتج 56","كرتونة",31,null,null,null,null,null,null,null,null,null,null,null,null,null,null,0]
[57,622200097116,"منتج 57","كرتونة",0,null,null,null,null,null,null,null,null,null,null,null,null,null,null,0]
[58,6222000912372,"منتج 58","كرتونة",22,null,null,null,null,null,null,null,null,null,null,null,null,null,null,0]
[59,6222000912488,"منتج 59","كرتونة",183,null,null,null,null,null,null,null,null,null,null,null,null,null,null,0]
[60,6222000914383,"منتج 60","كرتونة",0,null,null,null,null,null,null,null,null,null,null,null,null,null,null,0]
[61,6222000914369,"منتج 61","كرتونة",0,null,null,null,null,null,null,null,null,null,null,null,null,null,null,0]
[62,6222000914376,"منتج 62","كرتونة",0,null,null,null,null,null,null,null,null,null,null,null,null,null,null,0]
[63,6222000912365,"منتج 63","كرتونة",0,null,null,null,null,null,null,null,null,null,null,null,null,null,null,0]
[64,6222000902083,"منتج 64","كرتونة",26,null,null,null,null,null,null,null,null,null,null,null,null,null,null,0]
[65,6222000913904,"منتج 65","كرتونة",34,null,null,null,null,null,null,null,null,null,null,null,null,null,null,0]
[66,"EG-670026743-2453","منتج 66","كرتونة",7,null,null,null,null,null,null,null,null,null,null,null,null,null,null,{"$f":"SUM(F69:S69)","v":0}]
[67,6222000915243,"منتج 67","كرتونة",18,null,null,null,null,null,null,null,null,null,null,null,null,null,null,0]
[68,6888000909953,"منتج 68",null,0,null,null,null,null,null,null,null,null,null,null,null,null,null,null,0]
["الاجمالى",null,null,null,{"$f":"SUM(E4:E71)","v":3388},{"$f":"SUM(F4:F71)","v":0},0,0,0,0,0,0,0,0,0,0,0,0,0,0]

{"sheet":"السويس","index":12,"n_rows":72,"n_cols":20,"rows_kept":72,"cut":false,"hidden":false,"merged":[[0,0,0,19],[1,19,2,19],[71,0,71,3],[1,4,2,4],[1,0,2,0],[1,1,2,1],[1,2,2,2],[1,3,2,3],[1,5,1,18]]}
["رصيد توكيل (     السويس             ) عن يوم (            8-2-2025                      )"]
["م","الكود","الصنف","الوحدة","الرصيد\n الدفترى\nبالكرتونة\n ","تاريخ الانتاج",null,null,null,null,null,null,null,null,null,null,null,null,null,"الرصيد\n الفعلى\nبالكرتونة\n"]
[null,null,null,null,null,"2024-01-01","2024-02-01","2024-03-01","2024-04-01","2024-05-01","2024-06-01","2024-07-01","2024-08-01","2024-09-01","2024-10-01","2024-11-01","2024-12-01","2025-01-01","2025-02-01"]
[1,6222000901529,"منتج 1","كرتونة",75,null,null,null,null,null,null,null,null,null,null,null,null,null,null,{"$f":"SUM(F4:S4)","v":0}]
[2,6222000901536,"منتج 2","كرتونة",32,null,null,null,null,null,null,null,null,null,null,null,null,null,null,{"$f":"SUM(F5:S5)","v":0}]
[3,6222000911733,"منتج 3","كرتونة",24,null,null,null,null,null,null,null,null,null,null,null,null,null,null,0]
[4,6222000911764,"منتج 4","كرتونة",20,null,null,null,null,null,null,null,null,null,null,null,null,null,null,0]
[5,"00743","منتج 5","كرتونة",45,null,null,null,null,null,null,null,null,null,null,null,null,null,null,0]
[6,6222000901758,"منتج 6","كرتونة",67,null,null,null,null,null,null,null,null,null,null,null,null,null,null,0]
[7,6222000912020,"منتج 7","كرتونة",20,null,null,null,null,null,null,null,null,null,null,null,null,null,null,0]
[8,6222000909815,"منتج 8","كرتونة",41,null,null,null,null,null,null,null,null,null,null,null,null,null,null,0]
[9,6222000908610,"منتج 9","كرتونة",0,null,null,null,null,null,null,null,null,null,null,null,null,null,null,0]
[10,6222000909891,"منتج 10","كرتونة",58,null,null,null,null,null,null,null,null,null,null,null,null,null,null,0]
[11,6222000911757,"منتج 11","كرتونة",0,null,null,null,null,null,null,null,null,null,null,null,null,null,null,0]
[12,"00744","منتج 12","كرتونة",10,null,null,null,null,null,null,null,null,null,null,null,null,null,null,0]
[13,6222000901642,"منتج 13","كرتونة",20,null,null,null,null,null,null,null,null,null,null,null,null,null,null,0]
[14,6222000912037,"منتج 14","كرتونة",10,null,null,null,null,null,null,null,null,null,null,null,null,null,null,0]
[15,6222000909808,"منتج 15","كرتونة",35,null,null,null,null,null,null,null,null,null,null,null,null,null,null,0]
[16,6222000905268,"منتج 16","كرتونة",0,null,null,null,null,null,null,null,null,null,null,null,null,null,null,0]
[17,6222000907583,"منتج 17","كرتونة",86,null,null,null,null,null,null,null,null,null,null,null,null,null,null,0]
[18,6222000909884,"منتج 18","كرتونة",13,null,null,null,null,null,null,null,null,null,null,null,null,null,null,0]
[19,"002770","منتج 19","كرتونة",5,null,null,null,null,null,null,null,null,null,null,null,null,null,null,0]
[20,6222000912525,"منتج 20","كرتونة",12,null,null,null,null,null,null,null,null,null,null,null,null,null,null,0]
[21,"6222000912518","منتج 21","كرتونة",21,null,null,null,null,null,null,null,null,null,null,null,null,null,null,0]
[22,"6222000908566","منتج 22","كرتونة",35,null,null,null,null,null,null,null,null,null,null,null,null,null,null,0]
[23,"6222000908573","منتج 23","كرتونة",0,null,null,null,null,null,null,null,null,null,null,null,null,null,null,0]
[24,6222000912501,"منتج 24","كرتونة",0,null,null,null,null,null,null,null,null,null,null,null,null,null,null,0]
[25,6222000912457,"منتج 25","كرتونة",0,null,null,null,null,null,null,null,null,null,null,null,null,null,null,0]
[26,6222000901611,"منتج 26","كرتونة",38,null,null,null,null,null,null,null,null,null,null,null,null,null,null,0]
[27,6222000909907,"منتج 27","كرتونة",0,null,null,null,null,null,null,null,null,null,null,null,null,null,null,0]
[28,6222000911498,"منتج 28","كرتونة",34,null,null,null,null,null,null,null,null,null,null,null,null,null,null,0]
[29,"002771","منتج 29","كرتونة",0,null,null,null,null,null,null,null,null,null,null,null,null,null,null,0]
[30,6222000912778,"منتج 30","كرتونة",0,null,null,null,null,null,null,null,null,null,null,null,null,null,null,0]
[31,6222000912822,"منتج 31","كرتونة",0,null,null,null,null,null,null,null,null,null,null,null,null,null,null,0]
[32,6222000912532,"منتج 32","كرتونة",17,null,null,null,null,null,null,null,null,null,null,null,null,null,null,0]
[33,6222000901697,"منتج 33","كرتونة",40,null,null,null,null,null,null,null,null,null,null,null,null,null,null,0]
[34,6222000911481,"منتج 34","كرتونة",0,null,null,null,null,null,null,null,null,null,null,null,null,null,null,0]
[35,6222000908276,"منتج 35","كرتونة",0,null,null,null,null,null,null,null,null,null,null,null,null,null,null,0]
[36,6222000909921,"منتج 36","كرتونة",64,null,null,null,null,null,null,null,null,null,null,null,null,null,null,0]
[37,6222000909839,"منتج 37","كرتونة",0,null,null,null,null,null,null,null,null,null,null,null,null,null,null,0]
[38,6222000908825,"منتج 38","كرتونة",0,null,null,null,null,null,null,null,null,null,null,null,null,null,null,0]
[39,6222000907637,"منتج 39","كرتونة",0,null,null,null,null,null,null,null,null,null,null,null,null,null,null,0]
[40,6222000903295,"منتج 40","كرتونة",0,null,null,null,null,null,null,null,null,null,null,null,null,null,null,0]
[41,6222000912006,"منتج 41","كرتونة",0,null,null,null,null,null,null,null,null,null,null,null,null,null,null,0]
[42,6222000911993,"منتج 42","كرتونة",0,null,null,null,null,null,null,null,null,null,null,null,null,null,null,0]
[43,6222000912013,"منتج 43","كرتونة",0,null,null,null,null,null,null,null,null,null,null,null,null,null,null,0]
[44,6222000964197,"منتج 44","كرتونة",0,null,null,null,null,null,null,null,null,null,null,null,null,null,null,0]
[45,6222000906630,"منتج 45","كرتونة",0,null,null,null,null,null,null,null,null,null,null,null,null,null,null,0]
[46,6222000902519,"منتج 46","كرتونة",22,null,null,null,null,null,null,null,null,null,null,null,null,null,null,0]
[47,6222000902557,"منتج 47","كرتونة",43,null,null,null,null,null,null,null,null,null,null,null,null,null,null,0]
[48,6222000902564,"منتج 48","كرتونة",78,null,null,null,null,null,null,null,null,null,null,null,null,null,null,0]
[49,6222000910033,"منتج 49","كرتونة",0,null,null,null,null,null,null,null,null,null,null,null,null,null,null,0]
[50,6222000910026,"منتج 50","كرتونة",0,null,null,null,null,null,null,null,null,null,null,null,null,null,null,0]
[51,6222000909945,"منتج 51","كرتونة",0,null,null,null,null,null,null,null,null,null,null,null,null,null,null,0]
[52,6222000910200,"منتج 52","كرتونة",228,null,null,null,null,null,null,null,null,null,null,null,null,null,null,0]
[53,6222000910514,"منتج 53","كرتونة",190,null,null,null,null,null,null,null,null,null,null,null,null,null,null,0]
[54,6222000909976,"منتج 54","كرتونة",94,null,null,null,null,null,null,null,null,null,null,null,null,null,null,0]
[55,6222000909983,"منتج 55","كرتونة",141,null,null,null,null,null,null,null,null,null,null,null,null,null,null,0]
[56,6222000909969,"منتج 56","كرتونة",32,null,null,null,null,null,null,null,null,null,null,null,null,null,null,0]
[57,622200097116,"منتج 57","كرتونة",87,null,null,null,null,null,null,null,null,null,null,null,null,null,null,0]
[58,6222000912372,"منتج 58","كرتونة",0,null,null,null,null,null,null,null,null,null,null,null,null,null,null,0]
[59,6222000912488,"منتج 59","كرتونة",127,null,null,null,null,null,null,null,null,null,null,null,null,null,null,0]
[60,6222000914383,"منتج 60","كرتونة",0,null,null,null,null,null,null,null,null,null,null,null,null,null,null,0]
[61,6222000914369,"منتج 61","كرتونة",0,null,null,null,null,null,null,null,null,null,null,null,null,null,null,0]
[62,6222000914376,"منتج 62","كرتونة",0,null,null,null,null,null,null,null,null,null,null,null,null,null,null,0]
[63,6222000912365,"منتج 63","كرتونة",0,null,null,null,null,null,null,null,null,null,null,null,null,null,null,0]
[64,6222000902083,"منتج 64","كرتونة",0,null,null,null,null,null,null,null,null,null,null,null,null,null,null,0]
[65,6222000913904,"منتج 65","كرتونة",0,null,null,null,null,null,null,null,null,null,null,null,null,null,null,0]
[66,"EG-670026743-2453","منتج 66","كرتونة",0,null,null,null,null,null,null,null,null,null,null,null,null,null,null,{"$f":"SUM(F69:S69)","v":0}]
[67,6222000915243,"منتج 67","كرتونة",0,null,null,null,null,null,null,null,null,null,null,null,null,null,null,0]
[68,6888000909953,"منتج 68","كرتونة",0,null,null,null,null,null,null,null,null,null,null,null,null,null,null,0]
["الاجمالى",null,null,null,{"$f":"SUM(E4:E71)","v":1864},{"$f":"SUM(F4:F71)","v":0},0,0,0,0,0,0,0,0,0,0,0,0,0,0]

{"sheet":"المقطم","index":13,"n_rows":72,"n_cols":20,"rows_kept":72,"cut":false,"hidden":false,"merged":[[0,0,0,19],[1,5,1,18],[1,19,2,19],[71,0,71,3],[1,4,2,4],[1,0,2,0],[1,1,2,1],[1,2,2,2],[1,3,2,3]]}
["رصيد توكيل (         المقطم         ) عن يوم (               8-2-2025                   )"]
["م","الكود","الصنف","الوحدة","الرصيد\n الدفترى\nبالكرتونة\n ","تاريخ الانتاج",null,null,null,null,null,null,null,null,null,null,null,null,null,"الرصيد\n الفعلى\nبالكرتونة\n"]
[null,null,null,null,null,"2024-01-01","2024-02-01","2024-03-01","2024-04-01","2024-05-01","2024-06-01","2024-07-01","2024-08-01","2024-09-01","2024-10-01","2024-11-01","2024-12-01","2025-01-01","2025-02-01"]
[1,6222000901529,"منتج 1","كرتونة",117,null,null,null,null,null,null,null,null,null,null,null,null,null,null,{"$f":"SUM(F4:S4)","v":0}]
[2,6222000901536,"منتج 2","كرتونة",513,null,null,null,null,null,null,null,null,null,null,null,null,null,null,{"$f":"SUM(F5:S5)","v":0}]
[3,6222000911733,"منتج 3","كرتونة",250,null,null,null,null,null,null,null,null,null,null,null,null,null,null,0]
[4,6222000911764,"منتج 4","كرتونة",5,null,null,null,null,null,null,null,null,null,null,null,null,null,null,0]
[5,"00743","منتج 5","كرتونة",0,null,null,null,null,null,null,null,null,null,null,null,null,null,null,0]
[6,6222000901758,"منتج 6","كرتونة",476,null,null,null,null,null,null,null,null,null,null,null,null,null,null,0]
[7,6222000912020,"منتج 7","كرتونة",20,null,null,null,null,null,null,null,null,null,null,null,null,null,null,0]
[8,6222000909815,"منتج 8","كرتونة",107,null,null,null,null,null,null,null,null,null,null,null,null,null,null,0]
[9,6222000908610,"منتج 9","كرتونة",0,null,null,null,null,null,null,null,null,null,null,null,null,null,null,0]
[10,6222000909891,"منتج 10","كرتونة",0,null,null,null,null,null,null,null,null,null,null,null,null,null,null,0]
[11,6222000911757,"منتج 11","كرتونة",0,null,null,null,null,null,null,null,null,null,null,null,null,null,null,0]
[12,"00744","منتج 12","كرتونة",0,null,null,null,null,null,null,null,null,null,null,null,null,null,null,0]
[13,6222000901642,"منتج 13","كرتونة",577,null,null,null,null,null,null,null,null,null,null,null,null,null,null,0]
[14,6222000912037,"منتج 14","كرتونة",0,null,null,null,null,null,null,null,null,null,null,null,null,null,null,0]
[15,6222000909808,"منتج 15","كرتونة",0,null,null,null,null,null,null,null,null,null,null,null,null,null,null,0]
[16,6222000905268,"منتج 16","كرتونة",3,null,null,null,null,null,null,null,null,null,null,null,null,null,null,0]
[17,6222000907583,"منتج 17","كرتونة",0,null,null,null,null,null,null,null,null,null,null,null,null,null,null,0]
[18,6222000909884,"منتج 18","كرتونة",195,null,null,null,null,null,null,null,null,null,null,null,null,null,null,0]
[19,"002770","منتج 19","كرتونة",0,null,null,null,null,null,null,null,null,null,null,null,null,null,null,0]
[20,6222000912525,"منتج 20","كرتونة",100,null,null,null,null,null,null,null,null,null,null,null,null,null,null,0]
[21,"6222000912518","منتج 21","كرتونة",60,null,null,null,null,null,null,null,null,null,null,null,null,null,null,0]
[22,"6222000908566","منتج 22","كرتونة",70,null,null,null,null,null,null,null,null,null,null,null,null,null,null,0]
[23,"6222000908573","منتج 23","كرتونة",37,null,null,null,null,null,null,null,null,null,null,null,null,null,null,0]
[24,6222000912501,"منتج 24","كرتونة",90,null,null,null,null,null,null,null,null,null,null,null,null,null,null,0]
[25,6222000912457,"منتج 25","كرتونة",0,null,null,null,null,null,null,null,null,null,null,null,null,null,null,0]
[26,6222000901611,"منتج 26","كرتونة",365,null,null,null,null,null,null,null,null,null,null,null,null,null,null,0]
[27,6222000909907,"منتج 27","كرتونة",0,null,null,null,null,null,null,null,null,null,null,null,null,null,null,0]
[28,6222000911498,"منتج 28","كرتونة",179,null,null,null,null,null,null,null,null,null,null,null,null,null,null,0]
[29,"002771","منتج 29","كرتونة",0,null,null,null,null,null,null,null,null,null,null,null,null,null,null,0]
[30,6222000912778,"منتج 30","كرتونة",485,null,null,null,null,null,null,null,null,null,null,null,null,null,null,0]
[31,6222000912822,"منتج 31","كرتونة",0,null,null,null,null,null,null,null,null,null,null,null,null,null,null,0]
[32,6222000912532,"منتج 32","كرتونة",96,null,null,null,null,null,null,null,null,null,null,null,null,null,null,0]
[33,6222000901697,"منتج 33","كرتونة",235,null,null,null,null,null,null,null,null,null,null,null,null,null,null,0]
[34,6222000911481,"منتج 34","كرتونة",0,null,null,null,null,null,null,null,null,null,null,null,null,null,null,0]
[35,6222000908276,"منتج 35","كرتونة",20,null,null,null,null,null,null,null,null,null,null,null,null,null,null,0]
[36,6222000909921,"منتج 36","كرتونة",0,null,null,null,null,null,null,null,null,null,null,null,null,null,null,0]
[37,6222000909839,"منتج 37","كرتونة",325,null,null,null,null,null,null,null,null,null,null,null,null,null,null,0]
[38,6222000908825,"منتج 38","كرتونة",75,null,null,null,null,null,null,null,null,null,null,null,null,null,null,0]
[39,6222000907637,"منتج 39","كرتونة",8,null,null,null,null,null,null,null,null,null,null,null,null,null,null,0]
[40,6222000903295,"منتج 40","كرتونة",0,null,null,null,null,null,null,null,null,null,null,null,null,null,null,0]
[41,6222000912006,"منتج 41","كرتونة",26,null,null,null,null,null,null,null,null,null,null,null,null,null,null,0]
[42,6222000911993,"منتج 42","كرتونة",36,null,null,null,null,null,null,null,null,null,null,null,null,null,null,0]
[43,6222000912013,"منتج 43","كرتونة",0,null,null,null,null,null,null,null,null,null,null,null,null,null,null,0]
[44,6222000964197,"منتج 44","كرتونة",0,null,null,null,null,null,null,null,null,null,null,null,null,null,null,0]
[45,6222000906630,"منتج 45","كرتونة",0,null,null,null,null,null,null,null,null,null,null,null,null,null,null,0]
[46,6222000902519,"منتج 46","كرتونة",50,null,null,null,null,null,null,null,null,null,null,null,null,null,null,0]
[47,6222000902557,"منتج 47","كرتونة",15,null,null,null,null,null,null,null,null,null,null,null,null,null,null,0]
[48,6222000902564,"منتج 48","كرتونة",35,null,null,null,null,null,null,null,null,null,null,null,null,null,null,0]
[49,6222000910033,"منتج 49","كرتونة",0,null,null,null,null,null,null,null,null,null,null,null,null,null,null,0]
[50,6222000910026,"منتج 50","كرتونة",0,null,null,null,null,null,null,null,null,null,null,null,null,null,null,0]
[51,6222000909945,"منتج 51","كرتونة",0,null,null,null,null,null,null,null,null,null,null,null,null,null,null,0]
[52,6222000910200,"منتج 52","كرتونة",608,null,null,null,null,null,null,null,null,null,null,null,null,null,null,0]
[53,6222000910514,"منتج 53","كرتونة",271,null,null,null,null,null,null,null,null,null,null,null,null,null,null,0]
[54,6222000909976,"منتج 54","كرتونة",460,null,null,null,null,null,null,null,null,null,null,null,null,null,null,0]
[55,6222000909983,"منتج 55","كرتونة",335,null,null,null,null,null,null,null,null,null,null,null,null,null,null,0]
[56,6222000909969,"منتج 56","كرتونة",25,null,null,null,null,null,null,null,null,null,null,null,null,null,null,0]
[57,622200097116,"منتج 57","كرتونة",83,null,null,null,null,null,null,null,null,null,null,null,null,null,null,0]
[58,6222000912372,"منتج 58","كرتونة",23,null,null,null,null,null,null,null,null,null,null,null,null,null,null,0]
[59,6222000912488,"منتج 59","كرتونة",155,null,null,null,null,null,null,null,null,null,null,null,null,null,null,0]
[60,6222000914383,"منتج 60","كرتونة",0,null,null,null,null,null,null,null,null,null,null,null,null,null,null,0]
[61,6222000914369,"منتج 61","كرتونة",0,null,null,null,null,null,null,null,null,null,null,null,null,null,null,0]
[62,6222000914376,"منتج 62","كرتونة",0,null,null,null,null,null,null,null,null,null,null,null,null,null,null,0]
[63,6222000912365,"منتج 63","كرتونة",0,null,null,null,null,null,null,null,null,null,null,null,null,null,null,0]
[64,6222000902083,"منتج 64","كرتونة",15,null,null,null,null,null,null,null,null,null,null,null,null,null,null,0]
[65,6222000913904,"منتج 65","كرتونة",40,null,null,null,null,null,null,null,null,null,null,null,null,null,null,0]
[66,"EG-670026743-2453","منتج 66","كرتونة",0,null,null,null,null,null,null,null,null,null,null,null,null,null,null,{"$f":"SUM(F69:S69)","v":0}]
[67,6222000915243,"منتج 67","كرتونة",15,null,null,null,null,null,null,null,null,null,null,null,null,null,null,0]
[68,6888000909953,"منتج 68","كرتونة",0,null,null,null,null,null,null,null,null,null,null,null,null,null,null,0]
["الاجمالى",null,null,null,{"$f":"SUM(E4:E71)","v":6600},0,0,0,0,0,0,0,0,0,0,0,0,0,0,0]

{"sheet":"مؤسسة الزكاة","index":14,"n_rows":72,"n_cols":20,"rows_kept":72,"cut":false,"hidden":false,"merged":[[0,0,0,19],[1,5,1,18],[1,19,2,19],[71,0,71,3],[1,4,2,4],[1,0,2,0],[1,1,2,1],[1,2,2,2],[1,3,2,3]]}
["رصيد توكيل (         مؤسسة الزكاة         ) عن يوم (       8/2/2025     )"]
["م","الكود","الصنف","الوحدة","الرصيد\n الدفترى\nبالكرتونة\n ","تاريخ الانتاج",null,null,null,null,null,null,null,null,null,null,null,null,null,"الرصيد\n الفعلى\nبالكرتونة\n"]
[null,null,null,null,null,"2024-01-01","2024-02-01","2024-03-01","2024-04-01","2024-05-01","2024-06-01","2024-07-01","2024-08-01","2024-09-01","2024-10-01","2024-11-01","2024-12-01","2025-01-01","2025-02-01"]
[1,6222000901529,"منتج 1","كرتونة",17,null,null,null,null,null,null,null,null,null,null,null,null,null,null,{"$f":"SUM(F4:S4)","v":0}]
[2,6222000901536,"منتج 2","كرتونة",96,null,null,null,null,null,null,null,null,null,null,null,null,null,null,{"$f":"SUM(F5:S5)","v":0}]
[3,6222000911733,"منتج 3","كرتونة",139,null,null,null,null,null,null,null,null,null,null,null,null,null,null,0]
[4,6222000911764,"منتج 4","كرتونة",265,null,null,null,null,null,null,null,null,null,null,null,null,null,null,0]
[5,"00743","منتج 5","كرتونة",0,null,null,null,null,null,null,null,null,null,null,null,null,null,null,0]
[6,6222000901758,"منتج 6","كرتونة",273,null,null,null,null,null,null,null,null,null,null,null,null,null,null,0]
[7,6222000912020,"منتج 7","كرتونة",108,null,null,null,null,null,null,null,null,null,null,null,null,null,null,0]
[8,6222000909815,"منتج 8","كرتونة",0,null,null,null,null,null,null,null,null,null,null,null,null,null,null,0]
[9,6222000908610,"منتج 9","كرتونة",19,null,null,null,null,null,null,null,null,null,null,null,null,null,null,0]
[10,6222000909891,"منتج 10","كرتونة",19,null,null,null,null,null,null,null,null,null,null,null,null,null,null,0]
[11,6222000911757,"منتج 11","كرتونة",0,null,null,null,null,null,null,null,null,null,null,null,null,null,null,0]
[12,"00744","منتج 12","كرتونة",0,null,null,null,null,null,null,null,null,null,null,null,null,null,null,0]
[13,6222000901642,"منتج 13","كرتونة",374,null,null,null,null,null,null,null,null,null,null,null,null,null,null,0]
[14,6222000912037,"منتج 14","كرتونة",185,null,null,null,null,null,null,null,null,null,null,null,null,null,null,0]
[15,6222000909808,"منتج 15","كرتونة",0,null,null,null,null,null,null,null,null,null,null,null,null,null,null,0]
[16,6222000905268,"منتج 16","كرتونة",0,null,null,null,null,null,null,null,null,null,null,null,null,null,null,0]
[17,6222000907583,"منتج 17","كرتونة",17,null,null,null,null,null,null,null,null,null,null,null,null,null,null,0]
[18,6222000909884,"منتج 18","كرتونة",30,null,null,null,null,null,null,null,null,null,null,null,null,null,null,0]
[19,"002770","منتج 19","كرتونة",132,null,null,null,null,null,null,null,null,null,null,null,null,null,null,0]
[20,6222000912525,"منتج 20","كرتونة",16,null,null,null,null,null,null,null,null,null,null,null,null,null,null,0]
[21,"6222000912518","منتج 21","كرتونة",2,null,null,null,null,null,null,null,null,null,null,null,null,null,null,0]
[22,"6222000908566","منتج 22","كرتونة",44,null,null,null,null,null,null,null,null,null,null,null,null,null,null,0]
[23,"6222000908573","منتج 23","كرتونة",37,null,null,null,null,null,null,null,null,null,null,null,null,null,null,0]
[24,6222000912501,"منتج 24","كرتونة",42,null,null,null,null,null,null,null,null,null,null,null,null,null,null,0]
[25,6222000912457,"منتج 25","كرتونة",0,null,null,null,null,null,null,null,null,null,null,null,null,null,null,0]
[26,6222000901611,"منتج 26","كرتونة",129,null,null,null,null,null,null,null,null,null,null,null,null,null,null,0]
[27,6222000909907,"منتج 27","كرتونة",157,null,null,null,null,null,null,null,null,null,null,null,null,null,null,0]
[28,6222000911498,"منتج 28","كرتونة",471,null,null,null,null,null,null,null,null,null,null,null,null,null,null,0]
[29,"002771","منتج 29","كرتونة",0,null,null,null,null,null,null,null,null,null,null,null,null,null,null,0]
[30,6222000912778,"منتج 30","كرتونة",251,null,null,null,null,null,null,null,null,null,null,null,null,null,null,0]
[31,6222000912822,"منتج 31","كرتونة",61,null,null,null,null,null,null,null,null,null,null,null,null,null,null,0]
[32,6222000912532,"منتج 32","كرتونة",18,null,null,null,null,null,null,null,null,null,null,null,null,null,null,0]
[33,6222000901697,"منتج 33","كرتونة",357,null,null,null,null,null,null,null,null,null,null,null,null,null,null,0]
[34,6222000911481,"منتج 34","كرتونة",0,null,null,null,null,null,null,null,null,null,null,null,null,null,null,0]
[35,6222000908276,"منتج 35","كرتونة",0,null,null,null,null,null,null,null,null,null,null,null,null,null,null,0]
[36,6222000909921,"منتج 36","كرتونة",0,null,null,null,null,null,null,null,null,null,null,null,null,null,null,0]
[37,6222000909839,"منتج 37","كرتونة",306,null,null,null,null,null,null,null,null,null,null,null,null,null,null,0]
[38,6222000908825,"منتج 38","كرتونة",119,null,null,null,null,null,null,null,null,null,null,null,null,null,null,0]
[39,6222000907637,"منتج 39","كرتونة",24,null,null,null,null,null,null,null,null,null,null,null,null,null,null,0]
[40,6222000903295,"منتج 40","كرتونة",0,null,null,null,null,null,null,null,null,null,null,null,null,null,null,0]
[41,6222000912006,"منتج 41","كرتونة",10,null,null,null,null,null,null,null,null,null,null,null,null,null,null,0]
[42,6222000911993,"منتج 42","كرتونة",0,null,null,null,null,null,null,null,null,null,null,null,null,null,null,0]
[43,6222000912013,"منتج 43","كرتونة",0,null,null,null,null,null,null,null,null,null,null,null,null,null,null,0]
[44,6222000964197,"منتج 44","كرتونة",28,null,null,null,null,null,null,null,null,null,null,null,null,null,null,0]
[45,6222000906630,"منتج 45","كرتونة",0,null,null,null,null,null,null,null,null,null,null,null,null,null,null,0]
[46,6222000902519,"منتج 46","كرتونة",29,null,null,null,null,null,null,null,null,null,null,null,null,null,null,0]
[47,6222000902557,"منتج 47","كرتونة",58,null,null,null,null,null,null,null,null,null,null,null,null,null,null,0]
[48,6222000902564,"منتج 48","كرتونة",137,null,null,null,null,null,null,null,null,null,null,null,null,null,null,0]
[49,6222000910033,"منتج 49","كرتونة",0,null,null,null,null,null,null,null,null,null,null,null,null,null,null,0]
[50,6222000910026,"منتج 50","كرتونة",0,null,null,null,null,null,null,null,null,null,null,null,null,null,null,0]
[51,6222000909945,"منتج 51","كرتونة",0,null,null,null,null,null,null,null,null,null,null,null,null,null,null,0]
[52,6222000910200,"منتج 52","كرتونة",797,null,null,null,null,null,null,null,null,null,null,null,null,null,null,0]
[53,6222000910514,"منتج 53","كرتونة",237,null,null,null,null,null,null,null,null,null,null,null,null,null,null,0]
[54,6222000909976,"منتج 54","كرتونة",455,null,null,null,null,null,null,null,null,null,null,null,null,null,null,0]
[55,6222000909983,"منتج 55","كرتونة",284,null,null,null,null,null,null,null,null,null,null,null,null,null,null,0]
[56,6222000909969,"منتج 56","كرتونة",21,null,null,null,null,null,null,null,null,null,null,null,null,null,null,0]
[57,622200097116,"منتج 57","كرتونة",17,null,null,null,null,null,null,null,null,null,null,null,null,null,null,0]
[58,6222000912372,"منتج 58","كرتونة",476,null,null,null,null,null,null,null,null,null,null,null,null,null,null,0]
[59,6222000912488,"منتج 59","كرتونة",515,null,null,null,null,null,null,null,null,null,null,null,null,null,null,0]
[60,6222000914383,"منتج 60","كرتونة",213,null,null,null,null,null,null,null,null,null,null,null,null,null,null,0]
[61,6222000914369,"منتج 61","كرتونة",0,null,null,null,null,null,null,null,null,null,null,null,null,null,null,0]
[62,6222000914376,"منتج 62","كرتونة",0,null,null,null,null,null,null,null,null,null,null,null,null,null,null,0]
[63,6222000912365,"منتج 63","كرتونة",0,null,null,null,null,null,null,null,null,null,null,null,null,null,null,0]
[64,6222000902083,"منتج 64","كرتونة",54,null,null,null,null,null,null,null,null,null,null,null,null,null,null,0]
[65,6222000913904,"منتج 65","كرتونة",50,null,null,null,null,null,null,null,null,null,null,null,null,null,null,0]
[66,"EG-670026743-2453","منتج 66","كرتونة",0,null,null,null,null,null,null,null,null,null,null,null,null,null,null,{"$f":"SUM(F69:S69)","v":0}]
[67,6222000915243,"منتج 67","كرتونة",0,null,null,null,null,null,null,null,null,null,null,null,null,null,null,0]
[68,6888000909953,"منتج 68","كرتونة",0,null,null,null,null,null,null,null,null,null,null,null,null,null,null,0]
["الاجمالى",null,null,null,{"$f":"SUM(E4:E71)","v":7089},{"$f":"SUM(F4:F71)","v":0},0,0,0,0,0,0,0,0,0,0,0,0,0,0]

{"sheet":"الجيزة","index":15,"n_rows":72,"n_cols":20,"rows_kept":72,"cut":false,"hidden":false,"merged":[[1,4,2,4],[0,0,0,19],[1,5,1,18],[1,19,2,19],[71,0,71,3],[1,0,2,0],[1,1,2,1],[1,2,2,2],[1,3,2,3]]}
["رصيد توكيل (          الجيزة        ) عن يوم (                  8-2-2025                )"]
["م","الكود","الصنف","الوحدة","الرصيد\n الدفترى\nبالكرتونة\n ","تاريخ الانتاج",null,null,null,null,null,null,null,null,null,null,null,null,null,"الرصيد\n الفعلى\nبالكرتونة\n"]
[null,null,null,null,null,"2024-01-01","2024-02-01","2024-03-01","2024-04-01","2024-05-01","2024-06-01","2024-07-01","2024-08-01","2024-09-01","2024-10-01","2024-11-01","2024-12-01","2025-01-01","2025-02-01"]
[1,6222000901529,"منتج 1","كرتونة",93,null,null,null,null,null,null,null,null,null,null,null,null,null,null,{"$f":"SUM(F4:S4)","v":0}]
[2,6222000901536,"منتج 2","كرتونة",71,null,null,null,null,null,null,null,null,null,null,null,null,null,null,{"$f":"SUM(F5:S5)","v":0}]
[3,6222000911733,"منتج 3","كرتونة",252,null,null,null,null,null,null,null,null,null,null,null,null,null,null,0]
[4,6222000911764,"منتج 4","كرتونة",27,null,null,null,null,null,null,null,null,null,null,null,null,null,null,0]
[5,"00743","منتج 5","كرتونة",4,null,null,null,null,null,null,null,null,null,null,null,null,null,null,0]
[6,6222000901758,"منتج 6","كرتونة",452,null,null,null,null,null,null,null,null,null,null,null,null,null,null,0]
[7,6222000912020,"منتج 7","كرتونة",0,null,null,null,null,null,null,null,null,null,null,null,null,null,null,0]
[8,6222000909815,"منتج 8","كرتونة",71,null,null,null,null,null,null,null,null,null,null,null,null,null,null,0]
[9,6222000908610,"منتج 9","كرتونة",0,null,null,null,null,null,null,null,null,null,null,null,null,null,null,0]
[10,6222000909891,"منتج 10","كرتونة",0,null,null,null,null,null,null,null,null,null,null,null,null,null,null,0]
[11,6222000911757,"منتج 11","كرتونة",0,null,null,null,null,null,null,null,null,null,null,null,null,null,null,0]
[12,"00744","منتج 12","كرتونة",1,null,null,null,null,null,null,null,null,null,null,null,null,null,null,0]
[13,6222000901642,"منتج 13","كرتونة",253,null,null,null,null,null,null,null,null,null,null,null,null,null,null,0]
[14,6222000912037,"منتج 14","كرتونة",75,null,null,null,null,null,null,null,null,null,null,null,null,null,null,0]
[15,6222000909808,"منتج 15","كرتونة",69,null,null,null,null,null,null,null,null,null,null,null,null,null,null,0]
[16,6222000905268,"منتج 16","كرتونة",49,null,null,null,null,null,null,null,null,null,null,null,null,null,null,0]
[17,6222000907583,"منتج 17","كرتونة",0,null,null,null,null,null,null,null,null,null,null,null,null,null,null,0]
[18,6222000909884,"منتج 18","كرتونة",313,null,null,null,null,null,null,null,null,null,null,null,null,null,null,0]
[19,"002770","منتج 19","كرتونة",97,null,null,null,null,null,null,null,null,null,null,null,null,null,null,0]
[20,6222000912525,"منتج 20","كرتونة",103,null,null,null,null,null,null,null,null,null,null,null,null,null,null,0]
[21,"6222000912518","منتج 21","كرتونة",13,null,null,null,null,null,null,null,null,null,null,null,null,null,null,0]
[22,"6222000908566","منتج 22","كرتونة",42,null,null,null,null,null,null,null,null,null,null,null,null,null,null,0]
[23,"6222000908573","منتج 23","كرتونة",37,null,null,null,null,null,null,null,null,null,null,null,null,null,null,0]
[24,6222000912501,"منتج 24","كرتونة",0,null,null,null,null,null,null,null,null,null,null,null,null,null,null,0]
[25,6222000912457,"منتج 25","كرتونة",0,null,null,null,null,null,null,null,null,null,null,null,null,null,null,0]
[26,6222000901611,"منتج 26","كرتونة",433,null,null,null,null,null,null,null,null,null,null,null,null,null,null,0]
[27,6222000909907,"منتج 27","كرتونة",0,null,null,null,null,null,null,null,null,null,null,null,null,null,null,0]
[28,6222000911498,"منتج 28","كرتونة",357,null,null,null,null,null,null,null,null,null,null,null,null,null,null,0]
[29,"002771","منتج 29","كرتونة",0,null,null,null,null,null,null,null,null,null,null,null,null,null,null,0]
[30,6222000912778,"منتج 30","كرتونة",0,null,null,null,null,null,null,null,null,null,null,null,null,null,null,0]
[31,6222000912822,"منتج 31","كرتونة",0,null,null,null,null,null,null,null,null,null,null,null,null,null,null,0]
[32,6222000912532,"منتج 32","كرتونة",179,null,null,null,null,null,null,null,null,null,null,null,null,null,null,0]
[33,6222000901697,"منتج 33","كرتونة",477,null,null,null,null,null,null,null,null,null,null,null,null,null,null,0]
[34,6222000911481,"منتج 34","كرتونة",0,null,null,null,null,null,null,null,null,null,null,null,null,null,null,0]
[35,6222000908276,"منتج 35","كرتونة",84,null,null,null,null,null,null,null,null,null,null,null,null,null,null,0]
[36,6222000909921,"منتج 36","كرتونة",0,null,null,null,null,null,null,null,null,null,null,null,null,null,null,0]
[37,6222000909839,"منتج 37","كرتونة",300,null,null,null,null,null,null,null,null,null,null,null,null,null,null,0]
[38,6222000908825,"منتج 38","كرتونة",103,null,null,null,null,null,null,null,null,null,null,null,null,null,null,0]
[39,6222000907637,"منتج 39","كرتونة",26,null,null,null,null,null,null,null,null,null,null,null,null,null,null,0]
[40,6222000903295,"منتج 40","كرتونة",0,null,null,null,null,null,null,null,null,null,null,null,null,null,null,0]
[41,6222000912006,"منتج 41","كرتونة",29,null,null,null,null,null,null,null,null,null,null,null,null,null,null,0]
[42,6222000911993,"منتج 42","كرتونة",48,null,null,null,null,null,null,null,null,null,null,null,null,null,null,0]
[43,6222000912013,"منتج 43","كرتونة",47,null,null,null,null,null,null,null,null,null,null,null,null,null,null,0]
[44,6222000964197,"منتج 44","كرتونة",0,null,null,null,null,null,null,null,null,null,null,null,null,null,null,0]
[45,6222000906630,"منتج 45","كرتونة",146,null,null,null,null,null,null,null,null,null,null,null,null,null,null,0]
[46,6222000902519,"منتج 46","كرتونة",3,null,null,null,null,null,null,null,null,null,null,null,null,null,null,0]
[47,6222000902557,"منتج 47","كرتونة",18,null,null,null,null,null,null,null,null,null,null,null,null,null,null,0]
[48,6222000902564,"منتج 48","كرتونة",319,null,null,null,null,null,null,null,null,null,null,null,null,null,null,0]
[49,6222000910033,"منتج 49","كرتونة",0,null,null,null,null,null,null,null,null,null,null,null,null,null,null,0]
[50,6222000910026,"منتج 50","كرتونة",0,null,null,null,null,null,null,null,null,null,null,null,null,null,null,0]
[51,6222000909945,"منتج 51","كرتونة",0,null,null,null,null,null,null,null,null,null,null,null,null,null,null,0]
[52,6222000910200,"منتج 52","كرتونة",1179,null,null,null,null,null,null,null,null,null,null,null,null,null,null,0]
[53,6222000910514,"منتج 53","كرتونة",639,null,null,null,null,null,null,null,null,null,null,null,null,null,null,0]
[54,6222000909976,"منتج 54","كرتونة",732,null,null,null,null,null,null,null,null,null,null,null,null,null,null,0]
[55,6222000909983,"منتج 55","كرتونة",965,null,null,null,null,null,null,null,null,null,null,null,null,null,null,0]
[56,6222000909969,"منتج 56","كرتونة",203,null,null,null,null,null,null,null,null,null,null,null,null,null,null,0]
[57,622200097116,"منتج 57","كرتونة",202,null,null,null,null,null,null,null,null,null,null,null,null,null,null,0]
[58,6222000912372,"منتج 58","كرتونة",180,null,null,null,null,null,null,null,null,null,null,null,null,null,null,0]
[59,6222000912488,"منتج 59","كرتونة",436,null,null,null,null,null,null,null,null,null,null,null,null,null,null,0]
[60,6222000914383,"منتج 60","كرتونة",0,null,null,null,null,null,null,null,null,null,null,null,null,null,null,0]
[61,6222000914369,"منتج 61","كرتونة",0,null,null,null,null,null,null,null,null,null,null,null,null,null,null,0]
[62,6222000914376,"منتج 62","كرتونة",0,null,null,null,null,null,null,null,null,null,null,null,null,null,null,0]
[63,6222000912365,"منتج 63","كرتونة",0,null,null,null,null,null,null,null,null,null,null,null,null,null,null,0]
[64,6222000902083,"منتج 64","كرتونة",0,null,null,null,null,null,null,null,null,null,null,null,null,null,null,0]
[65,6222000913904,"منتج 65","كرتونة",5,null,null,null,null,null,null,null,null,null,null,null,null,null,null,0]
[66,"EG-670026743-2453","منتج 66","كرتونة",0,null,null,null,null,null,null,null,null,null,null,null,null,null,null,{"$f":"SUM(F69:S69)","v":0}]
[67,6222000915243,"منتج 67","كرتونة",0,null,null,null,null,null,null,null,null,null,null,null,null,null,null,0]
[68,6888000909953,"منتج 68","كرتونة",435,null,null,null,null,null,null,null,null,null,null,null,null,null,null,0]
["الاجمالى",null,null,null,{"$f":"SUM(E4:E71)","v":9567},{"$f":"SUM(F4:F71)","v":0},0,0,0,0,0,0,0,0,0,0,0,0,0,0]

{"sheet":"القليوبية","index":16,"n_rows":72,"n_cols":20,"rows_kept":72,"cut":false,"hidden":false,"merged":[[0,0,0,19],[1,5,1,18],[1,19,2,19],[71,0,71,3],[1,4,2,4],[1,0,2,0],[1,1,2,1],[1,2,2,2],[1,3,2,3]]}
["رصيد توكيل (         القليوبية         ) عن يوم (    2025/2/8                          )"]
["م","الكود","الصنف","الوحدة","الرصيد\n الدفترى\nبالكرتونة\n ","تاريخ الانتاج",null,null,null,null,null,null,null,null,null,null,null,null,null,"الرصيد\n الفعلى\nبالكرتونة\n"]
[null,null,null,null,null,"2024-01-01","2024-02-01","2024-03-01","2024-04-01","2024-05-01","2024-06-01","2024-07-01","2024-08-01","2024-09-01","2024-10-01","2024-11-01","2024-12-01","2025-01-01","2025-02-01"]
[1,6222000901529,"منتج 1","كرتونة",209,null,null,null,null,null,null,null,null,null,null,null,null,null,null,{"$f":"SUM(F4:S4)","v":0}]
[2,6222000901536,"منتج 2","كرتونة",0,null,null,null,null,null,null,null,null,null,null,null,null,null,null,{"$f":"SUM(F5:S5)","v":0}]
[3,6222000911733,"منتج 3","كرتونة",130,null,null,null,null,null,null,null,null,null,null,null,null,null,null,0]
[4,6222000911764,"منتج 4","كرتونة",43,null,null,null,null,null,null,null,null,null,null,null,null,null,null,0]
[5,"00743","منتج 5","كرتونة",2,null,null,null,null,null,null,null,null,null,null,null,null,null,null,0]
[6,6222000901758,"منتج 6","كرتونة",414,null,null,null,null,null,null,null,null,null,null,null,null,null,null,0]
[7,6222000912020,"منتج 7","كرتونة",102,null,null,null,null,null,null,null,null,null,null,null,null,null,null,0]
[8,6222000909815,"منتج 8","كرتونة",496,null,null,null,null,null,null,null,null,null,null,null,null,null,null,0]
[9,6222000908610,"منتج 9","كرتونة",0,null,null,null,null,null,null,null,null,null,null,null,null,null,null,0]
[10,6222000909891,"منتج 10","كرتونة",668,null,null,null,null,null,null,null,null,null,null,null,null,null,null,0]
[11,6222000911757,"منتج 11","كرتونة",0,null,null,null,null,null,null,null,null,null,null,null,null,null,null,0]
[12,"00744","منتج 12","كرتونة",40,null,null,null,null,null,null,null,null,null,null,null,null,null,null,0]
[13,6222000901642,"منتج 13","كرتونة",5,null,null,null,null,null,null,null,null,null,null,null,null,null,null,0]
[14,6222000912037,"منتج 14","كرتونة",103,null,null,null,null,null,null,null,null,null,null,null,null,null,null,0]
[15,6222000909808,"منتج 15","كرتونة",182,null,null,null,null,null,null,null,null,null,null,null,null,null,null,0]
[16,6222000905268,"منتج 16","كرتونة",0,null,null,null,null,null,null,null,null,null,null,null,null,null,null,0]
[17,6222000907583,"منتج 17","كرتونة",0,null,null,null,null,null,null,null,null,null,null,null,null,null,null,0]
[18,6222000909884,"منتج 18","كرتونة",650,null,null,null,null,null,null,null,null,null,null,null,null,null,null,0]
[19,"002770","منتج 19","كرتونة",0,null,null,null,null,null,null,null,null,null,null,null,null,null,null,0]
[20,6222000912525,"منتج 20","كرتونة",239,null,null,null,null,null,null,null,null,null,null,null,null,null,null,0]
[21,"6222000912518","منتج 21","كرتونة",0,null,null,null,null,null,null,null,null,null,null,null,null,null,null,0]
[22,"6222000908566","منتج 22","كرتونة",59,null,null,null,null,null,null,null,null,null,null,null,null,null,null,0]
[23,"6222000908573","منتج 23","كرتونة",15,null,null,null,null,null,null,null,null,null,null,null,null,null,null,0]
[24,6222000912501,"منتج 24","كرتونة",49,null,null,null,null,null,null,null,null,null,null,null,null,null,null,0]
[25,6222000912457,"منتج 25","كرتونة",40,null,null,null,null,null,null,null,null,null,null,null,null,null,null,0]
[26,6222000901611,"منتج 26","كرتونة",150,null,null,null,null,null,null,null,null,null,null,null,null,null,null,0]
[27,6222000909907,"منتج 27","كرتونة",315,null,null,null,null,null,null,null,null,null,null,null,null,null,null,0]
[28,6222000911498,"منتج 28","كرتونة",147,null,null,null,null,null,null,null,null,null,null,null,null,null,null,0]
[29,"002771","منتج 29","كرتونة",0,null,null,null,null,null,null,null,null,null,null,null,null,null,null,0]
[30,6222000912778,"منتج 30","كرتونة",743,null,null,null,null,null,null,null,null,null,null,null,null,null,null,0]
[31,6222000912822,"منتج 31","كرتونة",0,null,null,null,null,null,null,null,null,null,null,null,null,null,null,0]
[32,6222000912532,"منتج 32","كرتونة",46,null,null,null,null,null,null,null,null,null,null,null,null,null,null,0]
[33,6222000901697,"منتج 33","كرتونة",356,null,null,null,null,null,null,null,null,null,null,null,null,null,null,0]
[34,6222000911481,"منتج 34","كرتونة",0,null,null,null,null,null,null,null,null,null,null,null,null,null,null,0]
[35,6222000908276,"منتج 35","كرتونة",94,null,null,null,null,null,null,null,null,null,null,null,null,null,null,0]
[36,6222000909921,"منتج 36","كرتونة",0,null,null,null,null,null,null,null,null,null,null,null,null,null,null,0]
[37,6222000909839,"منتج 37","كرتونة",197,null,null,null,null,null,null,null,null,null,null,null,null,null,null,0]
[38,6222000908825,"منتج 38","كرتونة",0,null,null,null,null,null,null,null,null,null,null,null,null,null,null,0]
[39,6222000907637,"منتج 39","كرتونة",6,null,null,null,null,null,null,null,null,null,null,null,null,null,null,0]
[40,6222000903295,"منتج 40","كرتونة",9,null,null,null,null,null,null,null,null,null,null,null,null,null,null,0]
[41,6222000912006,"منتج 41","كرتونة",0,null,null,null,null,null,null,null,null,null,null,null,null,null,null,0]
[42,6222000911993,"منتج 42","كرتونة",0,null,null,null,null,null,null,null,null,null,null,null,null,null,null,0]
[43,6222000912013,"منتج 43","كرتونة",0,null,null,null,null,null,null,null,null,null,null,null,null,null,null,0]
[44,6222000964197,"منتج 44","كرتونة",0,null,null,null,null,null,null,null,null,null,null,null,null,null,null,0]
[45,6222000906630,"منتج 45","كرتونة",50,null,null,null,null,null,null,null,null,null,null,null,null,null,null,0]
[46,6222000902519,"منتج 46","كرتونة",70,null,null,null,null,null,null,null,null,null,null,null,null,null,null,0]
[47,6222000902557,"منتج 47","كرتونة",135,null,null,null,null,null,null,null,null,null,null,null,null,null,null,0]
[48,6222000902564,"منتج 48","كرتونة",40,null,null,null,null,null,null,null,null,null,null,null,null,null,null,0]
[49,6222000910033,"منتج 49","كرتونة",21,null,null,null,null,null,null,null,null,null,null,null,null,null,null,0]
[50,6222000910026,"منتج 50","كرتونة",0,null,null,null,null,null,null,null,null,null,null,null,null,null,null,0]
[51,6222000909945,"منتج 51","كرتونة",46,null,null,null,null,null,null,null,null,null,null,null,null,null,null,0]
[52,6222000910200,"منتج 52","كرتونة",586,null,null,null,null,null,null,null,null,null,null,null,null,null,null,0]
[53,6222000910514,"منتج 53","كرتونة",342,null,null,null,null,null,null,null,null,null,null,null,null,null,null,0]
[54,6222000909976,"منتج 54","كرتونة",1266,null,null,null,null,null,null,null,null,null,null,null,null,null,null,0]
[55,6222000909983,"منتج 55","كرتونة",579,null,null,null,null,null,null,null,null,null,null,null,null,null,null,0]
[56,6222000909969,"منتج 56","كرتونة",440,null,null,null,null,null,null,null,null,null,null,null,null,null,null,0]
[57,622200097116,"منتج 57","كرتونة",387,null,null,null,null,null,null,null,null,null,null,null,null,null,null,0]
[58,6222000912372,"منتج 58","كرتونة",676,null,null,null,null,null,null,null,null,null,null,null,null,null,null,0]
[59,6222000912488,"منتج 59","كرتونة",417,null,null,null,null,null,null,null,null,null,null,null,null,null,null,0]
[60,6222000914383,"منتج 60","كرتونة",0,null,null,null,null,null,null,null,null,null,null,null,null,null,null,0]
[61,6222000914369,"منتج 61","كرتونة",0,null,null,null,null,null,null,null,null,null,null,null,null,null,null,0]
[62,6222000914376,"منتج 62","كرتونة",0,null,null,null,null,null,null,null,null,null,null,null,null,null,null,0]
[63,6222000912365,"منتج 63","كرتونة",0,null,null,null,null,null,null,null,null,null,null,null,null,null,null,0]
[64,6222000902083,"منتج 64","كرتونة",13,null,null,null,null,null,null,null,null,null,null,null,null,null,null,0]
[65,6222000913904,"منتج 65","كرتونة",0,null,null,null,null,null,null,null,null,null,null,null,null,null,null,0]
[66,"EG-670026743-2453","منتج 66","كرتونة",0,null,null,null,null,null,null,null,null,null,null,null,null,null,null,{"$f":"SUM(F69:S69)","v":0}]
[67,6222000915243,"منتج 67","كرتونة",0,null,null,null,null,null,null,null,null,null,null,null,null,null,null,0]
[68,6888000909953,"منتج 68","كرتونة",445,null,null,null,null,null,null,null,null,null,null,null,null,null,null,0]
["الاجمالى",null,null,null,{"$f":"SUM(E4:E71)","v":11022},{"$f":"SUM(F4:F71)","v":0},0,0,0,0,0,0,0,0,0,0,0,0,0,0]

{"sheet":"الفيوم","index":17,"n_rows":72,"n_cols":20,"rows_kept":72,"cut":false,"hidden":false,"merged":[[0,0,0,19],[1,19,2,19],[1,5,1,18],[71,0,71,3],[1,4,2,4],[1,0,2,0],[1,1,2,1],[1,2,2,2],[1,3,2,3]]}
["رصيد توكيل (          الفيوم        ) عن يوم (                 8-2-2025                )"]
["م","الكود","الصنف","الوحدة","الرصيد\n الدفترى\nبالكرتونة\n ",null,null,null,null,null,null,null,null,null,null,null,null,null,null,"الرصيد\n الفعلى\nبالكرتونة\n"]
[null,null,null,null,null,"2024-01-01","2024-02-01","2024-03-01","2024-04-01","2024-05-01","2024-06-01","2024-07-01","2024-08-01","2024-09-01","2024-10-01","2024-11-01","2024-12-01","2025-01-01","2025-02-01"]
[1,6222000901529,"منتج 1","كرتونة",82,null,null,null,null,null,null,null,null,null,null,null,null,null,null,{"$f":"SUM(F4:S4)","v":0}]
[2,6222000901536,"منتج 2","كرتونة",83,null,null,null,null,null,null,null,null,null,null,null,null,null,null,{"$f":"SUM(F5:S5)","v":0}]
[3,6222000911733,"منتج 3","كرتونة",129,null,null,null,null,null,null,null,null,null,null,null,null,null,null,0]
[4,6222000911764,"منتج 4","كرتونة",40,null,null,null,null,null,null,null,null,null,null,null,null,null,null,0]
[5,"00743","منتج 5","كرتونة",94,null,null,null,null,null,null,null,null,null,null,null,null,null,null,0]
[6,6222000901758,"منتج 6","كرتونة",15,null,null,null,null,null,null,null,null,null,null,null,null,null,null,0]
[7,6222000912020,"منتج 7","كرتونة",25,null,null,null,null,null,null,null,null,null,null,null,null,null,null,0]
[8,6222000909815,"منتج 8","كرتونة",21,null,null,null,null,null,null,null,null,null,null,null,null,null,null,0]
[9,6222000908610,"منتج 9","كرتونة",0,null,null,null,null,null,null,null,null,null,null,null,null,null,null,0]
[10,6222000909891,"منتج 10","كرتونة",0,null,null,null,null,null,null,null,null,null,null,null,null,null,null,0]
[11,6222000911757,"منتج 11","كرتونة",0,null,null,null,null,null,null,null,null,null,null,null,null,null,null,0]
[12,"00744","منتج 12","كرتونة",101,null,null,null,null,null,null,null,null,null,null,null,null,null,null,0]
[13,6222000901642,"منتج 13","كرتونة",12,null,null,null,null,null,null,null,null,null,null,null,null,null,null,0]
[14,6222000912037,"منتج 14","كرتونة",0,null,null,null,null,null,null,null,null,null,null,null,null,null,null,0]
[15,6222000909808,"منتج 15","كرتونة",35,null,null,null,null,null,null,null,null,null,null,null,null,null,null,0]
[16,6222000905268,"منتج 16","كرتونة",0,null,null,null,null,null,null,null,null,null,null,null,null,null,null,0]
[17,6222000907583,"منتج 17","كرتونة",0,null,null,null,null,null,null,null,null,null,null,null,null,null,null,0]
[18,6222000909884,"منتج 18","كرتونة",13,null,null,null,null,null,null,null,null,null,null,null,null,null,null,0]
[19,"002770","منتج 19","كرتونة",0,null,null,null,null,null,null,null,null,null,null,null,null,null,null,0]
[20,6222000912525,"منتج 20","كرتونة",0,null,null,null,null,null,null,null,null,null,null,null,null,null,null,0]
[21,"6222000912518","منتج 21","كرتونة",150,null,null,null,null,null,null,null,null,null,null,null,null,null,null,0]
[22,"6222000908566","منتج 22","كرتونة",0,null,null,null,null,null,null,null,null,null,null,null,null,null,null,0]
[23,"6222000908573","منتج 23","كرتونة",20,null,null,null,null,null,null,null,null,null,null,null,null,null,null,0]
[24,6222000912501,"منتج 24","كرتونة",0,null,null,null,null,null,null,null,null,null,null,null,null,null,null,0]
[25,6222000912457,"منتج 25","كرتونة",0,null,null,null,null,null,null,null,null,null,null,null,null,null,null,0]
[26,6222000901611,"منتج 26","كرتونة",69.5,null,null,null,null,null,null,null,null,null,null,null,null,null,null,0]
[27,6222000909907,"منتج 27","كرتونة",0,null,null,null,null,null,null,null,null,null,null,null,null,null,null,0]
[28,6222000911498,"منتج 28","كرتونة",44,null,null,null,null,null,null,null,null,null,null,null,null,null,null,0]
[29,"002771","منتج 29","كرتونة",0,null,null,null,null,null,null,null,null,null,null,null,null,null,null,0]
[30,6222000912778,"منتج 30","كرتونة",0,null,null,null,null,null,null,null,null,null,null,null,null,null,null,0]
[31,6222000912822,"منتج 31","كرتونة",32,null,null,null,null,null,null,null,null,null,null,null,null,null,null,0]
[32,6222000912532,"منتج 32","كرتونة",0,null,null,null,null,null,null,null,null,null,null,null,null,null,null,0]
[33,6222000901697,"منتج 33","كرتونة",32,null,null,null,null,null,null,null,null,null,null,null,null,null,null,0]
[34,6222000911481,"منتج 34","كرتونة",0,null,null,null,null,null,null,null,null,null,null,null,null,null,null,0]
[35,6222000908276,"منتج 35","كرتونة",3,null,null,null,null,null,null,null,null,null,null,null,null,null,null,0]
[36,6222000909921,"منتج 36","كرتونة",0,null,null,null,null,null,null,null,null,null,null,null,null,null,null,0]
[37,6222000909839,"منتج 37","كرتونة",99,null,null,null,null,null,null,null,null,null,null,null,null,null,null,0]
[38,6222000908825,"منتج 38","كرتونة",72,null,null,null,null,null,null,null,null,null,null,null,null,null,null,0]
[39,6222000907637,"منتج 39","كرتونة",0,null,null,null,null,null,null,null,null,null,null,null,null,null,null,0]
[40,6222000903295,"منتج 40","كرتونة",0,null,null,null,null,null,null,null,null,null,null,null,null,null,null,0]
[41,6222000912006,"منتج 41","كرتونة",0,null,null,null,null,null,null,null,null,null,null,null,null,null,null,0]
[42,6222000911993,"منتج 42","كرتونة",0,null,null,null,null,null,null,null,null,null,null,null,null,null,null,0]
[43,6222000912013,"منتج 43","كرتونة",0,null,null,null,null,null,null,null,null,null,null,null,null,null,null,0]
[44,6222000964197,"منتج 44","كرتونة",0,null,null,null,null,null,null,null,null,null,null,null,null,null,null,0]
[45,6222000906630,"منتج 45","كرتونة",0,null,null,null,null,null,null,null,null,null,null,null,null,null,null,0]
[46,6222000902519,"منتج 46","كرتونة",84,null,null,null,null,null,null,null,null,null,null,null,null,null,null,0]
[47,6222000902557,"منتج 47","كرتونة",73,null,null,null,null,null,null,null,null,null,null,null,null,null,null,0]
[48,6222000902564,"منتج 48","كرتونة",43,null,null,null,null,null,null,null,null,null,null,null,null,null,null,0]
[49,6222000910033,"منتج 49","كرتونة",0,null,null,null,null,null,null,null,null,null,null,null,null,null,null,0]
[50,6222000910026,"منتج 50","كرتونة",0,null,null,null,null,null,null,null,null,null,null,null,null,null,null,0]
[51,6222000909945,"منتج 51","كرتونة",0,null,null,null,null,null,null,null,null,null,null,null,null,null,null,0]
[52,6222000910200,"منتج 52","كرتونة",531,null,null,null,null,null,null,null,null,null,null,null,null,null,null,0]
[53,6222000910514,"منتج 53","كرتونة",264,null,null,null,null,null,null,null,null,null,null,null,null,null,null,0]
[54,6222000909976,"منتج 54","كرتونة",0,null,null,null,null,null,null,null,null,null,null,null,null,null,null,0]
[55,6222000909983,"منتج 55","كرتونة",0,null,null,null,null,null,null,null,null,null,null,null,null,null,null,0]
[56,6222000909969,"منتج 56","كرتونة",0,null,null,null,null,null,null,null,null,null,null,null,null,null,null,0]
[57,622200097116,"منتج 57","كرتونة",306,null,null,null,null,null,null,null,null,null,null,null,null,null,null,0]
[58,6222000912372,"منتج 58","كرتونة",0,null,null,null,null,null,null,null,null,null,null,null,null,null,null,0]
[59,6222000912488,"منتج 59","كرتونة",181,null,null,null,null,null,null,null,null,null,null,null,null,null,null,0]
[60,6222000914383,"منتج 60","كرتونة",0,null,null,null,null,null,null,null,null,null,null,null,null,null,null,0]
[61,6222000914369,"منتج 61","كرتونة",0,null,null,null,null,null,null,null,null,null,null,null,null,null,null,0]
[62,6222000914376,"منتج 62","كرتونة",0,null,null,null,null,null,null,null,null,null,null,null,null,null,null,0]
[63,6222000912365,"منتج 63","كرتونة",35,null,null,null,null,null,null,null,null,null,null,null,null,null,null,0]
[64,6222000902083,"منتج 64","كرتونة",0,null,null,null,null,null,null,null,null,null,null,null,null,null,null,0]
[65,6222000913904,"منتج 65","كرتونة",9,null,null,null,null,null,null,null,null,null,null,null,null,null,null,0]
[66,"EG-670026743-2453","منتج 66","كرتونة",0,null,null,null,null,null,null,null,null,null,null,null,null,null,null,{"$f":"SUM(F69:S69)","v":0}]
[67,6222000915243,"منتج 67","كرتونة",0,null,null,null,null,null,null,null,null,null,null,null,null,null,null,0]
[68,6888000909953,"منتج 68","كرتونة",0,null,null,null,null,null,null,null,null,null,null,null,null,null,null,0]
["الاجمالى",null,null,null,{"$f":"SUM(E4:E71)","v":2697.5},{"$f":"SUM(F4:F71)","v":0},0,0,0,0,0,0,0,0,0,0,0,0,0,0]

{"sheet":"بنى سويف","index":18,"n_rows":72,"n_cols":20,"rows_kept":72,"cut":false,"hidden":false,"merged":[[71,0,71,3],[0,0,0,19],[1,0,2,0],[1,1,2,1],[1,2,2,2],[1,3,2,3],[1,4,2,4],[1,19,2,19],[1,5,1,18]]}
["رصيد توكيل (    بنى سويف     ) عن يوم (         8-2-2025        )"]
["م","الكود","الصنف","الوحدة","الرصيد\n الدفترى\nبالكرتونة\n ","تاريخ الانتاج",null,null,null,null,null,null,null,null,null,null,null,null,null,"الرصيد\n الفعلى\nبالكرتونة\n"]
[null,null,null,null,null,"2024-01-01","2024-02-01","2024-03-01","2024-04-01","2024-05-01","2024-06-01","2024-07-01","2024-08-01","2024-09-01","2024-10-01","2024-11-01","2024-12-01","2025-01-01","2025-02-01"]
[1,6222000901529,"منتج 1","كرتونة",190,null,null,null,null,null,null,null,null,null,null,null,null,null,null,{"$f":"SUM(F4:S4)","v":0}]
[2,6222000901536,"منتج 2","كرتونة",50,null,null,null,null,null,null,null,null,null,null,null,null,null,null,{"$f":"SUM(F5:S5)","v":0}]
[3,6222000911733,"منتج 3","كرتونة",33,null,null,null,null,null,null,null,null,null,null,null,null,null,null,0]
[4,6222000911764,"منتج 4","كرتونة",0,null,null,null,null,null,null,null,null,null,null,null,null,null,null,0]
[5,"00743","منتج 5","كرتونة",17,null,null,null,null,null,null,null,null,null,null,null,null,null,null,0]
[6,6222000901758,"منتج 6","كرتونة",3,null,null,null,null,null,null,null,null,null,null,null,null,null,null,0]
[7,6222000912020,"منتج 7","كرتونة",30,null,null,null,null,null,null,null,null,null,null,null,null,null,null,0]
[8,6222000909815,"منتج 8","كرتونة",29,null,null,null,null,null,null,null,null,null,null,null,null,null,null,0]
[9,6222000908610,"منتج 9","كرتونة",27,null,null,null,null,null,null,null,null,null,null,null,null,null,null,0]
[10,6222000909891,"منتج 10","كرتونة",220,null,null,null,null,null,null,null,null,null,null,null,null,null,null,0]
[11,6222000911757,"منتج 11","كرتونة",0,null,null,null,null,null,null,null,null,null,null,null,null,null,null,0]
[12,"00744","منتج 12","كرتونة",153,null,null,null,null,null,null,null,null,null,null,null,null,null,null,0]
[13,6222000901642,"منتج 13","كرتونة",5,null,null,null,null,null,null,null,null,null,null,null,null,null,null,0]
[14,6222000912037,"منتج 14","كرتونة",60,null,null,null,null,null,null,null,null,null,null,null,null,null,null,0]
[15,6222000909808,"منتج 15","كرتونة",14,null,null,null,null,null,null,null,null,null,null,null,null,null,null,0]
[16,6222000905268,"منتج 16","كرتونة",0,null,null,null,null,null,null,null,null,null,null,null,null,null,null,0]
[17,6222000907583,"منتج 17","كرتونة",20,null,null,null,null,null,null,null,null,null,null,null,null,null,null,0]
[18,6222000909884,"منتج 18","كرتونة",12,null,null,null,null,null,null,null,null,null,null,null,null,null,null,0]
[19,"002770","منتج 19","كرتونة",0,null,null,null,null,null,null,null,null,null,null,null,null,null,null,0]
[20,6222000912525,"منتج 20","كرتونة",159,null,null,null,null,null,null,null,null,null,null,null,null,null,null,0]
[21,"6222000912518","منتج 21","كرتونة",63,null,null,null,null,null,null,null,null,null,null,null,null,null,null,0]
[22,"6222000908566","منتج 22","كرتونة",10,null,null,null,null,null,null,null,null,null,null,null,null,null,null,0]
[23,"6222000908573","منتج 23","كرتونة",29,null,null,null,null,null,null,null,null,null,null,null,null,null,null,0]
[24,6222000912501,"منتج 24","كرتونة",0,null,null,null,null,null,null,null,null,null,null,null,null,null,null,0]
[25,6222000912457,"منتج 25","كرتونة",117,null,null,null,null,null,null,null,null,null,null,null,null,null,null,0]
[26,6222000901611,"منتج 26","كرتونة",0,null,null,null,null,null,null,null,null,null,null,null,null,null,null,0]
[27,6222000909907,"منتج 27","كرتونة",0,null,null,null,null,null,null,null,null,null,null,null,null,null,null,0]
[28,6222000911498,"منتج 28","كرتونة",22,null,null,null,null,null,null,null,null,null,null,null,null,null,null,0]
[29,"002771","منتج 29","كرتونة",0,null,null,null,null,null,null,null,null,null,null,null,null,null,null,0]
[30,6222000912778,"منتج 30","كرتونة",33,null,null,null,null,null,null,null,null,null,null,null,null,null,null,0]
[31,6222000912822,"منتج 31","كرتونة",0,null,null,null,null,null,null,null,null,null,null,null,null,null,null,0]
[32,6222000912532,"منتج 32","كرتونة",92,null,null,null,null,null,null,null,null,null,null,null,null,null,null,0]
[33,6222000901697,"منتج 33","كرتونة",311,null,null,null,null,null,null,null,null,null,null,null,null,null,null,0]
[34,6222000911481,"منتج 34","كرتونة",0,null,null,null,null,null,null,null,null,null,null,null,null,null,null,0]
[35,6222000908276,"منتج 35","كرتونة",152,null,null,null,null,null,null,null,null,null,null,null,null,null,null,0]
[36,6222000909921,"منتج 36","كرتونة",0,null,null,null,null,null,null,null,null,null,null,null,null,null,null,0]
[37,6222000909839,"منتج 37","كرتونة",188,null,null,null,null,null,null,null,null,null,null,null,null,null,null,0]
[38,6222000908825,"منتج 38","كرتونة",0,null,null,null,null,null,null,null,null,null,null,null,null,null,null,0]
[39,6222000907637,"منتج 39","كرتونة",20,null,null,null,null,null,null,null,null,null,null,null,null,null,null,0]
[40,6222000903295,"منتج 40","كرتونة",0,null,null,null,null,null,null,null,null,null,null,null,null,null,null,0]
[41,6222000912006,"منتج 41","كرتونة",0,null,null,null,null,null,null,null,null,null,null,null,null,null,null,0]
[42,6222000911993,"منتج 42","كرتونة",0,null,null,null,null,null,null,null,null,null,null,null,null,null,null,0]
[43,6222000912013,"منتج 43","كرتونة",0,null,null,null,null,null,null,null,null,null,null,null,null,null,null,0]
[44,6222000964197,"منتج 44","كرتونة",0,null,null,null,null,null,null,null,null,null,null,null,null,null,null,0]
[45,6222000906630,"منتج 45","كرتونة",65,null,null,null,null,null,null,null,null,null,null,null,null,null,null,0]
[46,6222000902519,"منتج 46","كرتونة",14,null,null,null,null,null,null,null,null,null,null,null,null,null,null,0]
[47,6222000902557,"منتج 47","كرتونة",77,null,null,null,null,null,null,null,null,null,null,null,null,null,null,0]
[48,6222000902564,"منتج 48","كرتونة",113,null,null,null,null,null,null,null,null,null,null,null,null,null,null,0]
[49,6222000910033,"منتج 49","كرتونة",0,null,null,null,null,null,null,null,null,null,null,null,null,null,null,0]
[50,6222000910026,"منتج 50","كرتونة",0,null,null,null,null,null,null,null,null,null,null,null,null,null,null,0]
[51,6222000909945,"منتج 51","كرتونة",0,null,null,null,null,null,null,null,null,null,null,null,null,null,null,0]
[52,6222000910200,"منتج 52","كرتونة",596,null,null,null,null,null,null,null,null,null,null,null,null,null,null,0]
[53,6222000910514,"منتج 53","كرتونة",737,null,null,null,null,null,null,null,null,null,null,null,null,null,null,0]
[54,6222000909976,"منتج 54","كرتونة",0,null,null,null,null,null,null,null,null,null,null,null,null,null,null,0]
[55,6222000909983,"منتج 55","كرتونة",1,null,null,null,null,null,null,null,null,null,null,null,null,null,null,0]
[56,6222000909969,"منتج 56","كرتونة",137,null,null,null,null,null,null,null,null,null,null,null,null,null,null,0]
[57,622200097116,"منتج 57","كرتونة",24,null,null,null,null,null,null,null,null,null,null,null,null,null,null,0]
[58,6222000912372,"منتج 58","كرتونة",0,null,null,null,null,null,null,null,null,null,null,null,null,null,null,0]
[59,6222000912488,"منتج 59","كرتونة",175,null,null,null,null,null,null,null,null,null,null,null,null,null,null,0]
[60,6222000914383,"منتج 60","كرتونة",0,null,null,null,null,null,null,null,null,null,null,null,null,null,null,0]
[61,6222000914369,"منتج 61","كرتونة",0,null,null,null,null,null,null,null,null,null,null,null,null,null,null,0]
[62,6222000914376,"منتج 62","كرتونة",0,null,null,null,null,null,null,null,null,null,null,null,null,null,null,0]
[63,6222000912365,"منتج 63","كرتونة",143,null,null,null,null,null,null,null,null,null,null,null,null,null,null,0]
[64,6222000902083,"منتج 64","كرتونة",0,null,null,null,null,null,null,null,null,null,null,null,null,null,null,0]
[65,6222000913904,"منتج 65","كرتونة",0,null,null,null,null,null,null,null,null,null,null,null,null,null,null,0]
[66,"EG-670026743-2453","منتج 66","كرتونة",0,null,null,null,null,null,null,null,null,null,null,null,null,null,null,{"$f":"SUM(F69:S69)","v":0}]
[67,6222000915243,"منتج 67","كرتونة",0,null,null,null,null,null,null,null,null,null,null,null,null,null,null,0]
[68,6888000909953,"منتج 68","كرتونة",188,null,null,null,null,null,null,null,null,null,null,null,null,null,null,0]
["الاجمالى",null,null,null,{"$f":"SUM(E4:E71)","v":4329},{"$f":"SUM(F4:F71)","v":0},0,0,0,0,0,0,0,0,0,0,0,0,0,0]

{"sheet":"المنيا","index":19,"n_rows":72,"n_cols":20,"rows_kept":72,"cut":false,"hidden":false,"merged":[[0,0,0,19],[1,5,1,18],[1,19,2,19],[71,0,71,3],[1,4,2,4],[1,0,2,0],[1,1,2,1],[1,2,2,2],[1,3,2,3]]}
["رصيد توكيل (     المنيا             ) عن يوم (        8-2-2025                          )"]
["م","الكود","الصنف","الوحدة","الرصيد\n الدفترى\nبالكرتونة\n ","تاريخ الانتاج",null,null,null,null,null,null,null,null,null,null,null,null,null,"الرصيد\n الفعلى\nبالكرتونة\n"]
[null,null,null,null,null,"2024-01-01","2024-02-01","2024-03-01","2024-04-01","2024-05-01","2024-06-01","2024-07-01","2024-08-01","2024-09-01","2024-10-01","2024-11-01","2024-12-01","2025-01-01","2025-02-01"]
[1,6222000901529,"منتج 1","كرتونة",138,null,null,null,null,null,null,null,null,null,null,null,null,null,null,{"$f":"SUM(F4:S4)","v":0}]
[2,6222000901536,"منتج 2","كرتونة",50,null,null,null,null,null,null,null,null,null,null,null,null,null,null,{"$f":"SUM(F5:S5)","v":0}]
[3,6222000911733,"منتج 3","كرتونة",234,null,null,null,null,null,null,null,null,null,null,null,null,null,null,0]
[4,6222000911764,"منتج 4","كرتونة",251,null,null,null,null,null,null,null,null,null,null,null,null,null,null,0]
[5,"00743","منتج 5","كرتونة",38,null,null,null,null,null,null,null,null,null,null,null,null,null,null,0]
[6,6222000901758,"منتج 6","كرتونة",61,null,null,null,null,null,null,null,null,null,null,null,null,null,null,0]
[7,6222000912020,"منتج 7","كرتونة",5,null,null,null,null,null,null,null,null,null,null,null,null,null,null,0]
[8,6222000909815,"منتج 8","كرتونة",54,null,null,null,null,null,null,null,null,null,null,null,null,null,null,0]
[9,6222000908610,"منتج 9","كرتونة",10,null,null,null,null,null,null,null,null,null,null,null,null,null,null,0]
[10,6222000909891,"منتج 10","كرتونة",73,null,null,null,null,null,null,null,null,null,null,null,null,null,null,0]
[11,6222000911757,"منتج 11","كرتونة",0,null,null,null,null,null,null,null,null,null,null,null,null,null,null,0]
[12,"00744","منتج 12","كرتونة",102,null,null,null,null,null,null,null,null,null,null,null,null,null,null,0]
[13,6222000901642,"منتج 13","كرتونة",0,null,null,null,null,null,null,null,null,null,null,null,null,null,null,0]
[14,6222000912037,"منتج 14","كرتونة",0,null,null,null,null,null,null,null,null,null,null,null,null,null,null,0]
[15,6222000909808,"منتج 15","كرتونة",0,null,null,null,null,null,null,null,null,null,null,null,null,null,null,0]
[16,6222000905268,"منتج 16","كرتونة",0,null,null,null,null,null,null,null,null,null,null,null,null,null,null,0]
[17,6222000907583,"منتج 17","كرتونة",11,null,null,null,null,null,null,null,null,null,null,null,null,null,null,0]
[18,6222000909884,"منتج 18","كرتونة",58,null,null,null,null,null,null,null,null,null,null,null,null,null,null,0]
[19,"002770","منتج 19","كرتونة",0,null,null,null,null,null,null,null,null,null,null,null,null,null,null,0]
[20,6222000912525,"منتج 20","كرتونة",45,null,null,null,null,null,null,null,null,null,null,null,null,null,null,0]
[21,"6222000912518","منتج 21","كرتونة",283,null,null,null,null,null,null,null,null,null,null,null,null,null,null,0]
[22,"6222000908566","منتج 22","كرتونة",10,null,null,null,null,null,null,null,null,null,null,null,null,null,null,0]
[23,"6222000908573","منتج 23","كرتونة",5,null,null,null,null,null,null,null,null,null,null,null,null,null,null,0]
[24,6222000912501,"منتج 24","كرتونة",0,null,null,null,null,null,null,null,null,null,null,null,null,null,null,0]
[25,6222000912457,"منتج 25","كرتونة",0,null,null,null,null,null,null,null,null,null,null,null,null,null,null,0]
[26,6222000901611,"منتج 26","كرتونة",83,null,null,null,null,null,null,null,null,null,null,null,null,null,null,0]
[27,6222000909907,"منتج 27","كرتونة",0,null,null,null,null,null,null,null,null,null,null,null,null,null,null,0]
[28,6222000911498,"منتج 28","كرتونة",45,null,null,null,null,null,null,null,null,null,null,null,null,null,null,0]
[29,"002771","منتج 29","كرتونة",0,null,null,null,null,null,null,null,null,null,null,null,null,null,null,0]
[30,6222000912778,"منتج 30","كرتونة",33,null,null,null,null,null,null,null,null,null,null,null,null,null,null,0]
[31,6222000912822,"منتج 31","كرتونة",0,null,null,null,null,null,null,null,null,null,null,null,null,null,null,0]
[32,6222000912532,"منتج 32","كرتونة",31,null,null,null,null,null,null,null,null,null,null,null,null,null,null,0]
[33,6222000901697,"منتج 33","كرتونة",806,null,null,null,null,null,null,null,null,null,null,null,null,null,null,0]
[34,6222000911481,"منتج 34","كرتونة",0,null,null,null,null,null,null,null,null,null,null,null,null,null,null,0]
[35,6222000908276,"منتج 35","كرتونة",205,null,null,null,null,null,null,null,null,null,null,null,null,null,null,0]
[36,6222000909921,"منتج 36","كرتونة",0,null,null,null,null,null,null,null,null,null,null,null,null,null,null,0]
[37,6222000909839,"منتج 37","كرتونة",56,null,null,null,null,null,null,null,null,null,null,null,null,null,null,0]
[38,6222000908825,"منتج 38","كرتونة",0,null,null,null,null,null,null,null,null,null,null,null,null,null,null,0]
[39,6222000907637,"منتج 39","كرتونة",0,null,null,null,null,null,null,null,null,null,null,null,null,null,null,0]
[40,6222000903295,"منتج 40","كرتونة",5,null,null,null,null,null,null,null,null,null,null,null,null,null,null,0]
[41,6222000912006,"منتج 41","كرتونة",204,null,null,null,null,null,null,null,null,null,null,null,null,null,null,0]
[42,6222000911993,"منتج 42","كرتونة",183,null,null,null,null,null,null,null,null,null,null,null,null,null,null,0]
[43,6222000912013,"منتج 43","كرتونة",209,null,null,null,null,null,null,null,null,null,null,null,null,null,null,0]
[44,6222000964197,"منتج 44","كرتونة",0,null,null,null,null,null,null,null,null,null,null,null,null,null,null,0]
[45,6222000906630,"منتج 45","كرتونة",75,null,null,null,null,null,null,null,null,null,null,null,null,null,null,0]
[46,6222000902519,"منتج 46","كرتونة",67,null,null,null,null,null,null,null,null,null,null,null,null,null,null,0]
[47,6222000902557,"منتج 47","كرتونة",81,null,null,null,null,null,null,null,null,null,null,null,null,null,null,0]
[48,6222000902564,"منتج 48","كرتونة",111,null,null,null,null,null,null,null,null,null,null,null,null,null,null,0]
[49,6222000910033,"منتج 49","كرتونة",0,null,null,null,null,null,null,null,null,null,null,null,null,null,null,0]
[50,6222000910026,"منتج 50","كرتونة",0,null,null,null,null,null,null,null,null,null,null,null,null,null,null,0]
[51,6222000909945,"منتج 51","كرتونة",0,null,null,null,null,null,null,null,null,null,null,null,null,null,null,0]
[52,6222000910200,"منتج 52","كرتونة",753,null,null,null,null,null,null,null,null,null,null,null,null,null,null,0]
[53,6222000910514,"منتج 53","كرتونة",661,null,null,null,null,null,null,null,null,null,null,null,null,null,null,0]
[54,6222000909976,"منتج 54","كرتونة",0,null,null,null,null,null,null,null,null,null,null,null,null,null,null,0]
[55,6222000909983,"منتج 55","كرتونة",234,null,null,null,null,null,null,null,null,null,null,null,null,null,null,0]
[56,6222000909969,"منتج 56","كرتونة",0,null,null,null,null,null,null,null,null,null,null,null,null,null,null,0]
[57,622200097116,"منتج 57","كرتونة",2556,null,null,null,null,null,null,null,null,null,null,null,null,null,null,0]
[58,6222000912372,"منتج 58","كرتونة",178,null,null,null,null,null,null,null,null,null,null,null,null,null,null,0]
[59,6222000912488,"منتج 59","كرتونة",316,null,null,null,null,null,null,null,null,null,null,null,null,null,null,0]
[60,6222000914383,"منتج 60","كرتونة",0,null,null,null,null,null,null,null,null,null,null,null,null,null,null,0]
[61,6222000914369,"منتج 61","كرتونة",0,null,null,null,null,null,null,null,null,null,null,null,null,null,null,0]
[62,6222000914376,"منتج 62","كرتونة",0,null,null,null,null,null,null,null,null,null,null,null,null,null,null,0]
[63,6222000912365,"منتج 63","كرتونة",72,null,null,null,null,null,null,null,null,null,null,null,null,null,null,0]
[64,6222000902083,"منتج 64","كرتونة",0,null,null,null,null,null,null,null,null,null,null,null,null,null,null,0]
[65,6222000913904,"منتج 65","كرتونة",0,null,null,null,null,null,null,null,null,null,null,null,null,null,null,0]
[66,"EG-670026743-2453","منتج 66","كرتونة",0,null,null,null,null,null,null,null,null,null,null,null,null,null,null,{"$f":"SUM(F69:S69)","v":0}]
[67,6222000915243,"منتج 67","كرتونه",20,null,null,null,null,null,null,null,null,null,null,null,null,null,null,0]
[68,6888000909953,"منتج 68","كرتونه",36,null,null,null,null,null,null,null,null,null,null,null,null,null,null,0]
["الاجمالى",null,null,null,{"$f":"SUM(E4:E71)","v":8448},0,0,0,0,0,0,0,0,0,0,0,0,0,0,0]

{"sheet":"اسيوط","index":20,"n_rows":72,"n_cols":20,"rows_kept":72,"cut":false,"hidden":false,"merged":[[0,0,0,19],[1,5,1,18],[1,19,2,19],[71,0,71,3],[1,4,2,4],[1,0,2,0],[1,1,2,1],[1,2,2,2],[1,3,2,3]]}
["توكيل اسيوط  ( 8/2/2025  )"]
["م","الكود","الصنف","الوحدة","الرصيد\n الدفترى\nبالكرتونة\n ","تاريخ الانتاج",null,null,null,null,null,null,null,null,null,null,null,null,null,"الرصيد\n الفعلى\nبالكرتونة\n"]
[null,null,null,null,null,"2024-01-01","2024-02-01","2024-03-01","2024-04-01","2024-05-01","2024-06-01","2024-07-01","2024-08-01","2024-09-01","2024-10-01","2024-11-01","2024-12-01","2025-01-01","2025-02-01"]
[1,6222000901529,"منتج 1","كرتونة",285,null,null,null,null,null,null,null,null,null,null,null,null,null,null,{"$f":"SUM(F4:S4)","v":0}]
[2,6222000901536,"منتج 2","كرتونة",332,null,null,null,null,null,null,null,null,null,null,null,null,null,null,{"$f":"SUM(F5:S5)","v":0}]
[3,6222000911733,"منتج 3","كرتونة",74,null,null,null,null,null,null,null,null,null,null,null,null,null,null,0]
[4,6222000911764,"منتج 4","كرتونة",9,null,null,null,null,null,null,null,null,null,null,null,null,null,null,0]
[5,"00743","منتج 5","كرتونة",21,null,null,null,null,null,null,null,null,null,null,null,null,null,null,0]
[6,6222000901758,"منتج 6","كرتونة",191,null,null,null,null,null,null,null,null,null,null,null,null,null,null,0]
[7,6222000912020,"منتج 7","كرتونة",15,null,null,null,null,null,null,null,null,null,null,null,null,null,null,0]
[8,6222000909815,"منتج 8","كرتونة",21,null,null,null,null,null,null,null,null,null,null,null,null,null,null,0]
[9,6222000908610,"منتج 9","كرتونة",106,null,null,null,null,null,null,null,null,null,null,null,null,null,null,0]
[10,6222000909891,"منتج 10","كرتونة",0,null,null,null,null,null,null,null,null,null,null,null,null,null,null,0]
[11,6222000911757,"منتج 11","كرتونة",0,null,null,null,null,null,null,null,null,null,null,null,null,null,null,0]
[12,"00744","منتج 12","كرتونة",94,null,null,null,null,null,null,null,null,null,null,null,null,null,null,0]
[13,6222000901642,"منتج 13","كرتونة",71,null,null,null,null,null,null,null,null,null,null,null,null,null,null,0]
[14,6222000912037,"منتج 14","كرتونة",0,null,null,null,null,null,null,null,null,null,null,null,null,null,null,0]
[15,6222000909808,"منتج 15","كرتونة",55,null,null,null,null,null,null,null,null,null,null,null,null,null,null,0]
[16,6222000905268,"منتج 16","كرتونة",0,null,null,null,null,null,null,null,null,null,null,null,null,null,null,0]
[17,6222000907583,"منتج 17","كرتونة",0,null,null,null,null,null,null,null,null,null,null,null,null,null,null,0]
[18,6222000909884,"منتج 18","كرتونة",0,null,null,null,null,null,null,null,null,null,null,null,null,null,null,0]
[19,"002770","منتج 19","كرتونة",0,null,null,null,null,null,null,null,null,null,null,null,null,null,null,0]
[20,6222000912525,"منتج 20","كرتونة",25,null,null,null,null,null,null,null,null,null,null,null,null,null,null,0]
[21,"6222000912518","منتج 21","كرتونة",153,null,null,null,null,null,null,null,null,null,null,null,null,null,null,0]
[22,"6222000908566","منتج 22","كرتونة",22,null,null,null,null,null,null,null,null,null,null,null,null,null,null,0]
[23,"6222000908573","منتج 23","كرتونة",13,null,null,null,null,null,null,null,null,null,null,null,null,null,null,0]
[24,6222000912501,"منتج 24","كرتونة",0,null,null,null,null,null,null,null,null,null,null,null,null,null,null,0]
[25,6222000912457,"منتج 25","كرتونة",0,null,null,null,null,null,null,null,null,null,null,null,null,null,null,0]
[26,6222000901611,"منتج 26","كرتونة",334,null,null,null,null,null,null,null,null,null,null,null,null,null,null,0]
[27,6222000909907,"منتج 27","كرتونة",0,null,null,null,null,null,null,null,null,null,null,null,null,null,null,0]
[28,6222000911498,"منتج 28","كرتونة",21,null,null,null,null,null,null,null,null,null,null,null,null,null,null,0]
[29,"002771","منتج 29","كرتونة",0,null,null,null,null,null,null,null,null,null,null,null,null,null,null,0]
[30,6222000912778,"منتج 30","كرتونة",47,null,null,null,null,null,null,null,null,null,null,null,null,null,null,0]
[31,6222000912822,"منتج 31","كرتونة",0,null,null,null,null,null,null,null,null,null,null,null,null,null,null,0]
[32,6222000912532,"منتج 32","كرتونة",0,null,null,null,null,null,null,null,null,null,null,null,null,null,null,0]
[33,6222000901697,"منتج 33","كرتونة",1351,null,null,null,null,null,null,null,null,null,null,null,null,null,null,0]
[34,6222000911481,"منتج 34","كرتونة",0,null,null,null,null,null,null,null,null,null,null,null,null,null,null,0]
[35,6222000908276,"منتج 35","كرتونة",61,null,null,null,null,null,null,null,null,null,null,null,null,null,null,0]
[36,6222000909921,"منتج 36","كرتونة",0,null,null,null,null,null,null,null,null,null,null,null,null,null,null,0]
[37,6222000909839,"منتج 37","كرتونة",77,null,null,null,null,null,null,null,null,null,null,null,null,null,null,0]
[38,6222000908825,"منتج 38","كرتونة",73,null,null,null,null,null,null,null,null,null,null,null,null,null,null,0]
[39,6222000907637,"منتج 39","كرتونة",0,null,null,null,null,null,null,null,null,null,null,null,null,null,null,0]
[40,6222000903295,"منتج 40","كرتونة",62,null,null,null,null,null,null,null,null,null,null,null,null,null,null,0]
[41,6222000912006,"منتج 41","كرتونة",62,null,null,null,null,null,null,null,null,null,null,null,null,null,null,0]
[42,6222000911993,"منتج 42","كرتونة",66,null,null,null,null,null,null,null,null,null,null,null,null,null,null,0]
[43,6222000912013,"منتج 43","كرتونة",69,null,null,null,null,null,null,null,null,null,null,null,null,null,null,0]
[44,6222000964197,"منتج 44","كرتونة",0,null,null,null,null,null,null,null,null,null,null,null,null,null,null,0]
[45,6222000906630,"منتج 45","كرتونة",79,null,null,null,null,null,null,null,null,null,null,null,null,null,null,0]
[46,6222000902519,"منتج 46","كرتونة",35,null,null,null,null,null,null,null,null,null,null,null,null,null,null,0]
[47,6222000902557,"منتج 47","كرتونة",227,null,null,null,null,null,null,null,null,null,null,null,null,null,null,0]
[48,6222000902564,"منتج 48","كرتونة",108,null,null,null,null,null,null,null,null,null,null,null,null,null,null,0]
[49,6222000910033,"منتج 49","كرتونة",0,null,null,null,null,null,null,null,null,null,null,null,null,null,null,0]
[50,6222000910026,"منتج 50","كرتونة",0,null,null,null,null,null,null,null,null,null,null,null,null,null,null,0]
[51,6222000909945,"منتج 51","كرتونة",0,null,null,null,null,null,null,null,null,null,null,null,null,null,null,0]
[52,6222000910200,"منتج 52","كرتونة",1037,null,null,null,null,null,null,null,null,null,null,null,null,null,null,0]
[53,6222000910514,"منتج 53","كرتونة",592,null,null,null,null,null,null,null,null,null,null,null,null,null,null,0]
[54,6222000909976,"منتج 54","كرتونة",430,null,null,null,null,null,null,null,null,null,null,null,null,null,null,0]
[55,6222000909983,"منتج 55","كرتونة",526,null,null,null,null,null,null,null,null,null,null,null,null,null,null,0]
[56,6222000909969,"منتج 56","كرتونة",113,null,null,null,null,null,null,null,null,null,null,null,null,null,null,0]
[57,622200097116,"منتج 57","كرتونة",856,null,null,null,null,null,null,null,null,null,null,null,null,null,null,0]
[58,6222000912372,"منتج 58","كرتونة",300,null,null,null,null,null,null,null,null,null,null,null,null,null,null,0]
[59,6222000912488,"منتج 59","كرتونة",634,null,null,null,null,null,null,null,null,null,null,null,null,null,null,0]
[60,6222000914383,"منتج 60","كرتونة",338,null,null,null,null,null,null,null,null,null,null,null,null,null,null,0]
[61,6222000914369,"منتج 61","كرتونة",0,null,null,null,null,null,null,null,null,null,null,null,null,null,null,0]
[62,6222000914376,"منتج 62","كرتونة",0,null,null,null,null,null,null,null,null,null,null,null,null,null,null,0]
[63,6222000912365,"منتج 63","كرتونة",91,null,null,null,null,null,null,null,null,null,null,null,null,null,null,0]
[64,6222000902083,"منتج 64","كرتونة",0,null,null,null,null,null,null,null,null,null,null,null,null,null,null,0]
[65,6222000913904,"منتج 65","كرتونة",0,null,null,null,null,null,null,null,null,null,null,null,null,null,null,0]
[66,"EG-670026743-2453","منتج 66","كرتونة",17,null,null,null,null,null,null,null,null,null,null,null,null,null,null,{"$f":"SUM(F69:S69)","v":0}]
[67,6222000915243,"منتج 67","كرتونة",28,null,null,null,null,null,null,null,null,null,null,null,null,null,null,0]
[68,6888000909953,"منتج 68","كرتونة",0,null,null,null,null,null,null,null,null,null,null,null,null,null,null,0]
["الاجمالى",null,null,null,{"$f":"SUM(E4:E71)","v":9121},{"$f":"SUM(F4:F71)","v":0},0,0,0,0,0,0,0,0,0,0,0,0,0,0]

{"sheet":"سوهاج","index":21,"n_rows":72,"n_cols":20,"rows_kept":72,"cut":false,"hidden":false,"merged":[[0,0,0,19],[1,5,1,18],[1,19,2,19],[71,0,71,3],[1,4,2,4],[1,0,2,0],[1,1,2,1],[1,2,2,2],[1,3,2,3]]}
["رصيد توكيل ( الافرايم سوهاج  ) عن يوم (  8-2-2025  )"]
["م","الكود","الصنف","الوحدة","الرصيد\n الدفترى\nبالكرتونة\n ","تاريخ الانتاج",null,null,null,null,null,null,null,null,null,null,null,null,null,"الرصيد\n الفعلى\nبالكرتونة\n"]
[null,null,null,null,null,"2024-01-01","2024-02-01","2024-03-01","2024-04-01","2024-05-01","2024-06-01","2024-07-01","2024-08-01","2024-09-01","2024-10-01","2024-11-01","2024-12-01","2025-01-01","2025-02-01"]
[1,6222000901529,"منتج 1","كرتونة",324,null,null,null,null,null,null,null,null,null,null,null,null,null,null,{"$f":"SUM(F4:S4)","v":0}]
[2,6222000901536,"منتج 2","كرتونة",44,null,null,null,null,null,null,null,null,null,null,null,null,null,null,{"$f":"SUM(F5:S5)","v":0}]
[3,6222000911733,"منتج 3","كرتونة",99,null,null,null,null,null,null,null,null,null,null,null,null,null,null,0]
[4,6222000911764,"منتج 4","كرتونة",198,null,null,null,null,null,null,null,null,null,null,null,null,null,null,0]
[5,"00743","منتج 5","كرتونة",33,null,null,null,null,null,null,null,null,null,null,null,null,null,null,0]
[6,6222000901758,"منتج 6","كرتونة",32,null,null,null,null,null,null,null,null,null,null,null,null,null,null,0]
[7,6222000912020,"منتج 7","كرتونة",2,null,null,null,null,null,null,null,null,null,null,null,null,null,null,0]
[8,6222000909815,"منتج 8","كرتونة",3,null,null,null,null,null,null,null,null,null,null,null,null,null,null,0]
[9,6222000908610,"منتج 9","كرتونة",54,null,null,null,null,null,null,null,null,null,null,null,null,null,null,0]
[10,6222000909891,"منتج 10","كرتونة",150,null,null,null,null,null,null,null,null,null,null,null,null,null,null,0]
[11,6222000911757,"منتج 11","كرتونة",0,null,null,null,null,null,null,null,null,null,null,null,null,null,null,0]
[12,"00744","منتج 12","كرتونة",71,null,null,null,null,null,null,null,null,null,null,null,null,null,null,0]
[13,6222000901642,"منتج 13","كرتونة",31,null,null,null,null,null,null,null,null,null,null,null,null,null,null,0]
[14,6222000912037,"منتج 14","كرتونة",10,null,null,null,null,null,null,null,null,null,null,null,null,null,null,0]
[15,6222000909808,"منتج 15","كرتونة",44,null,null,null,null,null,null,null,null,null,null,null,null,null,null,0]
[16,6222000905268,"منتج 16","كرتونة",0,null,null,null,null,null,null,null,null,null,null,null,null,null,null,0]
[17,6222000907583,"منتج 17","كرتونة",21,null,null,null,null,null,null,null,null,null,null,null,null,null,null,0]
[18,6222000909884,"منتج 18","كرتونة",49,null,null,null,null,null,null,null,null,null,null,null,null,null,null,0]
[19,"002770","منتج 19","كرتونة",0,null,null,null,null,null,null,null,null,null,null,null,null,null,null,0]
[20,6222000912525,"منتج 20","كرتونة",11,null,null,null,null,null,null,null,null,null,null,null,null,null,null,0]
[21,"6222000912518","منتج 21","كرتونة",5,null,null,null,null,null,null,null,null,null,null,null,null,null,null,0]
[22,"6222000908566","منتج 22","كرتونة",4,null,null,null,null,null,null,null,null,null,null,null,null,null,null,0]
[23,"6222000908573","منتج 23","كرتونة",0,null,null,null,null,null,null,null,null,null,null,null,null,null,null,0]
[24,6222000912501,"منتج 24","كرتونة",0,null,null,null,null,null,null,null,null,null,null,null,null,null,null,0]
[25,6222000912457,"منتج 25","كرتونة",0,null,null,null,null,null,null,null,null,null,null,null,null,null,null,0]
[26,6222000901611,"منتج 26","كرتونة",102,null,null,null,null,null,null,null,null,null,null,null,null,null,null,0]
[27,6222000909907,"منتج 27","كرتونة",123,null,null,null,null,null,null,null,null,null,null,null,null,null,null,0]
[28,6222000911498,"منتج 28","كرتونة",34,null,null,null,null,null,null,null,null,null,null,null,null,null,null,0]
[29,"002771","منتج 29","كرتونة",0,null,null,null,null,null,null,null,null,null,null,null,null,null,null,0]
[30,6222000912778,"منتج 30","كرتونة",67,null,null,null,null,null,null,null,null,null,null,null,null,null,null,0]
[31,6222000912822,"منتج 31","كرتونة",32,null,null,null,null,null,null,null,null,null,null,null,null,null,null,0]
[32,6222000912532,"منتج 32","كرتونة",17,null,null,null,null,null,null,null,null,null,null,null,null,null,null,0]
[33,6222000901697,"منتج 33","كرتونة",498,null,null,null,null,null,null,null,null,null,null,null,null,null,null,0]
[34,6222000911481,"منتج 34","كرتونة",0,null,null,null,null,null,null,null,null,null,null,null,null,null,null,0]
[35,6222000908276,"منتج 35","كرتونة",184,null,null,null,null,null,null,null,null,null,null,null,null,null,null,0]
[36,6222000909921,"منتج 36","كرتونة",0,null,null,null,null,null,null,null,null,null,null,null,null,null,null,0]
[37,6222000909839,"منتج 37","كرتونة",null,null,null,null,null,null,null,null,null,null,null,null,null,null,null,0]
[38,6222000908825,"منتج 38","كرتونة",7,null,null,null,null,null,null,null,null,null,null,null,null,null,null,0]
[39,6222000907637,"منتج 39","كرتونة",13,null,null,null,null,null,null,null,null,null,null,null,null,null,null,0]
[40,6222000903295,"منتج 40","كرتونة",47,null,null,null,null,null,null,null,null,null,null,null,null,null,null,0]
[41,6222000912006,"منتج 41","كرتونة",9,null,null,null,null,null,null,null,null,null,null,null,null,null,null,0]
[42,6222000911993,"منتج 42","كرتونة",10,null,null,null,null,null,null,null,null,null,null,null,null,null,null,0]
[43,6222000912013,"منتج 43","كرتونة",0,null,null,null,null,null,null,null,null,null,null,null,null,null,null,0]
[44,6222000964197,"منتج 44","كرتونة",0,null,null,null,null,null,null,null,null,null,null,null,null,null,null,0]
[45,6222000906630,"منتج 45","كرتونة",10,null,null,null,null,null,null,null,null,null,null,null,null,null,null,0]
[46,6222000902519,"منتج 46","كرتونة",22,null,null,null,null,null,null,null,null,null,null,null,null,null,null,0]
[47,6222000902557,"منتج 47","كرتونة",62,null,null,null,null,null,null,null,null,null,null,null,null,null,null,0]
[48,6222000902564,"منتج 48","كرتونة",104,null,null,null,null,null,null,null,null,null,null,null,null,null,null,0]
[49,6222000910033,"منتج 49","كرتونة",0,null,null,null,null,null,null,null,null,null,null,null,null,null,null,0]
[50,6222000910026,"منتج 50","كرتونة",0,null,null,null,null,null,null,null,null,null,null,null,null,null,null,0]
[51,6222000909945,"منتج 51","كرتونة",0,null,null,null,null,null,null,null,null,null,null,null,null,null,null,0]
[52,6222000910200,"منتج 52","كرتونة",1530,null,null,null,null,null,null,null,null,null,null,null,null,null,null,0]
[53,6222000910514,"منتج 53","كرتونة",909,null,null,null,null,null,null,null,null,null,null,null,null,null,null,0]
[54,6222000909976,"منتج 54","كرتونة",64,null,null,null,null,null,null,null,null,null,null,null,null,null,null,0]
[55,6222000909983,"منتج 55","كرتونة",459,null,null,null,null,null,null,null,null,null,null,null,null,null,null,0]
[56,6222000909969,"منتج 56","كرتونة",78,null,null,null,null,null,null,null,null,null,null,null,null,null,null,0]
[57,622200097116,"منتج 57","كرتونة",5,null,null,null,null,null,null,null,null,null,null,null,null,null,null,0]
[58,6222000912372,"منتج 58","كرتونة",195,null,null,null,null,null,null,null,null,null,null,null,null,null,null,0]
[59,6222000912488,"منتج 59","كرتونة",351,null,null,null,null,null,null,null,null,null,null,null,null,null,null,0]
[60,6222000914383,"منتج 60","كرتونة",104,null,null,null,null,null,null,null,null,null,null,null,null,null,null,0]
[61,6222000914369,"منتج 61","كرتونة",0,null,null,null,null,null,null,null,null,null,null,null,null,null,null,0]
[62,6222000914376,"منتج 62","كرتونة",0,null,null,null,null,null,null,null,null,null,null,null,null,null,null,0]
[63,6222000912365,"منتج 63","كرتونة",964,null,null,null,null,null,null,null,null,null,null,null,null,null,null,0]
[64,6222000902083,"منتج 64","كرتونة",0,null,null,null,null,null,null,null,null,null,null,null,null,null,null,0]
[65,6222000913904,"منتج 65","كرتونة",0,null,null,null,null,null,null,null,null,null,null,null,null,null,null,0]
[66,"EG-670026743-2453","منتج 66","كرتونة",0,null,null,null,null,null,null,null,null,null,null,null,null,null,null,{"$f":"SUM(F69:S69)","v":0}]
[67,6222000915243,"منتج 67","كرتونة",16,null,null,null,null,null,null,null,null,null,null,null,null,null,null,0]
[68,6888000909953,"منتج 68","كرتونة",353,null,null,null,null,null,null,null,null,null,null,null,null,null,null,0]
["الاجمالى",null,null,null,{"$f":"SUM(E4:E71)","v":7554},{"$f":"SUM(F4:F71)","v":0},0,0,0,0,0,0,0,0,0,0,0,0,0,0]

{"sheet":"جرجا","index":22,"n_rows":72,"n_cols":20,"rows_kept":72,"cut":false,"hidden":false,"merged":[[71,0,71,3],[0,0,0,19],[1,19,2,19],[1,4,2,4],[1,0,2,0],[1,1,2,1],[1,2,2,2],[1,3,2,3],[1,5,1,18]]}
["رصيد توكيل ( جرجا  ) عن يوم ( 8-2-2025  )"]
["م","الكود","الصنف","الوحدة","الرصيد\n الدفترى\nبالكرتونة\n ","تاريخ الانتاج",null,null,null,null,null,null,null,null,null,null,null,null,null,"الرصيد\n الفعلى\nبالكرتونة\n"]
[null,null,null,null,null,"2024-01-01","2024-02-01","2024-03-01","2024-04-01","2024-05-01","2024-06-01","2024-07-01","2024-08-01","2024-09-01","2024-10-01","2024-11-01","2024-12-01","2025-01-01","2025-02-01"]
[1,6222000901529,"منتج 1","كرتونة",2,null,null,null,null,null,null,null,null,null,null,null,null,null,null,{"$f":"SUM(F4:S4)","v":0}]
[2,6222000901536,"منتج 2","كرتونة",89,null,null,null,null,null,null,null,null,null,null,null,null,null,null,{"$f":"SUM(F5:S5)","v":0}]
[3,6222000911733,"منتج 3","كرتونة",25,null,null,null,null,null,null,null,null,null,null,null,null,null,null,0]
[4,6222000911764,"منتج 4","كرتونة",25,null,null,null,null,null,null,null,null,null,null,null,null,null,null,0]
[5,"00743","منتج 5","كرتونة",66,null,null,null,null,null,null,null,null,null,null,null,null,null,null,0]
[6,6222000901758,"منتج 6","كرتونة",0,null,null,null,null,null,null,null,null,null,null,null,null,null,null,0]
[7,6222000912020,"منتج 7","كرتونة",20,null,null,null,null,null,null,null,null,null,null,null,null,null,null,0]
[8,6222000909815,"منتج 8","كرتونة",8,null,null,null,null,null,null,null,null,null,null,null,null,null,null,0]
[9,6222000908610,"منتج 9","كرتونة",18,null,null,null,null,null,null,null,null,null,null,null,null,null,null,0]
[10,6222000909891,"منتج 10","كرتونة",81,null,null,null,null,null,null,null,null,null,null,null,null,null,null,0]
[11,6222000911757,"منتج 11","كرتونة",0,null,null,null,null,null,null,null,null,null,null,null,null,null,null,0]
[12,"00744","منتج 12","كرتونة",54,null,null,null,null,null,null,null,null,null,null,null,null,null,null,0]
[13,6222000901642,"منتج 13","كرتونة",11,null,null,null,null,null,null,null,null,null,null,null,null,null,null,0]
[14,6222000912037,"منتج 14","كرتونة",20,null,null,null,null,null,null,null,null,null,null,null,null,null,null,0]
[15,6222000909808,"منتج 15","كرتونة",25,null,null,null,null,null,null,null,null,null,null,null,null,null,null,0]
[16,6222000905268,"منتج 16","كرتونة",0,null,null,null,null,null,null,null,null,null,null,null,null,null,null,0]
[17,6222000907583,"منتج 17","كرتونة",0,null,null,null,null,null,null,null,null,null,null,null,null,null,null,0]
[18,6222000909884,"منتج 18","كرتونة",31,null,null,null,null,null,null,null,null,null,null,null,null,null,null,0]
[19,"002770","منتج 19","كرتونة",0,null,null,null,null,null,null,null,null,null,null,null,null,null,null,0]
[20,6222000912525,"منتج 20","كرتونة",50,null,null,null,null,null,null,null,null,null,null,null,null,null,null,0]
[21,"6222000912518","منتج 21","كرتونة",50,null,null,null,null,null,null,null,null,null,null,null,null,null,null,0]
[22,"6222000908566","منتج 22","كرتونة",0,null,null,null,null,null,null,null,null,null,null,null,null,null,null,0]
[23,"6222000908573","منتج 23","كرتونة",0,null,null,null,null,null,null,null,null,null,null,null,null,null,null,0]
[24,6222000912501,"منتج 24","كرتونة",0,null,null,null,null,null,null,null,null,null,null,null,null,null,null,0]
[25,6222000912457,"منتج 25","كرتونة",0,null,null,null,null,null,null,null,null,null,null,null,null,null,null,0]
[26,6222000901611,"منتج 26","كرتونة",209,null,null,null,null,null,null,null,null,null,null,null,null,null,null,0]
[27,6222000909907,"منتج 27","كرتونة",11,null,null,null,null,null,null,null,null,null,null,null,null,null,null,0]
[28,6222000911498,"منتج 28","كرتونة",24,null,null,null,null,null,null,null,null,null,null,null,null,null,null,0]
[29,"002771","منتج 29","كرتونة",0,null,null,null,null,null,null,null,null,null,null,null,null,null,null,0]
[30,6222000912778,"منتج 30","كرتونة",124,null,null,null,null,null,null,null,null,null,null,null,null,null,null,0]
[31,6222000912822,"منتج 31","كرتونة",11,null,null,null,null,null,null,null,null,null,null,null,null,null,null,0]
[32,6222000912532,"منتج 32","كرتونة",50,null,null,null,null,null,null,null,null,null,null,null,null,null,null,0]
[33,6222000901697,"منتج 33","كرتونة",761,null,null,null,null,null,null,null,null,null,null,null,null,null,null,0]
[34,6222000911481,"منتج 34","كرتونة",0,null,null,null,null,null,null,null,null,null,null,null,null,null,null,0]
[35,6222000908276,"منتج 35","كرتونة",0,null,null,null,null,null,null,null,null,null,null,null,null,null,null,0]
[36,6222000909921,"منتج 36","كرتونة",0,null,null,null,null,null,null,null,null,null,null,null,null,null,null,0]
[37,6222000909839,"منتج 37","كرتونة",0,null,null,null,null,null,null,null,null,null,null,null,null,null,null,0]
[38,6222000908825,"منتج 38","كرتونة",0,null,null,null,null,null,null,null,null,null,null,null,null,null,null,0]
[39,6222000907637,"منتج 39","كرتونة",0,null,null,null,null,null,null,null,null,null,null,null,null,null,null,0]
[40,6222000903295,"منتج 40","كرتونة",102,null,null,null,null,null,null,null,null,null,null,null,null,null,null,0]
[41,6222000912006,"منتج 41","كرتونة",13,null,null,null,null,null,null,null,null,null,null,null,null,null,null,0]
[42,6222000911993,"منتج 42","كرتونة",13,null,null,null,null,null,null,null,null,null,null,null,null,null,null,0]
[43,6222000912013,"منتج 43","كرتونة",8,null,null,null,null,null,null,null,null,null,null,null,null,null,null,0]
[44,6222000964197,"منتج 44","كرتونة",0,null,null,null,null,null,null,null,null,null,null,null,null,null,null,0]
[45,6222000906630,"منتج 45","كرتونة",153,null,null,null,null,null,null,null,null,null,null,null,null,null,null,0]
[46,6222000902519,"منتج 46","كرتونة",20,null,null,null,null,null,null,null,null,null,null,null,null,null,null,0]
[47,6222000902557,"منتج 47","كرتونة",0,null,null,null,null,null,null,null,null,null,null,null,null,null,null,0]
[48,6222000902564,"منتج 48","كرتونة",79,null,null,null,null,null,null,null,null,null,null,null,null,null,null,0]
[49,6222000910033,"منتج 49","كرتونة",0,null,null,null,null,null,null,null,null,null,null,null,null,null,null,0]
[50,6222000910026,"منتج 50","كرتونة",0,null,null,null,null,null,null,null,null,null,null,null,null,null,null,0]
[51,6222000909945,"منتج 51","كرتونة",0,null,null,null,null,null,null,null,null,null,null,null,null,null,null,0]
[52,6222000910200,"منتج 52","كرتونة",484,null,null,null,null,null,null,null,null,null,null,null,null,null,null,0]
[53,6222000910514,"منتج 53","كرتونة",506,null,null,null,null,null,null,null,null,null,null,null,null,null,null,0]
[54,6222000909976,"منتج 54","كرتونة",166,null,null,null,null,null,null,null,null,null,null,null,null,null,null,0]
[55,6222000909983,"منتج 55","كرتونة",138,null,null,null,null,null,null,null,null,null,null,null,null,null,null,0]
[56,6222000909969,"منتج 56","كرتونة",150,null,null,null,null,null,null,null,null,null,null,null,null,null,null,0]
[57,622200097116,"منتج 57","كرتونة",548,null,null,null,null,null,null,null,null,null,null,null,null,null,null,0]
[58,6222000912372,"منتج 58","كرتونة",78,null,null,null,null,null,null,null,null,null,null,null,null,null,null,0]
[59,6222000912488,"منتج 59","كرتونة",11,null,null,null,null,null,null,null,null,null,null,null,null,null,null,0]
[60,6222000914383,"منتج 60","كرتونة",0,null,null,null,null,null,null,null,null,null,null,null,null,null,null,0]
[61,6222000914369,"منتج 61","كرتونة",0,null,null,null,null,null,null,null,null,null,null,null,null,null,null,0]
[62,6222000914376,"منتج 62","كرتونة",0,null,null,null,null,null,null,null,null,null,null,null,null,null,null,0]
[63,6222000912365,"منتج 63","كرتونة",4,null,null,null,null,null,null,null,null,null,null,null,null,null,null,0]
[64,6222000902083,"منتج 64","كرتونة",0,null,null,null,null,null,null,null,null,null,null,null,null,null,null,0]
[65,6222000913904,"منتج 65","كرتونة",0,null,null,null,null,null,null,null,null,null,null,null,null,null,null,0]
[66,"EG-670026743-2453","منتج 66","كرتونة",0,null,null,null,null,null,null,null,null,null,null,null,null,null,null,{"$f":"SUM(F69:S69)","v":0}]
[67,6222000915243,"منتج 67","كرتونة",25,null,null,null,null,null,null,null,null,null,null,null,null,null,null,0]
[68,6888000909953,"منتج 68","كرتونة",0,null,null,null,null,null,null,null,null,null,null,null,null,null,null,0]
["الاجمالى",null,null,null,{"$f":"SUM(E4:E71)","v":4263},{"$f":"SUM(F4:F71)","v":0},0,0,0,0,0,0,0,0,0,0,0,0,0,0]

{"sheet":"قنا","index":23,"n_rows":72,"n_cols":20,"rows_kept":72,"cut":false,"hidden":false,"merged":[[71,0,71,3],[0,0,0,19],[1,0,2,0],[1,1,2,1],[1,2,2,2],[1,3,2,3],[1,4,2,4],[1,19,2,19],[1,5,1,18]]}
["رصيد توكيل (  قنا   ) عن يوم (        8-2-2025       )"]
["م","الكود","الصنف","الوحدة","الرصيد\n الدفترى\nبالكرتونة\n ","تاريخ الانتاج",null,null,null,null,null,null,null,null,null,null,null,null,null,"الرصيد\n الفعلى\nبالكرتونة\n"]
[null,null,null,null,null,"2024-01-01","2024-02-01","2024-03-01","2024-04-01","2024-05-01","2024-06-01","2024-07-01","2024-08-01","2024-09-01","2024-10-01","2024-11-01","2024-12-01","2025-01-01","2025-02-01"]
[1,6222000901529,"منتج 1","كرتونة",48,null,null,null,null,null,null,null,null,null,null,null,null,null,null,{"$f":"SUM(F4:S4)","v":0}]
[2,6222000901536,"منتج 2","كرتونة",32,null,null,null,null,null,null,null,null,null,null,null,null,null,null,{"$f":"SUM(F5:S5)","v":0}]
[3,6222000911733,"منتج 3","كرتونة",0,null,null,null,null,null,null,null,null,null,null,null,null,null,null,0]
[4,6222000911764,"منتج 4","كرتونة",33,null,null,null,null,null,null,null,null,null,null,null,null,null,null,0]
[5,"00743","منتج 5","كرتونة",0,null,null,null,null,null,null,null,null,null,null,null,null,null,null,0]
[6,6222000901758,"منتج 6","كرتونة",17,null,null,null,null,null,null,null,null,null,null,null,null,null,null,0]
[7,6222000912020,"منتج 7","كرتونة",0,null,null,null,null,null,null,null,null,null,null,null,null,null,null,0]
[8,6222000909815,"منتج 8","كرتونة",45,null,null,null,null,null,null,null,null,null,null,null,null,null,null,0]
[9,6222000908610,"منتج 9","كرتونة",0,null,null,null,null,null,null,null,null,null,null,null,null,null,null,0]
[10,6222000909891,"منتج 10","كرتونة",0,null,null,null,null,null,null,null,null,null,null,null,null,null,null,0]
[11,6222000911757,"منتج 11","كرتونة",0,null,null,null,null,null,null,null,null,null,null,null,null,null,null,0]
[12,"00744","منتج 12","كرتونة",52,null,null,null,null,null,null,null,null,null,null,null,null,null,null,0]
[13,6222000901642,"منتج 13","كرتونة",56,null,null,null,null,null,null,null,null,null,null,null,null,null,null,0]
[14,6222000912037,"منتج 14","كرتونة",6,null,null,null,null,null,null,null,null,null,null,null,null,null,null,0]
[15,6222000909808,"منتج 15","كرتونة",0,null,null,null,null,null,null,null,null,null,null,null,null,null,null,0]
[16,6222000905268,"منتج 16","كرتونة",0,null,null,null,null,null,null,null,null,null,null,null,null,null,null,0]
[17,6222000907583,"منتج 17","كرتونة",0,null,null,null,null,null,null,null,null,null,null,null,null,null,null,0]
[18,6222000909884,"منتج 18","كرتونة",11,null,null,null,null,null,null,null,null,null,null,null,null,null,null,0]
[19,"002770","منتج 19","كرتونة",0,null,null,null,null,null,null,null,null,null,null,null,null,null,null,0]
[20,6222000912525,"منتج 20","كرتونة",0,null,null,null,null,null,null,null,null,null,null,null,null,null,null,0]
[21,"6222000912518","منتج 21","كرتونة",49,null,null,null,null,null,null,null,null,null,null,null,null,null,null,0]
[22,"6222000908566","منتج 22","كرتونة",14,null,null,null,null,null,null,null,null,null,null,null,null,null,null,0]
[23,"6222000908573","منتج 23","كرتونة",93,null,null,null,null,null,null,null,null,null,null,null,null,null,null,0]
[24,6222000912501,"منتج 24","كرتونة",0,null,null,null,null,null,null,null,null,null,null,null,null,null,null,0]
[25,6222000912457,"منتج 25","كرتونة",0,null,null,null,null,null,null,null,null,null,null,null,null,null,null,0]
[26,6222000901611,"منتج 26","كرتونة",29,null,null,null,null,null,null,null,null,null,null,null,null,null,null,0]
[27,6222000909907,"منتج 27","كرتونة",0,null,null,null,null,null,null,null,null,null,null,null,null,null,null,0]
[28,6222000911498,"منتج 28","كرتونة",78,null,null,null,null,null,null,null,null,null,null,null,null,null,null,0]
[29,"002771","منتج 29","كرتونة",0,null,null,null,null,null,null,null,null,null,null,null,null,null,null,0]
[30,6222000912778,"منتج 30","كرتونة",129,null,null,null,null,null,null,null,null,null,null,null,null,null,null,0]
[31,6222000912822,"منتج 31","كرتونة",6,null,null,null,null,null,null,null,null,null,null,null,null,null,null,0]
[32,6222000912532,"منتج 32","كرتونة",54,null,null,null,null,null,null,null,null,null,null,null,null,null,null,0]
[33,6222000901697,"منتج 33","كرتونة",16,null,null,null,null,null,null,null,null,null,null,null,null,null,null,0]
[34,6222000911481,"منتج 34","كرتونة",0,null,null,null,null,null,null,null,null,null,null,null,null,null,null,0]
[35,6222000908276,"منتج 35","كرتونة",137,null,null,null,null,null,null,null,null,null,null,null,null,null,null,0]
[36,6222000909921,"منتج 36","كرتونة",0,null,null,null,null,null,null,null,null,null,null,null,null,null,null,0]
[37,6222000909839,"منتج 37","كرتونة",62,null,null,null,null,null,null,null,null,null,null,null,null,null,null,0]
[38,6222000908825,"منتج 38","كرتونة",0,null,null,null,null,null,null,null,null,null,null,null,null,null,null,0]
[39,6222000907637,"منتج 39","كرتونة",200,null,null,null,null,null,null,null,null,null,null,null,null,null,null,0]
[40,6222000903295,"منتج 40","كرتونة",39,null,null,null,null,null,null,null,null,null,null,null,null,null,null,0]
[41,6222000912006,"منتج 41","كرتونة",55,null,null,null,null,null,null,null,null,null,null,null,null,null,null,0]
[42,6222000911993,"منتج 42","كرتونة",0,null,null,null,null,null,null,null,null,null,null,null,null,null,null,0]
[43,6222000912013,"منتج 43","كرتونة",130,null,null,null,null,null,null,null,null,null,null,null,null,null,null,0]
[44,6222000964197,"منتج 44","كرتونة",0,null,null,null,null,null,null,null,null,null,null,null,null,null,null,0]
[45,6222000906630,"منتج 45","كرتونة",82,null,null,null,null,null,null,null,null,null,null,null,null,null,null,0]
[46,6222000902519,"منتج 46","كرتونة",0,null,null,null,null,null,null,null,null,null,null,null,null,null,null,0]
[47,6222000902557,"منتج 47","كرتونة",40,null,null,null,null,null,null,null,null,null,null,null,null,null,null,0]
[48,6222000902564,"منتج 48","كرتونة",60,null,null,null,null,null,null,null,null,null,null,null,null,null,null,0]
[49,6222000910033,"منتج 49","كرتونة",0,null,null,null,null,null,null,null,null,null,null,null,null,null,null,0]
[50,6222000910026,"منتج 50","كرتونة",0,null,null,null,null,null,null,null,null,null,null,null,null,null,null,0]
[51,6222000909945,"منتج 51","كرتونة",0,null,null,null,null,null,null,null,null,null,null,null,null,null,null,0]
[52,6222000910200,"منتج 52","كرتونة",883,null,null,null,null,null,null,null,null,null,null,null,null,null,null,0]
[53,6222000910514,"منتج 53","كرتونة",312,null,null,null,null,null,null,null,null,null,null,null,null,null,null,0]
[54,6222000909976,"منتج 54","كرتونة",226,null,null,null,null,null,null,null,null,null,null,null,null,null,null,0]
[55,6222000909983,"منتج 55","كرتونة",46,null,null,null,null,null,null,null,null,null,null,null,null,null,null,0]
[56,6222000909969,"منتج 56","كرتونة",0,null,null,null,null,null,null,null,null,null,null,null,null,null,null,0]
[57,622200097116,"منتج 57","كرتونة",184,null,null,null,null,null,null,null,null,null,null,null,null,null,null,0]
[58,6222000912372,"منتج 58","كرتونة",3,null,null,null,null,null,null,null,null,null,null,null,null,null,null,0]
[59,6222000912488,"منتج 59","كرتونة",18,null,null,null,null,null,null,null,null,null,null,null,null,null,null,0]
[60,6222000914383,"منتج 60","كرتونة",0,null,null,null,null,null,null,null,null,null,null,null,null,null,null,0]
[61,6222000914369,"منتج 61","كرتونة",0,null,null,null,null,null,null,null,null,null,null,null,null,null,null,0]
[62,6222000914376,"منتج 62","كرتونة",70,null,null,null,null,null,null,null,null,null,null,null,null,null,null,0]
[63,6222000912365,"منتج 63","كرتونة",0,null,null,null,null,null,null,null,null,null,null,null,null,null,null,0]
[64,6222000902083,"منتج 64","كرتونة",0,null,null,null,null,null,null,null,null,null,null,null,null,null,null,0]
[65,6222000913904,"منتج 65","كرتونة",0,null,null,null,null,null,null,null,null,null,null,null,null,null,null,0]
[66,"EG-670026743-2453","منتج 66","كرتونة",0,null,null,null,null,null,null,null,null,null,null,null,null,null,null,{"$f":"SUM(F69:S69)","v":0}]
[67,6222000915243,"منتج 67","كرتونة",0,null,null,null,null,null,null,null,null,null,null,null,null,null,null,0]
[68,6888000909953,"منتج 68","كرتونة",74,null,null,null,null,null,null,null,null,null,null,null,null,null,null,0]
["الاجمالى",null,null,null,{"$f":"SUM(E4:E71)","v":3389},{"$f":"SUM(F4:F71)","v":0},0,0,0,0,0,0,0,0,0,0,0,0,0,0]

{"sheet":"نجع حمادى","index":24,"n_rows":72,"n_cols":20,"rows_kept":72,"cut":false,"hidden":false,"merged":[[71,0,71,3],[0,0,0,19],[1,0,2,0],[1,1,2,1],[1,2,2,2],[1,3,2,3],[1,4,2,4],[1,19,2,19],[1,5,1,18]]}
["رصيد توكيل (  نجع حمادى  ) عن يوم (         81-2-2025        )"]
["م","الكود","الصنف","الوحدة","الرصيد\n الدفترى\nبالكرتونة\n ","تاريخ الانتاج",null,null,null,null,null,null,null,null,null,null,null,null,null,"الرصيد\n الفعلى\nبالكرتونة\n"]
[null,null,null,null,null,"2024-01-01","2024-02-01","2024-03-01","2024-04-01","2024-05-01","2024-06-01","2024-07-01","2024-08-01","2024-09-01","2024-10-01","2024-11-01","2024-12-01","2025-01-01","2025-02-01"]
[1,6222000901529,"منتج 1","كرتونة",196,null,null,null,null,null,null,null,null,null,null,null,null,null,null,{"$f":"SUM(F4:S4)","v":0}]
[2,6222000901536,"منتج 2","كرتونة",62,null,null,null,null,null,null,null,null,null,null,null,null,null,null,{"$f":"SUM(F5:S5)","v":0}]
[3,6222000911733,"منتج 3","كرتونة",5,null,null,null,null,null,null,null,null,null,null,null,null,null,null,0]
[4,6222000911764,"منتج 4","كرتونة",59,null,null,null,null,null,null,null,null,null,null,null,null,null,null,0]
[5,"00743","منتج 5","كرتونة",34,null,null,null,null,null,null,null,null,null,null,null,null,null,null,0]
[6,6222000901758,"منتج 6","كرتونة",8,null,null,null,null,null,null,null,null,null,null,null,null,null,null,0]
[7,6222000912020,"منتج 7","كرتونة",5,null,null,null,null,null,null,null,null,null,null,null,null,null,null,0]
[8,6222000909815,"منتج 8","كرتونة",0,null,null,null,null,null,null,null,null,null,null,null,null,null,null,0]
[9,6222000908610,"منتج 9","كرتونة",20,null,null,null,null,null,null,null,null,null,null,null,null,null,null,0]
[10,6222000909891,"منتج 10","كرتونة",0,null,null,null,null,null,null,null,null,null,null,null,null,null,null,0]
[11,6222000911757,"منتج 11","كرتونة",0,null,null,null,null,null,null,null,null,null,null,null,null,null,null,0]
[12,"00744","منتج 12","كرتونة",82,null,null,null,null,null,null,null,null,null,null,null,null,null,null,0]
[13,6222000901642,"منتج 13","كرتونة",39,null,null,null,null,null,null,null,null,null,null,null,null,null,null,0]
[14,6222000912037,"منتج 14","كرتونة",5,null,null,null,null,null,null,null,null,null,null,null,null,null,null,0]
[15,6222000909808,"منتج 15","كرتونة",0,null,null,null,null,null,null,null,null,null,null,null,null,null,null,0]
[16,6222000905268,"منتج 16","كرتونة",0,null,null,null,null,null,null,null,null,null,null,null,null,null,null,0]
[17,6222000907583,"منتج 17","كرتونة",39,null,null,null,null,null,null,null,null,null,null,null,null,null,null,0]
[18,6222000909884,"منتج 18","كرتونة",0,null,null,null,null,null,null,null,null,null,null,null,null,null,null,0]
[19,"002770","منتج 19","كرتونة",0,null,null,null,null,null,null,null,null,null,null,null,null,null,null,0]
[20,6222000912525,"منتج 20","كرتونة",0,null,null,null,null,null,null,null,null,null,null,null,null,null,null,0]
[21,"6222000912518","منتج 21","كرتونة",0,null,null,null,null,null,null,null,null,null,null,null,null,null,null,0]
[22,"6222000908566","منتج 22","كرتونة",75,null,null,null,null,null,null,null,null,null,null,null,null,null,null,0]
[23,"6222000908573","منتج 23","كرتونة",47,null,null,null,null,null,null,null,null,null,null,null,null,null,null,0]
[24,6222000912501,"منتج 24","كرتونة",0,null,null,null,null,null,null,null,null,null,null,null,null,null,null,0]
[25,6222000912457,"منتج 25","كرتونة",0,null,null,null,null,null,null,null,null,null,null,null,null,null,null,0]
[26,6222000901611,"منتج 26","كرتونة",221,null,null,null,null,null,null,null,null,null,null,null,null,null,null,0]
[27,6222000909907,"منتج 27","كرتونة",0,null,null,null,null,null,null,null,null,null,null,null,null,null,null,0]
[28,6222000911498,"منتج 28","كرتونة",0,null,null,null,null,null,null,null,null,null,null,null,null,null,null,0]
[29,"002771","منتج 29","كرتونة",0,null,null,null,null,null,null,null,null,null,null,null,null,null,null,0]
[30,6222000912778,"منتج 30","كرتونة",0,null,null,null,null,null,null,null,null,null,null,null,null,null,null,0]
[31,6222000912822,"منتج 31","كرتونة",10,null,null,null,null,null,null,null,null,null,null,null,null,null,null,0]
[32,6222000912532,"منتج 32","كرتونة",51,null,null,null,null,null,null,null,null,null,null,null,null,null,null,0]
[33,6222000901697,"منتج 33","كرتونة",463,null,null,null,null,null,null,null,null,null,null,null,null,null,null,0]
[34,6222000911481,"منتج 34","كرتونة",0,null,null,null,null,null,null,null,null,null,null,null,null,null,null,0]
[35,6222000908276,"منتج 35","كرتونة",0,null,null,null,null,null,null,null,null,null,null,null,null,null,null,0]
[36,6222000909921,"منتج 36","كرتونة",0,null,null,null,null,null,null,null,null,null,null,null,null,null,null,0]
[37,6222000909839,"منتج 37","كرتونة",0,null,null,null,null,null,null,null,null,null,null,null,null,null,null,0]
[38,6222000908825,"منتج 38","كرتونة",13,null,null,null,null,null,null,null,null,null,null,null,null,null,null,0]
[39,6222000907637,"منتج 39","كرتونة",55,null,null,null,null,null,null,null,null,null,null,null,null,null,null,0]
[40,6222000903295,"منتج 40","كرتونة",0,null,null,null,null,null,null,null,null,null,null,null,null,null,null,0]
[41,6222000912006,"منتج 41","كرتونة",0,null,null,null,null,null,null,null,null,null,null,null,null,null,null,0]
[42,6222000911993,"منتج 42","كرتونة",0,null,null,null,null,null,null,null,null,null,null,null,null,null,null,0]
[43,6222000912013,"منتج 43","كرتونة",0,null,null,null,null,null,null,null,null,null,null,null,null,null,null,0]
[44,6222000964197,"منتج 44","كرتونة",0,null,null,null,null,null,null,null,null,null,null,null,null,null,null,0]
[45,6222000906630,"منتج 45","كرتونة",109,null,null,null,null,null,null,null,null,null,null,null,null,null,null,0]
[46,6222000902519,"منتج 46","كرتونة",55,null,null,null,null,null,null,null,null,null,null,null,null,null,null,0]
[47,6222000902557,"منتج 47","كرتونة",41,null,null,null,null,null,null,null,null,null,null,null,null,null,null,0]
[48,6222000902564,"منتج 48","كرتونة",41,null,null,null,null,null,null,null,null,null,null,null,null,null,null,0]
[49,6222000910033,"منتج 49","كرتونة",0,null,null,null,null,null,null,null,null,null,null,null,null,null,null,0]
[50,6222000910026,"منتج 50","كرتونة",0,null,null,null,null,null,null,null,null,null,null,null,null,null,null,0]
[51,6222000909945,"منتج 51","كرتونة",0,null,null,null,null,null,null,null,null,null,null,null,null,null,null,0]
[52,6222000910200,"منتج 52","كرتونة",1021,null,null,null,null,null,null,null,null,null,null,null,null,null,null,0]
[53,6222000910514,"منتج 53","كرتونة",308,null,null,null,null,null,null,null,null,null,null,null,null,null,null,0]
[54,6222000909976,"منتج 54","كرتونة",80,null,null,null,null,null,null,null,null,null,null,null,null,null,null,0]
[55,6222000909983,"منتج 55","كرتونة",83,null,null,null,null,null,null,null,null,null,null,null,null,null,null,0]
[56,6222000909969,"منتج 56","كرتونة",0,null,null,null,null,null,null,null,null,null,null,null,null,null,null,0]
[57,622200097116,"منتج 57","كرتونة",0,null,null,null,null,null,null,null,null,null,null,null,null,null,null,0]
[58,6222000912372,"منتج 58","كرتونة",0,null,null,null,null,null,null,null,null,null,null,null,null,null,null,0]
[59,6222000912488,"منتج 59","كرتونة",400,null,null,null,null,null,null,null,null,null,null,null,null,null,null,0]
[60,6222000914383,"منتج 60","كرتونة",0,null,null,null,null,null,null,null,null,null,null,null,null,null,null,0]
[61,6222000914369,"منتج 61","كرتونة",0,null,null,null,null,null,null,null,null,null,null,null,null,null,null,0]
[62,6222000914376,"منتج 62","كرتونة",0,null,null,null,null,null,null,null,null,null,null,null,null,null,null,0]
[63,6222000912365,"منتج 63","كرتونة",0,null,null,null,null,null,null,null,null,null,null,null,null,null,null,0]
[64,6222000902083,"منتج 64","كرتونة",0,null,null,null,null,null,null,null,null,null,null,null,null,null,null,0]
[65,6222000913904,"منتج 65","كرتونة",0,null,null,null,null,null,null,null,null,null,null,null,null,null,null,0]
[66,"EG-670026743-2453","منتج 66","كرتونة",0,null,null,null,null,null,null,null,null,null,null,null,null,null,null,{"$f":"SUM(F69:S69)","v":0}]
[67,6222000915243,"منتج 67","كرتونة",0,null,null,null,null,null,null,null,null,null,null,null,null,null,null,0]
[68,6888000909953,"منتج 68","كرتونة",40,null,null,null,null,null,null,null,null,null,null,null,null,null,null,0]
["الاجمالى",null,null,null,{"$f":"SUM(E4:E71)","v":3667},{"$f":"SUM(F4:F71)","v":0},0,0,0,0,0,0,0,0,0,0,0,0,0,0]

{"sheet":"الغردقة","index":25,"n_rows":72,"n_cols":20,"rows_kept":72,"cut":false,"hidden":false,"merged":[[0,0,0,19],[1,5,1,18],[1,19,2,19],[71,0,71,3],[1,4,2,4],[1,0,2,0],[1,1,2,1],[1,2,2,2],[1,3,2,3]]}
["رصيد توكيل (          الغردقة        ) عن يوم (                 8-2-2025                 )"]
["م","الكود","الصنف","الوحدة","الرصيد\n الدفترى\nبالكرتونة\n ","تاريخ الانتاج",null,null,null,null,null,null,null,null,null,null,null,null,null,"الرصيد\n الفعلى\nبالكرتونة\n"]
[null,null,null,null,null,"2024-01-01","2024-02-01","2024-03-01","2024-04-01","2024-05-01","2024-06-01","2024-07-01","2024-08-01","2024-09-01","2024-10-01","2024-11-01","2024-12-01","2025-01-01","2025-02-01"]
[1,6222000901529,"منتج 1","كرتونة",25,null,null,null,null,null,null,null,null,null,null,null,null,null,null,{"$f":"SUM(F4:S4)","v":0}]
[2,6222000901536,"منتج 2","كرتونة",52,null,null,null,null,null,null,null,null,null,null,null,null,null,null,{"$f":"SUM(F5:S5)","v":0}]
[3,6222000911733,"منتج 3","كرتونة",50,null,null,null,null,null,null,null,null,null,null,null,null,null,null,0]
[4,6222000911764,"منتج 4","كرتونة",0,null,null,null,null,null,null,null,null,null,null,null,null,null,null,0]
[5,"00743","منتج 5","كرتونة",0,null,null,null,null,null,null,null,null,null,null,null,null,null,null,0]
[6,6222000901758,"منتج 6","كرتونة",27,null,null,null,null,null,null,null,null,null,null,null,null,null,null,0]
[7,6222000912020,"منتج 7","كرتونة",25,null,null,null,null,null,null,null,null,null,null,null,null,null,null,0]
[8,6222000909815,"منتج 8","كرتونة",30,null,null,null,null,null,null,null,null,null,null,null,null,null,null,0]
[9,6222000908610,"منتج 9","كرتونة",60,null,null,null,null,null,null,null,null,null,null,null,null,null,null,0]
[10,6222000909891,"منتج 10","كرتونة",57,null,null,null,null,null,null,null,null,null,null,null,null,null,null,0]
[11,6222000911757,"منتج 11","كرتونة",0,null,null,null,null,null,null,null,null,null,null,null,null,null,null,0]
[12,"00744","منتج 12","كرتونة",36,null,null,null,null,null,null,null,null,null,null,null,null,null,null,0]
[13,6222000901642,"منتج 13","كرتونة",27,null,null,null,null,null,null,null,null,null,null,null,null,null,null,0]
[14,6222000912037,"منتج 14","كرتونة",5,null,null,null,null,null,null,null,null,null,null,null,null,null,null,0]
[15,6222000909808,"منتج 15","كرتونة",0,null,null,null,null,null,null,null,null,null,null,null,null,null,null,0]
[16,6222000905268,"منتج 16","كرتونة",0,null,null,null,null,null,null,null,null,null,null,null,null,null,null,0]
[17,6222000907583,"منتج 17","كرتونة",0,null,null,null,null,null,null,null,null,null,null,null,null,null,null,0]
[18,6222000909884,"منتج 18","كرتونة",48,null,null,null,null,null,null,null,null,null,null,null,null,null,null,0]
[19,"002770","منتج 19","كرتونة",0,null,null,null,null,null,null,null,null,null,null,null,null,null,null,0]
[20,6222000912525,"منتج 20","كرتونة",6,null,null,null,null,null,null,null,null,null,null,null,null,null,null,0]
[21,"6222000912518","منتج 21","كرتونة",40,null,null,null,null,null,null,null,null,null,null,null,null,null,null,0]
[22,"6222000908566","منتج 22","كرتونة",6,null,null,null,null,null,null,null,null,null,null,null,null,null,null,0]
[23,"6222000908573","منتج 23","كرتونة",100,null,null,null,null,null,null,null,null,null,null,null,null,null,null,0]
[24,6222000912501,"منتج 24","كرتونة",11,null,null,null,null,null,null,null,null,null,null,null,null,null,null,0]
[25,6222000912457,"منتج 25","كرتونة",0,null,null,null,null,null,null,null,null,null,null,null,null,null,null,0]
[26,6222000901611,"منتج 26","كرتونة",171,null,null,null,null,null,null,null,null,null,null,null,null,null,null,0]
[27,6222000909907,"منتج 27","كرتونة",43,null,null,null,null,null,null,null,null,null,null,null,null,null,null,0]
[28,6222000911498,"منتج 28","كرتونة",25,null,null,null,null,null,null,null,null,null,null,null,null,null,null,0]
[29,"002771","منتج 29","كرتونة",0,null,null,null,null,null,null,null,null,null,null,null,null,null,null,0]
[30,6222000912778,"منتج 30","كرتونة",350,null,null,null,null,null,null,null,null,null,null,null,null,null,null,0]
[31,6222000912822,"منتج 31","كرتونة",16,null,null,null,null,null,null,null,null,null,null,null,null,null,null,0]
[32,6222000912532,"منتج 32","كرتونة",0,null,null,null,null,null,null,null,null,null,null,null,null,null,null,0]
[33,6222000901697,"منتج 33","كرتونة",170,null,null,null,null,null,null,null,null,null,null,null,null,null,null,0]
[34,6222000911481,"منتج 34","كرتونة",0,null,null,null,null,null,null,null,null,null,null,null,null,null,null,0]
[35,6222000908276,"منتج 35","كرتونة",160,null,null,null,null,null,null,null,null,null,null,null,null,null,null,0]
[36,6222000909921,"منتج 36","كرتونة",0,null,null,null,null,null,null,null,null,null,null,null,null,null,null,0]
[37,6222000909839,"منتج 37","كرتونة",180,null,null,null,null,null,null,null,null,null,null,null,null,null,null,0]
[38,6222000908825,"منتج 38","كرتونة",0,null,null,null,null,null,null,null,null,null,null,null,null,null,null,0]
[39,6222000907637,"منتج 39","كرتونة",103,null,null,null,null,null,null,null,null,null,null,null,null,null,null,0]
[40,6222000903295,"منتج 40","كرتونة",0,null,null,null,null,null,null,null,null,null,null,null,null,null,null,0]
[41,6222000912006,"منتج 41","كرتونة",0,null,null,null,null,null,null,null,null,null,null,null,null,null,null,0]
[42,6222000911993,"منتج 42","كرتونة",0,null,null,null,null,null,null,null,null,null,null,null,null,null,null,0]
[43,6222000912013,"منتج 43","كرتونة",0,null,null,null,null,null,null,null,null,null,null,null,null,null,null,0]
[44,6222000964197,"منتج 44","كرتونة",0,null,null,null,null,null,null,null,null,null,null,null,null,null,null,0]
[45,6222000906630,"منتج 45","كرتونة",80,null,null,null,null,null,null,null,null,null,null,null,null,null,null,0]
[46,6222000902519,"منتج 46","كرتونة",22,null,null,null,null,null,null,null,null,null,null,null,null,null,null,0]
[47,6222000902557,"منتج 47","كرتونة",29,null,null,null,null,null,null,null,null,null,null,null,null,null,null,0]
[48,6222000902564,"منتج 48","كرتونة",35,null,null,null,null,null,null,null,null,null,null,null,null,null,null,0]
[49,6222000910033,"منتج 49","كرتونة",0,null,null,null,null,null,null,null,null,null,null,null,null,null,null,0]
[50,6222000910026,"منتج 50","كرتونة",0,null,null,null,null,null,null,null,null,null,null,null,null,null,null,0]
[51,6222000909945,"منتج 51","كرتونة",0,null,null,null,null,null,null,null,null,null,null,null,null,null,null,0]
[52,6222000910200,"منتج 52","كرتونة",570,null,null,null,null,null,null,null,null,null,null,null,null,null,null,0]
[53,6222000910514,"منتج 53","كرتونة",459,null,null,null,null,null,null,null,null,null,null,null,null,null,null,0]
[54,6222000909976,"منتج 54","كرتونة",250,null,null,null,null,null,null,null,null,null,null,null,null,null,null,0]
[55,6222000909983,"منتج 55","كرتونة",300,null,null,null,null,null,null,null,null,null,null,null,null,null,null,0]
[56,6222000909969,"منتج 56","كرتونة",132,null,null,null,null,null,null,null,null,null,null,null,null,null,null,0]
[57,622200097116,"منتج 57","كرتونة",139,null,null,null,null,null,null,null,null,null,null,null,null,null,null,0]
[58,6222000912372,"منتج 58","كرتونة",0,null,null,null,null,null,null,null,null,null,null,null,null,null,null,0]
[59,6222000912488,"منتج 59","كرتونة",250,null,null,null,null,null,null,null,null,null,null,null,null,null,null,0]
[60,6222000914383,"منتج 60","كرتونة",0,null,null,null,null,null,null,null,null,null,null,null,null,null,null,0]
[61,6222000914369,"منتج 61","كرتونة",3,null,null,null,null,null,null,null,null,null,null,null,null,null,null,0]
[62,6222000914376,"منتج 62","كرتونة",1,null,null,null,null,null,null,null,null,null,null,null,null,null,null,0]
[63,6222000912365,"منتج 63","كرتونة",0,null,null,null,null,null,null,null,null,null,null,null,null,null,null,0]
[64,6222000902083,"منتج 64","كرتونة",0,null,null,null,null,null,null,null,null,null,null,null,null,null,null,0]
[65,6222000913904,"منتج 65","كرتونة",0,null,null,null,null,null,null,null,null,null,null,null,null,null,null,{"$f":"SUM(F68:S68)","v":0}]
[66,"EG-670026743-2453","منتج 66","كرتونة",0,null,null,null,null,null,null,null,null,null,null,null,null,null,null,0]
[67,6222000915243,"منتج 67","كرتونة",40,null,null,null,null,null,null,null,null,null,null,null,null,null,null,{"$f":"SUM(F70:S70)","v":0}]
[68,6888000909953,"منتج 68","كرتونة",60,null,null,null,null,null,null,null,null,null,null,null,null,null,null,{"$f":"SUM(F71:S71)","v":0}]
["الاجمالى",null,null,null,{"$f":"SUM(E4:E70)","v":4133},{"$f":"SUM(F4:F70)","v":0},0,0,0,0,0,0,0,0,0,0,0,0,0,0]

{"sheet":"الاقصر","index":26,"n_rows":72,"n_cols":20,"rows_kept":72,"cut":false,"hidden":false,"merged":[[0,0,0,19],[1,5,1,18],[1,19,2,19],[71,0,71,3],[1,4,2,4],[1,0,2,0],[1,1,2,1],[1,2,2,2],[1,3,2,3]]}
["رصيد توكيل (        الاقصر          ) عن يوم (                 8-2-2025                 )"]
["م","الكود","الصنف","الوحدة","الرصيد\n الدفترى\nبالكرتونة\n ","تاريخ الانتاج",null,null,null,null,null,null,null,null,null,null,null,null,null,"الرصيد\n الفعلى\nبالكرتونة\n"]
[null,null,null,null,null,"2024-01-01","2024-02-01","2024-03-01","2024-04-01","2024-05-01","2024-06-01","2024-07-01","2024-08-01","2024-09-01","2024-10-01","2024-11-01","2024-12-01","2025-01-01","2025-02-01"]
[1,6222000901529,"منتج 1","كرتونة",8,null,null,null,null,null,null,null,null,null,null,null,null,null,null,{"$f":"SUM(F4:S4)","v":0}]
[2,6222000901536,"منتج 2","كرتونة",49,null,null,null,null,null,null,null,null,null,null,null,null,null,null,{"$f":"SUM(F5:S5)","v":0}]
[3,6222000911733,"منتج 3","كرتونة",73,null,null,null,null,null,null,null,null,null,null,null,null,null,null,0]
[4,6222000911764,"منتج 4","كرتونة",111,null,null,null,null,null,null,null,null,null,null,null,null,null,null,0]
[5,"00743","منتج 5","كرتونة",13,null,null,null,null,null,null,null,null,null,null,null,null,null,null,0]
[6,6222000901758,"منتج 6","كرتونة",87,null,null,null,null,null,null,null,null,null,null,null,null,null,null,0]
[7,6222000912020,"منتج 7","كرتونة",45,null,null,null,null,null,null,null,null,null,null,null,null,null,null,0]
[8,6222000909815,"منتج 8","كرتونة",239,null,null,null,null,null,null,null,null,null,null,null,null,null,null,0]
[9,6222000908610,"منتج 9","كرتونة",0,null,null,null,null,null,null,null,null,null,null,null,null,null,null,0]
[10,6222000909891,"منتج 10","كرتونة",0,null,null,null,null,null,null,null,null,null,null,null,null,null,null,0]
[11,6222000911757,"منتج 11","كرتونة",0,null,null,null,null,null,null,null,null,null,null,null,null,null,null,0]
[12,"00744","منتج 12","كرتونة",42,null,null,null,null,null,null,null,null,null,null,null,null,null,null,0]
[13,6222000901642,"منتج 13","كرتونة",293,null,null,null,null,null,null,null,null,null,null,null,null,null,null,0]
[14,6222000912037,"منتج 14","كرتونة",57,null,null,null,null,null,null,null,null,null,null,null,null,null,null,0]
[15,6222000909808,"منتج 15","كرتونة",917,null,null,null,null,null,null,null,null,null,null,null,null,null,null,0]
[16,6222000905268,"منتج 16","كرتونة",0,null,null,null,null,null,null,null,null,null,null,null,null,null,null,0]
[17,6222000907583,"منتج 17","كرتونة",34,null,null,null,null,null,null,null,null,null,null,null,null,null,null,0]
[18,6222000909884,"منتج 18","كرتونة",0,null,null,null,null,null,null,null,null,null,null,null,null,null,null,0]
[19,"002770","منتج 19","كرتونة",0,null,null,null,null,null,null,null,null,null,null,null,null,null,null,0]
[20,6222000912525,"منتج 20","كرتونة",0,null,null,null,null,null,null,null,null,null,null,null,null,null,null,0]
[21,"6222000912518","منتج 21","كرتونة",88,null,null,null,null,null,null,null,null,null,null,null,null,null,null,0]
[22,"6222000908566","منتج 22","كرتونة",19,null,null,null,null,null,null,null,null,null,null,null,null,null,null,0]
[23,"6222000908573","منتج 23","كرتونة",24,null,null,null,null,null,null,null,null,null,null,null,null,null,null,0]
[24,6222000912501,"منتج 24","كرتونة",0,null,null,null,null,null,null,null,null,null,null,null,null,null,null,0]
[25,6222000912457,"منتج 25","كرتونة",0,null,null,null,null,null,null,null,null,null,null,null,null,null,null,0]
[26,6222000901611,"منتج 26","كرتونة",6.5,null,null,null,null,null,null,null,null,null,null,null,null,null,null,0]
[27,6222000909907,"منتج 27","كرتونة",161,null,null,null,null,null,null,null,null,null,null,null,null,null,null,0]
[28,6222000911498,"منتج 28","كرتونة",95,null,null,null,null,null,null,null,null,null,null,null,null,null,null,0]
[29,"002771","منتج 29","كرتونة",42,null,null,null,null,null,null,null,null,null,null,null,null,null,null,0]
[30,6222000912778,"منتج 30","كرتونة",1800,null,null,null,null,null,null,null,null,null,null,null,null,null,null,0]
[31,6222000912822,"منتج 31","كرتونة",165,null,null,null,null,null,null,null,null,null,null,null,null,null,null,0]
[32,6222000912532,"منتج 32","كرتونة",28,null,null,null,null,null,null,null,null,null,null,null,null,null,null,0]
[33,6222000901697,"منتج 33","كرتونة",458,null,null,null,null,null,null,null,null,null,null,null,null,null,null,0]
[34,6222000911481,"منتج 34","كرتونة",0,null,null,null,null,null,null,null,null,null,null,null,null,null,null,0]
[35,6222000908276,"منتج 35","كرتونة",89,null,null,null,null,null,null,null,null,null,null,null,null,null,null,0]
[36,6222000909921,"منتج 36","كرتونة",0,null,null,null,null,null,null,null,null,null,null,null,null,null,null,0]
[37,6222000909839,"منتج 37","كرتونة",156,null,null,null,null,null,null,null,null,null,null,null,null,null,null,0]
[38,6222000908825,"منتج 38","كرتونة",0,null,null,null,null,null,null,null,null,null,null,null,null,null,null,0]
[39,6222000907637,"منتج 39","كرتونة",68,null,null,null,null,null,null,null,null,null,null,null,null,null,null,0]
[40,6222000903295,"منتج 40","كرتونة",null,null,null,null,null,null,null,null,null,null,null,null,null,null,null,0]
[41,6222000912006,"منتج 41","كرتونة",0,null,null,null,null,null,null,null,null,null,null,null,null,null,null,0]
[42,6222000911993,"منتج 42","كرتونة",21,null,null,null,null,null,null,null,null,null,null,null,null,null,null,0]
[43,6222000912013,"منتج 43","كرتونة",12,null,null,null,null,null,null,null,null,null,null,null,null,null,null,0]
[44,6222000964197,"منتج 44","كرتونة",0,null,null,null,null,null,null,null,null,null,null,null,null,null,null,0]
[45,6222000906630,"منتج 45","كرتونة",0,null,null,null,null,null,null,null,null,null,null,null,null,null,null,0]
[46,6222000902519,"منتج 46","كرتونة",0,null,null,null,null,null,null,null,null,null,null,null,null,null,null,0]
[47,6222000902557,"منتج 47","كرتونة",139,null,null,null,null,null,null,null,null,null,null,null,null,null,null,0]
[48,6222000902564,"منتج 48","كرتونة",103,null,null,null,null,null,null,null,null,null,null,null,null,null,null,0]
[49,6222000910033,"منتج 49","كرتونة",0,null,null,null,null,null,null,null,null,null,null,null,null,null,null,0]
[50,6222000910026,"منتج 50","كرتونة",0,null,null,null,null,null,null,null,null,null,null,null,null,null,null,0]
[51,6222000909945,"منتج 51","كرتونة",0,null,null,null,null,null,null,null,null,null,null,null,null,null,null,0]
[52,6222000910200,"منتج 52","كرتونة",711,null,null,null,null,null,null,null,null,null,null,null,null,null,null,0]
[53,6222000910514,"منتج 53","كرتونة",454,null,null,null,null,null,null,null,null,null,null,null,null,null,null,0]
[54,6222000909976,"منتج 54","كرتونة",492,null,null,null,null,null,null,null,null,null,null,null,null,null,null,0]
[55,6222000909983,"منتج 55","كرتونة",0,null,null,null,null,null,null,null,null,null,null,null,null,null,null,0]
[56,6222000909969,"منتج 56","كرتونة",0,null,null,null,null,null,null,null,null,null,null,null,null,null,null,0]
[57,622200097116,"منتج 57","كرتونة",198,null,null,null,null,null,null,null,null,null,null,null,null,null,null,0]
[58,6222000912372,"منتج 58","كرتونة",711,null,null,null,null,null,null,null,null,null,null,null,null,null,null,0]
[59,6222000912488,"منتج 59","كرتونة",593,null,null,null,null,null,null,null,null,null,null,null,null,null,null,0]
[60,6222000914383,"منتج 60","كرتونة",0,null,null,null,null,null,null,null,null,null,null,null,null,null,null,0]
[61,6222000914369,"منتج 61","كرتونة",0,null,null,null,null,null,null,null,null,null,null,null,null,null,null,0]
[62,6222000914376,"منتج 62","كرتونة",0,null,null,null,null,null,null,null,null,null,null,null,null,null,null,0]
[63,6222000912365,"منتج 63","كرتونة",0,null,null,null,null,null,null,null,null,null,null,null,null,null,null,0]
[64,6222000902083,"منتج 64","كرتونة",0,null,null,null,null,null,null,null,null,null,null,null,null,null,null,0]
[65,6222000913904,"منتج 65","كرتونة",0,null,null,null,null,null,null,null,null,null,null,null,null,null,null,0]
[66,"EG-670026743-2453","منتج 66","كرتونة",0,null,null,null,null,null,null,null,null,null,null,null,null,null,null,{"$f":"SUM(F69:S69)","v":0}]
[67,6222000915243,"منتج 67","كرتونة",0,null,null,null,null,null,null,null,null,null,null,null,null,null,null,0]
[68,6888000909953,"منتج 68","كرتونة",177,null,null,null,null,null,null,null,null,null,null,null,null,null,null,0]
["الاجمالى",null,null,null,{"$f":"SUM(E4:E71)","v":8778.5},{"$f":"SUM(F4:F71)","v":0},0,0,0,0,0,0,0,0,0,0,0,0,0,0]

{"sheet":"اسوان","index":27,"n_rows":72,"n_cols":20,"rows_kept":72,"cut":false,"hidden":false,"merged":[[71,0,71,3],[0,0,0,19],[1,0,2,0],[1,1,2,1],[1,2,2,2],[1,3,2,3],[1,4,2,4],[1,19,2,19],[1,5,1,18]]}
["رصيد توكيل (  أسوان ) عن يوم (8-2-2025 )"]
["م","الكود","الصنف","الوحدة","الرصيد\n الدفترى\nبالكرتونة\n ","تاريخ الانتاج",null,null,null,null,null,null,null,null,null,null,null,null,null,"الرصيد\n الفعلى\nبالكرتونة\n"]
[null,null,null,null,null,"2024-01-01","2024-02-01","2024-03-01","2024-04-01","2024-05-01","2024-06-01","2024-07-01","2024-08-01","2024-09-01","2024-10-01","2024-11-01","2024-12-01","2025-01-01","2025-02-01"]
[1,6222000901529,"منتج 1","كرتونة",160,null,null,null,null,null,null,null,null,null,null,null,null,null,null,{"$f":"SUM(F4:S4)","v":0}]
[2,6222000901536,"منتج 2","كرتونة",152,null,null,null,null,null,null,null,null,null,null,null,null,null,null,{"$f":"SUM(F5:S5)","v":0}]
[3,6222000911733,"منتج 3","كرتونة",40,null,null,null,null,null,null,null,null,null,null,null,null,null,null,0]
[4,6222000911764,"منتج 4","كرتونة",43,null,null,null,null,null,null,null,null,null,null,null,null,null,null,0]
[5,"00743","منتج 5","كرتونة",20,null,null,null,null,null,null,null,null,null,null,null,null,null,null,0]
[6,6222000901758,"منتج 6","كرتونة",55,null,null,null,null,null,null,null,null,null,null,null,null,null,null,0]
[7,6222000912020,"منتج 7","كرتونة",25,null,null,null,null,null,null,null,null,null,null,null,null,null,null,0]
[8,6222000909815,"منتج 8","كرتونة",700,null,null,null,null,null,null,null,null,null,null,null,null,null,null,0]
[9,6222000908610,"منتج 9","كرتونة",12,null,null,null,null,null,null,null,null,null,null,null,null,null,null,0]
[10,6222000909891,"منتج 10","كرتونة",14,null,null,null,null,null,null,null,null,null,null,null,null,null,null,0]
[11,6222000911757,"منتج 11","كرتونة",0,null,null,null,null,null,null,null,null,null,null,null,null,null,null,0]
[12,"00744","منتج 12","كرتونة",50,null,null,null,null,null,null,null,null,null,null,null,null,null,null,0]
[13,6222000901642,"منتج 13","كرتونة",78,null,null,null,null,null,null,null,null,null,null,null,null,null,null,0]
[14,6222000912037,"منتج 14","كرتونة",100,null,null,null,null,null,null,null,null,null,null,null,null,null,null,0]
[15,6222000909808,"منتج 15","كرتونة",94,null,null,null,null,null,null,null,null,null,null,null,null,null,null,0]
[16,6222000905268,"منتج 16","كرتونة",0,null,null,null,null,null,null,null,null,null,null,null,null,null,null,0]
[17,6222000907583,"منتج 17","كرتونة",205,null,null,null,null,null,null,null,null,null,null,null,null,null,null,0]
[18,6222000909884,"منتج 18","كرتونة",78,null,null,null,null,null,null,null,null,null,null,null,null,null,null,0]
[19,"002770","منتج 19","كرتونة",0,null,null,null,null,null,null,null,null,null,null,null,null,null,null,0]
[20,6222000912525,"منتج 20","كرتونة",0,null,null,null,null,null,null,null,null,null,null,null,null,null,null,0]
[21,"6222000912518","منتج 21","كرتونة",14,null,null,null,null,null,null,null,null,null,null,null,null,null,null,0]
[22,"6222000908566","منتج 22","كرتونة",75,null,null,null,null,null,null,null,null,null,null,null,null,null,null,0]
[23,"6222000908573","منتج 23","كرتونة",50,null,null,null,null,null,null,null,null,null,null,null,null,null,null,0]
[24,6222000912501,"منتج 24","كرتونة",0,null,null,null,null,null,null,null,null,null,null,null,null,null,null,0]
[25,6222000912457,"منتج 25","كرتونة",0,null,null,null,null,null,null,null,null,null,null,null,null,null,null,0]
[26,6222000901611,"منتج 26","كرتونة",401,null,null,null,null,null,null,null,null,null,null,null,null,null,null,0]
[27,6222000909907,"منتج 27","كرتونة",8,null,null,null,null,null,null,null,null,null,null,null,null,null,null,0]
[28,6222000911498,"منتج 28","كرتونة",54,null,null,null,null,null,null,null,null,null,null,null,null,null,null,0]
[29,"002771","منتج 29","كرتونة",0,null,null,null,null,null,null,null,null,null,null,null,null,null,null,0]
[30,6222000912778,"منتج 30","كرتونة",2169,null,null,null,null,null,null,null,null,null,null,null,null,null,null,0]
[31,6222000912822,"منتج 31","كرتونة",9,null,null,null,null,null,null,null,null,null,null,null,null,null,null,0]
[32,6222000912532,"منتج 32","كرتونة",120,null,null,null,null,null,null,null,null,null,null,null,null,null,null,0]
[33,6222000901697,"منتج 33","كرتونة",341,null,null,null,null,null,null,null,null,null,null,null,null,null,null,0]
[34,6222000911481,"منتج 34","كرتونة",0,null,null,null,null,null,null,null,null,null,null,null,null,null,null,0]
[35,6222000908276,"منتج 35","كرتونة",258,null,null,null,null,null,null,null,null,null,null,null,null,null,null,0]
[36,6222000909921,"منتج 36","كرتونة",0,null,null,null,null,null,null,null,null,null,null,null,null,null,null,0]
[37,6222000909839,"منتج 37","كرتونة",703,null,null,null,null,null,null,null,null,null,null,null,null,null,null,0]
[38,6222000908825,"منتج 38","كرتونة",125,null,null,null,null,null,null,null,null,null,null,null,null,null,null,0]
[39,6222000907637,"منتج 39","كرتونة",59,null,null,null,null,null,null,null,null,null,null,null,null,null,null,0]
[40,6222000903295,"منتج 40","كرتونة",53,null,null,null,null,null,null,null,null,null,null,null,null,null,null,0]
[41,6222000912006,"منتج 41","كرتونة",42,null,null,null,null,null,null,null,null,null,null,null,null,null,null,0]
[42,6222000911993,"منتج 42","كرتونة",42,null,null,null,null,null,null,null,null,null,null,null,null,null,null,0]
[43,6222000912013,"منتج 43","كرتونة",34,null,null,null,null,null,null,null,null,null,null,null,null,null,null,0]
[44,6222000964197,"منتج 44","كرتونة",0,null,null,null,null,null,null,null,null,null,null,null,null,null,null,0]
[45,6222000906630,"منتج 45","كرتونة",0,null,null,null,null,null,null,null,null,null,null,null,null,null,null,0]
[46,6222000902519,"منتج 46","كرتونة",51,null,null,null,null,null,null,null,null,null,null,null,null,null,null,0]
[47,6222000902557,"منتج 47","كرتونة",211,null,null,null,null,null,null,null,null,null,null,null,null,null,null,0]
[48,6222000902564,"منتج 48","كرتونة",42,null,null,null,null,null,null,null,null,null,null,null,null,null,null,0]
[49,6222000910033,"منتج 49","كرتونة",0,null,null,null,null,null,null,null,null,null,null,null,null,null,null,0]
[50,6222000910026,"منتج 50","كرتونة",0,null,null,null,null,null,null,null,null,null,null,null,null,null,null,0]
[51,6222000909945,"منتج 51","كرتونة",0,null,null,null,null,null,null,null,null,null,null,null,null,null,null,0]
[52,6222000910200,"منتج 52","كرتونة",754,null,null,null,null,null,null,null,null,null,null,null,null,null,null,0]
[53,6222000910514,"منتج 53","كرتونة",726,null,null,null,null,null,null,null,null,null,null,null,null,null,null,0]
[54,6222000909976,"منتج 54","كرتونة",246,null,null,null,null,null,null,null,null,null,null,null,null,null,null,0]
[55,6222000909983,"منتج 55","كرتونة",0,null,null,null,null,null,null,null,null,null,null,null,null,null,null,0]
[56,6222000909969,"منتج 56","كرتونة",434,null,null,null,null,null,null,null,null,null,null,null,null,null,null,0]
[57,622200097116,"منتج 57","كرتونة",0,null,null,null,null,null,null,null,null,null,null,null,null,null,null,0]
[58,6222000912372,"منتج 58","كرتونة",12,null,null,null,null,null,null,null,null,null,null,null,null,null,null,0]
[59,6222000912488,"منتج 59","كرتونة",302,null,null,null,null,null,null,null,null,null,null,null,null,null,null,0]
[60,6222000914383,"منتج 60","كرتونة",0,null,null,null,null,null,null,null,null,null,null,null,null,null,null,0]
[61,6222000914369,"منتج 61","كرتونة",0,null,null,null,null,null,null,null,null,null,null,null,null,null,null,0]
[62,6222000914376,"منتج 62","كرتونة",0,null,null,null,null,null,null,null,null,null,null,null,null,null,null,0]
[63,6222000912365,"منتج 63","كرتونة",0,null,null,null,null,null,null,null,null,null,null,null,null,null,null,0]
[64,6222000902083,"منتج 64","كرتونة",0,null,null,null,null,null,null,null,null,null,null,null,null,null,null,0]
[65,6222000913904,"منتج 65","كرتونة",0,null,null,null,null,null,null,null,null,null,null,null,null,null,null,0]
[66,"EG-670026743-2453","منتج 66","كرتونة",0,null,null,null,null,null,null,null,null,null,null,null,null,null,null,{"$f":"SUM(F69:S69)","v":0}]
[67,6222000915243,"منتج 67","كرتونة",0,null,null,null,null,null,null,null,null,null,null,null,null,null,null,0]
[68,6888000909953,"منتج 68","كرتونة",68,null,null,null,null,null,null,null,null,null,null,null,null,null,null,0]
["الاجمالى",null,null,null,{"$f":"SUM(E4:E71)","v":9229},{"$f":"SUM(F4:F71)","v":0},0,0,0,0,0,0,0,0,0,0,0,0,0,0]

{"sheet":"ادفو","index":28,"n_rows":72,"n_cols":20,"rows_kept":72,"cut":false,"hidden":false,"merged":[[71,0,71,3],[0,0,0,19],[1,19,2,19],[1,4,2,4],[1,0,2,0],[1,1,2,1],[1,2,2,2],[1,3,2,3],[1,5,1,18]]}
["رصيد توكيل ادفو 8/2/2024"]
["م","الكود","الصنف","الوحدة","الرصيد\n الدفترى\nبالكرتونة\n ","تاريخ الانتاج",null,null,null,null,null,null,null,null,null,null,null,null,null,"الرصيد\n الفعلى\nبالكرتونة\n"]
[null,null,null,null,null,"2024-01-01","2024-02-01","2024-03-01","2024-04-01","2024-05-01","2024-06-01","2024-07-01","2024-08-01","2024-09-01","2024-10-01","2024-11-01","2024-12-01","2025-01-01","2025-02-01"]
[1,6222000901529,"منتج 1","كرتونة",178,null,null,null,null,null,null,null,null,null,null,null,null,null,null,{"$f":"SUM(F4:S4)","v":0}]
[2,6222000901536,"منتج 2","كرتونة",55,null,null,null,null,null,null,null,null,null,null,null,null,null,null,{"$f":"SUM(F5:S5)","v":0}]
[3,6222000911733,"منتج 3","كرتونة",8,null,null,null,null,null,null,null,null,null,null,null,null,null,null,0]
[4,6222000911764,"منتج 4","كرتونة",19,null,null,null,null,null,null,null,null,null,null,null,null,null,null,0]
[5,"00743","منتج 5","كرتونة",20,null,null,null,null,null,null,null,null,null,null,null,null,null,null,0]
[6,6222000901758,"منتج 6","كرتونة",0,null,null,null,null,null,null,null,null,null,null,null,null,null,null,0]
[7,6222000912020,"منتج 7","كرتونة",8,null,null,null,null,null,null,null,null,null,null,null,null,null,null,0]
[8,6222000909815,"منتج 8","كرتونة",72,null,null,null,null,null,null,null,null,null,null,null,null,null,null,0]
[9,6222000908610,"منتج 9","كرتونة",62,null,null,null,null,null,null,null,null,null,null,null,null,null,null,0]
[10,6222000909891,"منتج 10","كرتونة",1,null,null,null,null,null,null,null,null,null,null,null,null,null,null,0]
[11,6222000911757,"منتج 11","كرتونة",0,null,null,null,null,null,null,null,null,null,null,null,null,null,null,0]
[12,"00744","منتج 12","كرتونة",36,null,null,null,null,null,null,null,null,null,null,null,null,null,null,0]
[13,6222000901642,"منتج 13","كرتونة",0,null,null,null,null,null,null,null,null,null,null,null,null,null,null,0]
[14,6222000912037,"منتج 14","كرتونة",29,null,null,null,null,null,null,null,null,null,null,null,null,null,null,0]
[15,6222000909808,"منتج 15","كرتونة",0,null,null,null,null,null,null,null,null,null,null,null,null,null,null,0]
[16,6222000905268,"منتج 16","كرتونة",0,null,null,null,null,null,null,null,null,null,null,null,null,null,null,0]
[17,6222000907583,"منتج 17","كرتونة",0,null,null,null,null,null,null,null,null,null,null,null,null,null,null,0]
[18,6222000909884,"منتج 18","كرتونة",0,null,null,null,null,null,null,null,null,null,null,null,null,null,null,0]
[19,"002770","منتج 19","كرتونة",0,null,null,null,null,null,null,null,null,null,null,null,null,null,null,0]
[20,6222000912525,"منتج 20","كرتونة",14,null,null,null,null,null,null,null,null,null,null,null,null,null,null,0]
[21,"6222000912518","منتج 21","كرتونة",28,null,null,null,null,null,null,null,null,null,null,null,null,null,null,0]
[22,"6222000908566","منتج 22","كرتونة",25,null,null,null,null,null,null,null,null,null,null,null,null,null,null,0]
[23,"6222000908573","منتج 23","كرتونة",25,null,null,null,null,null,null,null,null,null,null,null,null,null,null,0]
[24,6222000912501,"منتج 24","كرتونة",38,null,null,null,null,null,null,null,null,null,null,null,null,null,null,0]
[25,6222000912457,"منتج 25","كرتونة",0,null,null,null,null,null,null,null,null,null,null,null,null,null,null,0]
[26,6222000901611,"منتج 26","كرتونة",141,null,null,null,null,null,null,null,null,null,null,null,null,null,null,0]
[27,6222000909907,"منتج 27","كرتونة",0,null,null,null,null,null,null,null,null,null,null,null,null,null,null,0]
[28,6222000911498,"منتج 28","كرتونة",49,null,null,null,null,null,null,null,null,null,null,null,null,null,null,0]
[29,"002771","منتج 29","كرتونة",0,null,null,null,null,null,null,null,null,null,null,null,null,null,null,0]
[30,6222000912778,"منتج 30","كرتونة",113,null,null,null,null,null,null,null,null,null,null,null,null,null,null,0]
[31,6222000912822,"منتج 31","كرتونة",0,null,null,null,null,null,null,null,null,null,null,null,null,null,null,0]
[32,6222000912532,"منتج 32","كرتونة",21,null,null,null,null,null,null,null,null,null,null,null,null,null,null,0]
[33,6222000901697,"منتج 33","كرتونة",468,null,null,null,null,null,null,null,null,null,null,null,null,null,null,0]
[34,6222000911481,"منتج 34","كرتونة",0,null,null,null,null,null,null,null,null,null,null,null,null,null,null,0]
[35,6222000908276,"منتج 35","كرتونة",22,null,null,null,null,null,null,null,null,null,null,null,null,null,null,0]
[36,6222000909921,"منتج 36","كرتونة",0,null,null,null,null,null,null,null,null,null,null,null,null,null,null,0]
[37,6222000909839,"منتج 37","كرتونة",65,null,null,null,null,null,null,null,null,null,null,null,null,null,null,0]
[38,6222000908825,"منتج 38","كرتونة",43,null,null,null,null,null,null,null,null,null,null,null,null,null,null,0]
[39,6222000907637,"منتج 39","كرتونة",0,null,null,null,null,null,null,null,null,null,null,null,null,null,null,0]
[40,6222000903295,"منتج 40","كرتونة",0,null,null,null,null,null,null,null,null,null,null,null,null,null,null,0]
[41,6222000912006,"منتج 41","كرتونة",13,null,null,null,null,null,null,null,null,null,null,null,null,null,null,0]
[42,6222000911993,"منتج 42","كرتونة",22,null,null,null,null,null,null,null,null,null,null,null,null,null,null,0]
[43,6222000912013,"منتج 43","كرتونة",12,null,null,null,null,null,null,null,null,null,null,null,null,null,null,0]
[44,6222000964197,"منتج 44","كرتونة",0,null,null,null,null,null,null,null,null,null,null,null,null,null,null,0]
[45,6222000906630,"منتج 45","كرتونة",23,null,null,null,null,null,null,null,null,null,null,null,null,null,null,0]
[46,6222000902519,"منتج 46","كرتونة",19,null,null,null,null,null,null,null,null,null,null,null,null,null,null,0]
[47,6222000902557,"منتج 47","كرتونة",87,null,null,null,null,null,null,null,null,null,null,null,null,null,null,0]
[48,6222000902564,"منتج 48","كرتونة",80,null,null,null,null,null,null,null,null,null,null,null,null,null,null,0]
[49,6222000910033,"منتج 49","كرتونة",0,null,null,null,null,null,null,null,null,null,null,null,null,null,null,0]
[50,6222000910026,"منتج 50","كرتونة",0,null,null,null,null,null,null,null,null,null,null,null,null,null,null,0]
[51,6222000909945,"منتج 51","كرتونة",0,null,null,null,null,null,null,null,null,null,null,null,null,null,null,0]
[52,6222000910200,"منتج 52","كرتونة",776,null,null,null,null,null,null,null,null,null,null,null,null,null,null,0]
[53,6222000910514,"منتج 53","كرتونة",413,null,null,null,null,null,null,null,null,null,null,null,null,null,null,0]
[54,6222000909976,"منتج 54","كرتونة",558,null,null,null,null,null,null,null,null,null,null,null,null,null,null,0]
[55,6222000909983,"منتج 55","كرتونة",0,null,null,null,null,null,null,null,null,null,null,null,null,null,null,0]
[56,6222000909969,"منتج 56","كرتونة",0,null,null,null,null,null,null,null,null,null,null,null,null,null,null,0]
[57,622200097116,"منتج 57","كرتونة",0,null,null,null,null,null,null,null,null,null,null,null,null,null,null,0]
[58,6222000912372,"منتج 58","كرتونة",15,null,null,null,null,null,null,null,null,null,null,null,null,null,null,0]
[59,6222000912488,"منتج 59","كرتونة",1234,null,null,null,null,null,null,null,null,null,null,null,null,null,null,0]
[60,6222000914383,"منتج 60","كرتونة",0,null,null,null,null,null,null,null,null,null,null,null,null,null,null,0]
[61,6222000914369,"منتج 61","كرتونة",0,null,null,null,null,null,null,null,null,null,null,null,null,null,null,0]
[62,6222000914376,"منتج 62","كرتونة",0,null,null,null,null,null,null,null,null,null,null,null,null,null,null,0]
[63,6222000912365,"منتج 63","كرتونة",0,null,null,null,null,null,null,null,null,null,null,null,null,null,null,0]
[64,6222000902083,"منتج 64","كرتونة",0,null,null,null,null,null,null,null,null,null,null,null,null,null,null,0]
[65,6222000913904,"منتج 65","كرتونة",0,null,null,null,null,null,null,null,null,null,null,null,null,null,null,0]
[66,"EG-670026743-2453","منتج 66","كرتونة",0,null,null,null,null,null,null,null,null,null,null,null,null,null,null,{"$f":"SUM(F69:S69)","v":0}]
[67,6222000915243,"منتج 67","كرتونة",0,null,null,null,null,null,null,null,null,null,null,null,null,null,null,0]
[68,6888000909953,"منتج 68","كرتونة",54,null,null,null,null,null,null,null,null,null,null,null,null,null,null,0]
["الاجمالى",null,null,null,{"$f":"SUM(E4:E71)","v":4846},{"$f":"SUM(F4:F71)","v":0},0,0,0,0,0,0,0,0,0,0,0,0,0,0]